Workbook

Sheet Notes
A1: WeeklyDailyStochastics.xlsm; Traders Tip spreadsheet created for the September 2018 Issue
A2: Coded beginning 2018-June-08 by Ronald McAllister (rpmac_xltt@sprynet.com)
A4: This Workbook demonstrates an EXCEL version of the ideas presented
A5: by Vitali Apirine in an article titled "Weekly & Daily Stochastics"
A6: which originally appeared in the September 2018 issue of
A7: "Technical Analysis of Stocks and Commodities" magazine.
A9: General Construction Notes
A10: This spreadsheet incorporates a major change to my Yahoo Finance historical data retrieval approach.
A11: Microsoft has indicated that the EDGE Browser will be replacing Internet Explorer going forward.
A12: Some newer machines are being delivered with Win 10 and EDGE and no Internet Explorer.
A13: This presents a looming problem as Win 7 and Win 8 begin to age out.
A14: EXCEL Querytables, as vehicles for web data retrieval, rely on parts of the Internet Explorer for automated Cookie processing.
A15: The current gate keeper protocols for access to the Yahoo Finance historical pricing data requires that both
A16: a valid Yahoo Finance cookie and a matching "Crumb" value be sent to Yahoo Finance with each historical data request.
A17: With EXCEL Query Tables the cookie part is automatic. At least as long as the necessary bits of IE remain available and functioning.
A18: However, the Crumb part is imbedded in the raw HTML returned for the Yahoo stock summary page, the Yahoo History page, and for certain other Yahoo Finance Entry level Pages.
A19: The problem has been that EXCEL provides no native capability to get at that raw HTML text.
A20: Enter MSXML.
A21: MSXML also shares the automatic Internet Explorer Cookie handlers. But if you want to ask programmatically, MSXML will show you inbound cookies destined for the IE cache.
A22: MSXML provides access to the raw HTML text and my VBA code extracts the necessary Crumb value from that text.
A23: Up until now I simply appended the Crumb value retrieved via MSXML to my Querytable history data request URLs and since cookies for Querytables are automatic, things worked just fine.
A25: Recently several folks have had the Querytable data retrievals stop working on their machines.
A26: The actual error text was Yahoo declaring an Invalid cookie but I have recently determined by trial and error that the crumb was the problem. (see below)
A27: Researching these failures led me to discover the coming IE End of life and the issues this may raise for Querytables.
A28: * * * *
A29: With this spreadsheet I am using WinHttpRequest as my VBA internet access vehicle.
A30: WinHttpRequest is analogous to MSXML with the exception that WinHttpRequest by default maintains its own in-memory cookie cache and does not share
A31: the in memory cache with any other windows processes. The downside is that Querytables can not see that cache. So I have replaced each of the Querytable calls with
A32: analogous WinHttpRequest calls and then must parse the returned pricing CSV structures in VBA where the Querytable mechanism did some of that parsing for me.
A33: Data retrieval elapsed times from Request to "charts ready" seem to be comparable to the Querytable process.
A35: Because the WinHttpRequest cookie cache exists only in memory, it does not stick around after I have completed data retrieval for a symbol.
A36: The next time you request data for a symbol, a new WinHttpRequest environment is created with an empty cache and a new cookie and new crumb get retrieved from Yahoo Finance.
A38: While I was testing my new code I ran into the "Invalid Cookie" error others have reported as an error highlighting a ".refresh" command in a Querytable call.
A39: Looking closer at the then current crumb value I realized that there was an Escape Sequence embedded in the Crumb text.
A40: As it turned out, this escape sequence, \u002F, is the encoding for a forward slash "/".
A41: I replaced the escape sequence in the crumb text with the forward slash and voila, using this corrected crumb text, the error went away!
A42: My crumb text went from "asdf898r\u002Fjv.s" to "asdf898r/jv.s" and my "Invalid Cookie" error went away.
A44: Escape sequences and the reasons they exist is too large a topic for here. Google it if you are curious.
A46: Sufficient to say that I think that this (randomly embedded escape sequences) may be what is killing things for the readers
A47: who have reported that the recent spreadsheets have all suddenly stopped working after behaving fine for months.
A48: The Yahoo finance cookie existing in the IE cache on their machine expired. Yahoo sent a new cookie.
A49: The newly generated matching crumb text unfortunately contains the forward slash or some other escaped character.
A51: Yahoo Finance cookies are good for a year. So once the problem hits, all of the Trader tips spreadsheets on that machine will report the same
A52: failure for a year until the cookie in cache expires and is replaced. Or the user removes the cookie from the IE cache.
A53: Then they must be lucky enough that the new Crumb does not also have embedded escape sequences
A55: HTML and or XML protocols use the forward slash as a delimiter so unless it appears in a proper delimiter position, any forward slash must be escape encoded
A56: to avoid problems when the recipient HTML decoder is working with the raw text.
A58: In my testing to date I have generated many successful crumbs and many failures. So far, I have only encountered the \u002F escape sequence in the failures.
A60: Escaped Characters Bottom Line: VBA code in this spreadsheet automatically looks for \u002F in a crumb text and will replace it with "/".
A61: Other escaped characters may someday turn up in the crumb text. I am taking a wait and see approach for now.
A63: How to fix this specific (\u002F) escape sequence exposure in recent spreadsheets:
A64: Open one of the problem spreadsheets
A65: Open the VBA editor ALT-F11 will do it
A66: Open the VBA editor "FIND" dialog. Ctrl-F will do it
A67: In the "Find What" box type "Function ExtractCrumbString"
A68: Click on the "Search In Current Project" radio button
A69: Click "Find Next"
A70: Scroll down to the "End Function" line. Less than a page.
A71: The immediately preceding line will begin with
A72: ExtractCrumbString = Mid(SourceText,
A73: Insert the following text between the line that begins ExtractCrumbString = Mid(SourceText,
A74: and the "End Function" line
A75: ExtractCrumbString = Replace(ExtractCrumbString, "\u002F", "/", 1, -1, vbTextCompare)
B76: Save your workbook and test as you see fit.
A78: CalculationsAndCharts construction Notes:
A79: Charts from Mr. Apirine's article may be replicated as follows:
A80: Figure 2: Symbol ^RUT, Plot dates from 03/09/2015 thru 09/23/2015
A81: Figure 3: Symbol ^NYA, Plot dates from 08/10/2016 thru 06/19/2017
A82: Figure 4: Symbol GSPC, Plot dates from 04/28/2011 thru 01/26/2012
A83: Figure 5: Symbol ^DJI, Plot dates from 10/18/2007 thru 08/14/2009
A85: Development Notes:
C86: This workbook contains and uses VBA macros and may use VBA Class structures.
C87: Input Data
C88: The data in this workbook is sorted date descending (most recent date at the top). All formulas and
C89: VBA routines are built accordingly.
B93: My sincere apologies to our Macintosh based readers: Neither MSXML nor WinHttpRequest are supported in your environment. So as it stands this version of the spreadsheet will not work for you.
B94: See "Why this approach does not work for Macintosh" below.
B95: I am investigating cURL as a non-Querytable based approach for the Macintosh environment.
A97: The new Yahoo Finance history download interface has changed rather radically. The biggest hurdle being a pseudo-security requirement of adding a
B98: crumb character string to any URL requesting any type of history download. That crumb must match up (by way of some sort of hash algorithm) with
B99: the Yahoo Finance cookie that must also be sent with any request to the new Yahoo History down load interface.
B101: A crumb value is returned, buried in the HTML for any of what I call the "entry level" Yahoo Finance web pages (no crumb security requirement for entry level pages).
B102: A crumb may come with other Yahoo Finance pages. A crumb may even accompany some of the secured pages as well. I have not checked.
B104: Entry level pages are the top level pages of the various Yahoo Finance dialogs and include: Quote Lookup, Stock Summary Quote, and any of the pages
B105: with links in the horizontal row with the "Summary" link on the quote summary page such as Options, Historical Data, and the rest.
B107: To date I have found no way to get at this crumb value using any native EXCEL capabilities.
B109: So this crumb requirement effectively shuts out any solution that attempts to exclusively use built-in facilities of EXCEL, which is to say a purely Querytables solution.
B111: The approach built for this Traders Tip spreadsheet uses a combination of MSXML and EXCEL Querytable calls to Load the InputPriceData worksheet.
B113: First I call MSXML to get the HTML text for the Yahoo Summary Quote page using the requested symbol. From this HTML text I extract the full company name,
B114: the market it trades, the market status and time stamp, and finally the associated crumb string. There is a bunch of other useful bits buried in this HTML
B115: text that do not necessarily appear on the web page your browser presents. Perhaps some day I will go after and build a worksheet with these other bits.
B117: Next I add the freshly extracted crumb string to the URLs I use in three separate Querytable calls to retrieve Price history, Split history, and Dividend history respectively.
B119: From there VBA code proceeds as in the past to fill in the cell formulas and formatting that make the "prettied up" InputPriceData sheet.
A121: Why this approach works for Windows:
B122: First, MSXML shares the permanent Internet Explorer web cache where cookies are maintained. Both IE and MSXML automatically
B123: update this cache when a "set cookie" header accompanies a web response. And they both automatically search this shared cache for
B124: cookies and add any "appropriate" cookies to the headers of any web requests they send out.
B125: This cookie handling automation means that even if the response to our MSXML call for the Summary web page includes a new version of
B126: the Yahoo Finance cookie, the imbedded Crumb value will always match the cookie newly installed in the cache!
B128: Second, in the Windows environment the EXCEL Querytable mechanism leans heavily on bits from Internet Explorer. This means that cookie
B129: handling is also automated from the shared cache for Querytable calls. We can count on any appropriate cookies being added to any Querytable call.
B130: We only need to do our part by adding the corresponding Crumb value to complete the security for the Querytable to access Yahoo History downloads.
A132: Why this approach does not work for Macintosh:
B133: For what it is worth, the Macintosh version of the MS Office suite of products do in fact maintain a special, shared amongst themselves only, cookie cache.
B134: They automate cookie handling into and from this cache JUST for the Office products and any Querytable activity they might originate.
B136: This cache is not tied to, nor shared with, any browser that might be installed on the MAC. And I have not found anything with HTTP capabilities similar to
B137: MSXML that can work with that Office product cookie cache.
B139: When working in the MAC EXCEL environment, without that MSXML like capability against the office shared cache, l have no mechanism
B140: to obtain a crumb value that would be a valid match to the Yahoo Finance cookie that will be automatically attached to a Querytable call.
B141: This missing facility pretty much eliminates the use of Mac environment Querytables to access the new Yahoo Finance history download interface.
A143: One very low probability potential "Gottcha" for any Querytables approach.
B144: Yahoo Finance cookies typically have an assigned expiration that is a year out (to the second) from the time they are issued.
B145: Further, these cookies are unique. Yours will not match mine.
B147: If for testing purposes, instead of MSXML, you use a fresh instance of Winhttp (Fresh instance = empty cache = no cookie to automatically send)
B148: every time you call an entry level page, the Yahoo server says "What? Entry level page? With no inbound cookie? Get them a cookie!!"
B149: and will send you a new, unique cookie and will imbed the matching crumb value in the response HTML text for each of these "no cookie attached" calls.
B151: The Gottcha: Lets say that the Yahoo Finance cookie presently in the IE cache has an expiration date and time that just happens
B152: to fall between our MSXML call to the summary page to fetch our crumb and our first (or second, or third) Querytable call.
B153: The Querytable call after the cookie expiration may fail with a cookie and crumb validation error.
B155: Querytable error reporting is atrocious. So we will not get any sort of helpful message here. Just a very generalized message like "failed to connect".
B157: The workaround is to simply go to the InputPriceData tab and click the download button.
B158: This second time through the retrieval process should not fail on a mismatch.
B159: After all, you now have a year before the new cookie that just got put into the cache expires!
A161: Calculation and Chart Worksheet Usage Comments:
C162: In General, Items in Bolded BLUE are items you may freely change to play what-if games.
C163: Be sure to have a backup copy of the spreadsheet before you alter anything else.
A165: Features carried forward from the June 2016 version of my T-Tips Template
A166: Added a pair of buttons near cell F12 that will allow the user to step the charting window forward or backward one bar for each click.
A167: I find this to be a good way to test my understanding of the author's ideas as I step through the evolution of the price behavior and the indicators.
B169: First: In the "Help! I would like to plot data" area.
B170: Added button to resolve #NA problems by locating the bar in the input data with a slightly more recent date than what the user actually requested.
B171: I find this particularly useful when I have a general idea of where I want to be date wise. Now I can pick a set of dates "out of the air".
B172: If either (or both) of my date specifications fall between dates that are available in the price history,
B173: this button will resolve them to the dates of the nearest, slightly more recent input bars.
B174: I can then refine my data interval search as necessary from there.
B175: Really great when working with Weekly or Monthly studies!
C176: 2016Jun11 - added logic to the "I would like to chart.." button to detect #N/A values and terminate
C177: gracefully with a message instead of blowing up in the charting logic.
B179: Second: In the "Price Chart Windowing Controls" area. (A11 and A12)
B180: When retrieving data for a new symbol or when changing from daily to weekly or monthly data, there was the possibility that the
B181: residual settings in A11 and A12 would fall outside of the number bars available on the input data tab after the new data retrieval.
B182: In certain combinations, this could create a serious error in the chart sizing logic and crash the spreadsheet.
B183: I have taken this opportunity to update the validity checking logic used in the chart sizing macros
B184: to adjust these values as necessary so that they fall within the boundaries of the newly retrieved input data.
A185: Features carried forward from the October 2015 Traders Tips Template
B186: Improved automation: changes to any of the following will automatically initiate calculations appropriate to reflect a change.
C187: Changing either of cells A11 (pan) or A12 (zoom) will automatically initiate the same chart sizing macros that the manual
C188: "Set Chart" button uses.

Sheet InputPriceData
A1: Russell 2000 (^RUT) -Chicago Options (Daily)
IJ2: 241.79
A3: Request Online Yahoo History for: | F3: Market State == > | G3: At close: | H3: 16:30:00 | I3: EDT
A4: Symbol | B4: ^RUT | D4: Valid | I4: =OFFSET(I4,-2,0,1,1) -> 0
A5: From | B5: 1950-01-01 | D5: Data | AF5: Trailing 12 Div return (Cur Close)
A6: To | B6: =NOW() -> 2018-07-16T11:05:48.780 | D6: Types | E6: =VLOOKUP(B7,D7:E10,2,FALSE) -> d
A7: Data Type | B7: Daily | D7: Daily | E7: d
B8: MH484UE07KS | D8: Weekly | E8: w
A9: Available Data | D9: Monthly | E9: m
A10: Bar Count: | B10: 7774 | AF10: =OFFSET(AC15,1,0,1,1)/OFFSET(N15,1,0,1,1) -> 0
A11: From: | B11: =IF(B10<=0,"",OFFSET(B15,B10,IF(HistReqDataType="v",1,0),1,1)) -> 1987-09-10 | W11: Trailing 12 Month Dividend Returns
A12: To: | B12: =IF(B10<=0,"",IF(HistReqDataType="v",OFFSET(B15,2,1,1,1),OFFSET(B15,1,0,1,1))) -> 2018-07-13 | W12: Raw Close price on Dividend date | X12: Div Year and Month | Y12: Looking for year ago Div Year and Month | Z12: Year ago Div Date we found | AA12: row offset to year ago div Date | AB12: Same month flag | AC12: Trailing 12 Div Total | AD12: Trailing 12 Div return
Q13: Split History | S13: 0 | T13: Running | U13: Dividend History
B14: Raw Data Values | H14: Adjusted | I14: Price Adjust | J14: Vol Adjust | K14: Adjusted Values | P14: Last | Q14: Effective | R14: Shares | T14: Vol Adjust | V14: 0
A15: RelRow | B15: Date | C15: Open | D15: High | E15: Low | F15: Close | G15: Volume | H15: Close | I15: Factor | J15: Factor | K15: Open | L15: High | M15: Low | N15: Close | O15: Volume | P15: Trade | Q15: 43297 | R15: New | S15: Old | T15: 1 | U15: Date | V15: $ / Share
A16: 1 | B16: 2018-07-13 | C16: 1690.290039 | D16: 1697.400024 | E16: 1686.880005 | F16: 1687.079956 | G16: 26140000 | H16: 1687.079956 | I16: =IF(F16=0,1,H16/F16) -> 1 | J16: =INDEX(OFFSET($T$15,0,0,$S$13+1,1),MATCH(B16,OFFSET($Q$15,0,0,$S$13+1,1),-1)) -> 1 | K16: =ROUND($I16*C16,2) -> 1690.29 | L16: =ROUND($I16*D16,2) -> 1697.4 | M16: 1686.88 | N16: 1687.08 | O16: =G16*J16 -> 26140000
A17: 2 | B17: 2018-07-12 | C17: 1685.170044 | D17: 1692.430054 | E17: 1679.26001 | F17: 1690.280029 | G17: 28216900 | H17: 1690.280029 | I17: =IF(F17=0,1,H17/F17) -> 1 | J17: =INDEX(OFFSET($T$15,0,0,$S$13+1,1),MATCH(B17,OFFSET($Q$15,0,0,$S$13+1,1),-1)) -> 1 | K17: =ROUND($I17*C17,2) -> 1685.17 | L17: =ROUND($I17*D17,2) -> 1692.43 | M17: =ROUND($I17*E17,2) -> 1679.26 | N17: =ROUND($I17*F17,2) -> 1690.28 | O17: =G17*J17 -> 28216900
A18: 3 | B18: 2018-07-11 | C18: 1694.060059 | D18: 1696.02002 | E18: 1683.099976 | F18: 1683.660034 | G18: 29647400 | H18: 1683.660034 | I18: 1 | J18: 1 | K18: 1694.06 | L18: 1696.02 | M18: 1683.1 | N18: 1683.66 | O18: 29647400
A19: 4 | B19: 2018-07-10 | C19: 1704.829956 | D19: 1708.560059 | E19: 1689.349976 | F19: 1695.619995 | G19: 30638500 | H19: 1695.619995 | I19: 1 | J19: 1 | K19: 1704.83 | L19: 1708.56 | M19: 1689.35 | N19: 1695.62 | O19: 30638500
A20: 5 | B20: 2018-07-09 | C20: 1694.660034 | D20: 1704.839966 | E20: 1694.660034 | F20: 1704.599976 | G20: 30500400 | H20: 1704.599976 | I20: 1 | J20: 1 | K20: 1694.66 | L20: 1704.84 | M20: 1694.66 | N20: 1704.6 | O20: 30500400
A21: 6 | B21: 2018-07-06 | C21: 1679.449951 | D21: 1695.180054 | E21: 1678.569946 | F21: 1694.050049 | G21: 25547800 | H21: 1694.050049 | I21: 1 | J21: 1 | K21: 1679.45 | L21: 1695.18 | M21: 1678.57 | N21: 1694.05 | O21: 25547800
A22: 7 | B22: 2018-07-05 | C22: 1660.650024 | D22: 1679.660034 | E22: 1660.650024 | F22: 1679.47998 | G22: 29534200 | H22: 1679.47998 | I22: 1 | J22: 1 | K22: 1660.65 | L22: 1679.66 | M22: 1660.65 | N22: 1679.48 | O22: 29534200
A23: 8 | B23: 2018-07-03 | C23: 1655.400024 | D23: 1667.52002 | E23: 1655.400024 | F23: 1660.420044 | G23: 19114700 | H23: 1660.420044 | I23: 1 | J23: 1 | K23: 1655.4 | L23: 1667.52 | M23: 1655.4 | N23: 1660.42 | O23: 19114700
A24: 9 | B24: 2018-07-02 | C24: 1641.72998 | D24: 1655.089966 | E24: 1631.060059 | F24: 1655.089966 | G24: 30736500 | H24: 1655.089966 | I24: 1 | J24: 1 | K24: 1641.73 | L24: 1655.09 | M24: 1631.06 | N24: 1655.09 | O24: 30736500
A25: 10 | B25: 2018-06-29 | C25: 1645.900024 | D25: 1656.050049 | E25: 1642.969971 | F25: 1643.069946 | G25: 35656200 | H25: 1643.069946 | I25: 1 | J25: 1 | K25: 1645.9 | L25: 1656.05 | M25: 1642.97 | N25: 1643.07 | O25: 35656200
A26: 11 | B26: 2018-06-28 | C26: 1640.369995 | D26: 1647.939941 | E26: 1630.060059 | F26: 1645.02002 | G26: 34281400 | H26: 1645.02002 | I26: 1 | J26: 1 | K26: 1640.37 | L26: 1647.94 | M26: 1630.06 | N26: 1645.02 | O26: 34281400
A27: 12 | B27: 2018-06-27 | C27: 1668.939941 | D27: 1671.469971 | E27: 1640.420044 | F27: 1640.449951 | G27: 37760900 | H27: 1640.449951 | I27: 1 | J27: 1 | K27: 1668.94 | L27: 1671.47 | M27: 1640.42 | N27: 1640.45 | O27: 37760900
A28: 13 | B28: 2018-06-26 | C28: 1657.709961 | D28: 1672.160034 | E28: 1656.119995 | F28: 1668.530029 | G28: 35550900 | H28: 1668.530029 | I28: 1 | J28: 1 | K28: 1657.71 | L28: 1672.16 | M28: 1656.12 | N28: 1668.53 | O28: 35550900
A29: 14 | B29: 2018-06-25 | C29: 1684.76001 | D29: 1684.76001 | E29: 1649.810059 | F29: 1657.51001 | G29: 36550800 | H29: 1657.51001 | I29: 1 | J29: 1 | K29: 1684.76 | L29: 1684.76 | M29: 1649.81 | N29: 1657.51 | O29: 36550800
A30: 15 | B30: 2018-06-22 | C30: 1690.280029 | D30: 1696.369995 | E30: 1680.910034 | F30: 1685.579956 | G30: 54505500 | H30: 1685.579956 | I30: 1 | J30: 1 | K30: 1690.28 | L30: 1696.37 | M30: 1680.91 | N30: 1685.58 | O30: 54505500
A31: 16 | B31: 2018-06-21 | C31: 1706.98999 | D31: 1708.02002 | E31: 1685.589966 | F31: 1688.949951 | G31: 33000600 | H31: 1688.949951 | I31: 1 | J31: 1 | K31: 1706.99 | L31: 1708.02 | M31: 1685.59 | N31: 1688.95 | O31: 33000600
A32: 17 | B32: 2018-06-20 | C32: 1694.040039 | D32: 1708.099976 | E32: 1694.040039 | F32: 1706.98999 | G32: 33276000 | H32: 1706.98999 | I32: 1 | J32: 1 | K32: 1694.04 | L32: 1708.1 | M32: 1694.04 | N32: 1706.99 | O32: 33276000
A33: 18 | B33: 2018-06-19 | C33: 1692.01001 | D33: 1694 | E33: 1672.660034 | F33: 1693.449951 | G33: 36614700 | H33: 1693.449951 | I33: 1 | J33: 1 | K33: 1692.01 | L33: 1694 | M33: 1672.66 | N33: 1693.45 | O33: 36614700
A34: 19 | B34: 2018-06-18 | C34: 1683.51001 | D34: 1692.459961 | E34: 1674.410034 | F34: 1692.459961 | G34: 32871500 | H34: 1692.459961 | I34: 1 | J34: 1 | K34: 1683.51 | L34: 1692.46 | M34: 1674.41 | N34: 1692.46 | O34: 32871500
A35: 20 | B35: 2018-06-15 | C35: 1684.23999 | D35: 1684.630005 | E35: 1672.98999 | F35: 1683.910034 | G35: 54287900 | H35: 1683.910034 | I35: 1 | J35: 1 | K35: 1684.24 | L35: 1684.63 | M35: 1672.99 | N35: 1683.91 | O35: 54287900
A36: 21 | B36: 2018-06-14 | C36: 1677.030029 | D36: 1684.72998 | E36: 1674.530029 | F36: 1684.719971 | G36: 35268900 | H36: 1684.719971 | I36: 1 | J36: 1 | K36: 1677.03 | L36: 1684.73 | M36: 1674.53 | N36: 1684.72 | O36: 35268900
A37: 22 | B37: 2018-06-13 | C37: 1682.719971 | D37: 1684.839966 | E37: 1673.920044 | F37: 1676.540039 | G37: 37792300 | H37: 1676.540039 | I37: 1 | J37: 1 | K37: 1682.72 | L37: 1684.84 | M37: 1673.92 | N37: 1676.54 | O37: 37792300
A38: 23 | B38: 2018-06-12 | C38: 1674.939941 | D38: 1686.369995 | E38: 1674.939941 | F38: 1682.300049 | G38: 34010100 | H38: 1682.300049 | I38: 1 | J38: 1 | K38: 1674.94 | L38: 1686.37 | M38: 1674.94 | N38: 1682.3 | O38: 34010100
A39: 24 | B39: 2018-06-11 | C39: 1672.5 | D39: 1677.680054 | E39: 1671.26001 | F39: 1674.680054 | G39: 32323300 | H39: 1674.680054 | I39: 1 | J39: 1 | K39: 1672.5 | L39: 1677.68 | M39: 1671.26 | N39: 1674.68 | O39: 32323300
A40: 25 | B40: 2018-06-08 | C40: 1667.609985 | D40: 1674.069946 | E40: 1665.72998 | F40: 1672.48999 | G40: 31232100 | H40: 1672.48999 | I40: 1 | J40: 1 | K40: 1667.61 | L40: 1674.07 | M40: 1665.73 | N40: 1672.49 | O40: 31232100
A41: 26 | B41: 2018-06-07 | C41: 1676.52002 | D41: 1679.98999 | E41: 1660.890015 | F41: 1667.77002 | G41: 37113300 | H41: 1667.77002 | I41: 1 | J41: 1 | K41: 1676.52 | L41: 1679.99 | M41: 1660.89 | N41: 1667.77 | O41: 37113300
A42: 27 | B42: 2018-06-06 | C42: 1665.199951 | D42: 1676.180054 | E42: 1664.449951 | F42: 1675.949951 | G42: 36516400 | H42: 1675.949951 | I42: 1 | J42: 1 | K42: 1665.2 | L42: 1676.18 | M42: 1664.45 | N42: 1675.95 | O42: 36516400
A43: 28 | B43: 2018-06-05 | C43: 1653.689941 | D43: 1664.689941 | E43: 1652.76001 | F43: 1664.630005 | G43: 35177900 | H43: 1664.630005 | I43: 1 | J43: 1 | K43: 1653.69 | L43: 1664.69 | M43: 1652.76 | N43: 1664.63 | O43: 35177900
A44: 29 | B44: 2018-06-04 | C44: 1649.199951 | D44: 1655.709961 | E44: 1641.219971 | F44: 1653.369995 | G44: 33765100 | H44: 1653.369995 | I44: 1 | J44: 1 | K44: 1649.2 | L44: 1655.71 | M44: 1641.22 | N44: 1653.37 | O44: 33765100
A45: 30 | B45: 2018-06-01 | C45: 1635.400024 | D45: 1650.5 | E45: 1635.400024 | F45: 1647.97998 | G45: 36841300 | H45: 1647.97998 | I45: 1 | J45: 1 | K45: 1635.4 | L45: 1650.5 | M45: 1635.4 | N45: 1647.98 | O45: 36841300
A46: 31 | B46: 2018-05-31 | C46: 1647.969971 | D46: 1649.72998 | E46: 1632.25 | F46: 1633.609985 | G46: 42353700 | H46: 1633.609985 | I46: 1 | J46: 1 | K46: 1647.97 | L46: 1649.73 | M46: 1632.25 | N46: 1633.61 | O46: 42353700
A47: 32 | B47: 2018-05-30 | C47: 1624.030029 | D47: 1651.109985 | E47: 1624.030029 | F47: 1647.98999 | G47: 35610500 | H47: 1647.98999 | I47: 1 | J47: 1 | K47: 1624.03 | L47: 1651.11 | M47: 1624.03 | N47: 1647.99 | O47: 35610500
A48: 33 | B48: 2018-05-29 | C48: 1625.569946 | D48: 1628.47998 | E48: 1611.319946 | F48: 1623.650024 | G48: 37368900 | H48: 1623.650024 | I48: 1 | J48: 1 | K48: 1625.57 | L48: 1628.48 | M48: 1611.32 | N48: 1623.65 | O48: 37368900
A49: 34 | B49: 2018-05-25 | C49: 1627.930054 | D49: 1628.72998 | E49: 1623.329956 | F49: 1626.930054 | G49: 29952600 | H49: 1626.930054 | I49: 1 | J49: 1 | K49: 1627.93 | L49: 1628.73 | M49: 1623.33 | N49: 1626.93 | O49: 29952600
A50: 35 | B50: 2018-05-24 | C50: 1627.219971 | D50: 1630.310059 | E50: 1616.589966 | F50: 1628.219971 | G50: 32560300 | H50: 1628.219971 | I50: 1 | J50: 1 | K50: 1627.22 | L50: 1630.31 | M50: 1616.59 | N50: 1628.22 | O50: 32560300
A51: 36 | B51: 2018-05-23 | C51: 1624.920044 | D51: 1629.400024 | E51: 1618.560059 | F51: 1627.609985 | G51: 33262900 | H51: 1627.609985 | I51: 1 | J51: 1 | K51: 1624.92 | L51: 1629.4 | M51: 1618.56 | N51: 1627.61 | O51: 33262900
A52: 37 | B52: 2018-05-22 | C52: 1637.650024 | D52: 1639.890015 | E52: 1625.23999 | F52: 1625.23999 | G52: 33663100 | H52: 1625.23999 | I52: 1 | J52: 1 | K52: 1637.65 | L52: 1639.89 | M52: 1625.24 | N52: 1625.24 | O52: 33663100
A53: 38 | B53: 2018-05-21 | C53: 1627.77002 | D53: 1639.040039 | E53: 1627.77002 | F53: 1637.439941 | G53: 30098900 | H53: 1637.439941 | I53: 1 | J53: 1 | K53: 1627.77 | L53: 1639.04 | M53: 1627.77 | N53: 1637.44 | O53: 30098900
A54: 39 | B54: 2018-05-18 | C54: 1626.060059 | D54: 1630.329956 | E54: 1624.22998 | F54: 1626.630005 | G54: 33686900 | H54: 1626.630005 | I54: 1 | J54: 1 | K54: 1626.06 | L54: 1630.33 | M54: 1624.23 | N54: 1626.63 | O54: 33686900
A55: 40 | B55: 2018-05-17 | C55: 1616.219971 | D55: 1627.319946 | E55: 1615.459961 | F55: 1625.290039 | G55: 34754000 | H55: 1625.290039 | I55: 1 | J55: 1 | K55: 1616.22 | L55: 1627.32 | M55: 1615.46 | N55: 1625.29 | O55: 34754000
A56: 41 | B56: 2018-05-16 | C56: 1601.030029 | D56: 1620.640015 | E56: 1601.030029 | F56: 1616.369995 | G56: 32026700 | H56: 1616.369995 | I56: 1 | J56: 1 | K56: 1601.03 | L56: 1620.64 | M56: 1601.03 | N56: 1616.37 | O56: 32026700
A57: 42 | B57: 2018-05-15 | C57: 1599.599976 | D57: 1603.160034 | E57: 1592.099976 | F57: 1600.339966 | G57: 32906800 | H57: 1600.339966 | I57: 1 | J57: 1 | K57: 1599.6 | L57: 1603.16 | M57: 1592.1 | N57: 1600.34 | O57: 32906800
A58: 43 | B58: 2018-05-14 | C58: 1607.390015 | D58: 1614.23999 | E58: 1599.72998 | F58: 1600.339966 | G58: 29726600 | H58: 1600.339966 | I58: 1 | J58: 1 | K58: 1607.39 | L58: 1614.24 | M58: 1599.73 | N58: 1600.34 | O58: 29726600
A59: 44 | B59: 2018-05-11 | C59: 1603.869995 | D59: 1609.359985 | E59: 1599.910034 | F59: 1606.790039 | G59: 28627000 | H59: 1606.790039 | I59: 1 | J59: 1 | K59: 1603.87 | L59: 1609.36 | M59: 1599.91 | N59: 1606.79 | O59: 28627000
A60: 45 | B60: 2018-05-10 | C60: 1596.540039 | D60: 1609.449951 | E60: 1596.540039 | F60: 1603.709961 | G60: 33330500 | H60: 1603.709961 | I60: 1 | J60: 1 | K60: 1596.54 | L60: 1609.45 | M60: 1596.54 | N60: 1603.71 | O60: 33330500
A61: 46 | B61: 2018-05-09 | C61: 1586.73999 | D61: 1598.76001 | E61: 1584.170044 | F61: 1596.050049 | G61: 39095000 | H61: 1596.050049 | I61: 1 | J61: 1 | K61: 1586.74 | L61: 1598.76 | M61: 1584.17 | N61: 1596.05 | O61: 39095000
A62: 47 | B62: 2018-05-08 | C62: 1578.670044 | D62: 1586.589966 | E62: 1576.890015 | F62: 1586.390015 | G62: 37175700 | H62: 1586.390015 | I62: 1 | J62: 1 | K62: 1578.67 | L62: 1586.59 | M62: 1576.89 | N62: 1586.39 | O62: 37175700
A63: 48 | B63: 2018-05-07 | C63: 1565.719971 | D63: 1586.410034 | E63: 1565.719971 | F63: 1578.949951 | G63: 32379600 | H63: 1578.949951 | I63: 1 | J63: 1 | K63: 1565.72 | L63: 1586.41 | M63: 1565.72 | N63: 1578.95 | O63: 32379600
A64: 49 | B64: 2018-05-04 | C64: 1545.829956 | D64: 1572.77002 | E64: 1540.369995 | F64: 1565.599976 | G64: 33272200 | H64: 1565.599976 | I64: 1 | J64: 1 | K64: 1545.83 | L64: 1572.77 | M64: 1540.37 | N64: 1565.6 | O64: 33272200
A65: 50 | B65: 2018-05-03 | C65: 1554.339966 | D65: 1554.339966 | E65: 1532.310059 | F65: 1546.560059 | G65: 38514700 | H65: 1546.560059 | I65: 1 | J65: 1 | K65: 1554.34 | L65: 1554.34 | M65: 1532.31 | N65: 1546.56 | O65: 38514700
A66: 51 | B66: 2018-05-02 | C66: 1550.449951 | D66: 1565.369995 | E66: 1548.920044 | F66: 1554.910034 | G66: 40107700 | H66: 1554.910034 | I66: 1 | J66: 1 | K66: 1550.45 | L66: 1565.37 | M66: 1548.92 | N66: 1554.91 | O66: 40107700
A67: 52 | B67: 2018-05-01 | C67: 1541.77002 | D67: 1550.859985 | E67: 1527.709961 | F67: 1550.329956 | G67: 35598500 | H67: 1550.329956 | I67: 1 | J67: 1 | K67: 1541.77 | L67: 1550.86 | M67: 1527.71 | N67: 1550.33 | O67: 35598500
A68: 53 | B68: 2018-04-30 | C68: 1556.670044 | D68: 1563.650024 | E68: 1541.880005 | F68: 1541.880005 | G68: 37345300 | H68: 1541.880005 | I68: 1 | J68: 1 | K68: 1556.67 | L68: 1563.65 | M68: 1541.88 | N68: 1541.88 | O68: 37345300
A69: 54 | B69: 2018-04-27 | C69: 1557.949951 | D69: 1562.97998 | E69: 1549.47998 | F69: 1556.23999 | G69: 32190300 | H69: 1556.23999 | I69: 1 | J69: 1 | K69: 1557.95 | L69: 1562.98 | M69: 1549.48 | N69: 1556.24 | O69: 32190300
A70: 55 | B70: 2018-04-26 | C70: 1550.920044 | D70: 1562.5 | E70: 1550.310059 | F70: 1557.890015 | G70: 36657200 | H70: 1557.890015 | I70: 1 | J70: 1 | K70: 1550.92 | L70: 1562.5 | M70: 1550.31 | N70: 1557.89 | O70: 36657200
A71: 56 | B71: 2018-04-25 | C71: 1553 | D71: 1556.089966 | E71: 1539.949951 | F71: 1550.469971 | G71: 34994400 | H71: 1550.469971 | I71: 1 | J71: 1 | K71: 1553 | L71: 1556.09 | M71: 1539.95 | N71: 1550.47 | O71: 34994400
A72: 57 | B72: 2018-04-24 | C72: 1562.390015 | D72: 1574.47998 | E72: 1542.300049 | F72: 1553.280029 | G72: 37067400 | H72: 1553.280029 | I72: 1 | J72: 1 | K72: 1562.39 | L72: 1574.48 | M72: 1542.3 | N72: 1553.28 | O72: 37067400
A73: 58 | B73: 2018-04-23 | C73: 1564.420044 | D73: 1571.469971 | E73: 1556.27002 | F73: 1562.119995 | G73: 30174800 | H73: 1562.119995 | I73: 1 | J73: 1 | K73: 1564.42 | L73: 1571.47 | M73: 1556.27 | N73: 1562.12 | O73: 30174800
A74: 59 | B74: 2018-04-20 | C74: 1573.530029 | D74: 1574.23999 | E74: 1561.719971 | F74: 1564.119995 | G74: 33885900 | H74: 1564.119995 | I74: 1 | J74: 1 | K74: 1573.53 | L74: 1574.24 | M74: 1561.72 | N74: 1564.12 | O74: 33885900
A75: 60 | B75: 2018-04-19 | C75: 1582.819946 | D75: 1582.949951 | E75: 1569.160034 | F75: 1573.819946 | G75: 33493700 | H75: 1573.819946 | I75: 1 | J75: 1 | K75: 1582.82 | L75: 1582.95 | M75: 1569.16 | N75: 1573.82 | O75: 33493700
A76: 61 | B76: 2018-04-18 | C76: 1580.180054 | D76: 1592.040039 | E76: 1580.180054 | F76: 1583.560059 | G76: 33834100 | H76: 1583.560059 | I76: 1 | J76: 1 | K76: 1580.18 | L76: 1592.04 | M76: 1580.18 | N76: 1583.56 | O76: 33834100
A77: 62 | B77: 2018-04-17 | C77: 1564.869995 | D77: 1582.98999 | E77: 1564.869995 | F77: 1579.800049 | G77: 32343600 | H77: 1579.800049 | I77: 1 | J77: 1 | K77: 1564.87 | L77: 1582.99 | M77: 1564.87 | N77: 1579.8 | O77: 32343600
A78: 63 | B78: 2018-04-16 | C78: 1550.560059 | D78: 1566.400024 | E78: 1550.51001 | F78: 1563.030029 | G78: 30197000 | H78: 1563.030029 | I78: 1 | J78: 1 | K78: 1550.56 | L78: 1566.4 | M78: 1550.51 | N78: 1563.03 | O78: 30197000
A79: 64 | B79: 2018-04-13 | C79: 1558.109985 | D79: 1563.75 | E79: 1545.060059 | F79: 1549.51001 | G79: 29609100 | H79: 1549.51001 | I79: 1 | J79: 1 | K79: 1558.11 | L79: 1563.75 | M79: 1545.06 | N79: 1549.51 | O79: 29609100
A80: 65 | B80: 2018-04-12 | C80: 1548.030029 | D80: 1562.459961 | E80: 1548.030029 | F80: 1557.329956 | G80: 30213200 | H80: 1557.329956 | I80: 1 | J80: 1 | K80: 1548.03 | L80: 1562.46 | M80: 1548.03 | N80: 1557.33 | O80: 30213200
A81: 66 | B81: 2018-04-11 | C81: 1542.459961 | D81: 1551.369995 | E81: 1535.76001 | F81: 1546.800049 | G81: 30207600 | H81: 1546.800049 | I81: =IF(F81=0,1,H81/F81) -> 1 | J81: =INDEX(OFFSET($T$15,0,0,$S$13+1,1),MATCH(B81,OFFSET($Q$15,0,0,$S$13+1,1),-1)) -> 1 | K81: =ROUND($I81*C81,2) -> 1542.46 | L81: =ROUND($I81*D81,2) -> 1551.37 | M81: =ROUND($I81*E81,2) -> 1535.76 | N81: =ROUND($I81*F81,2) -> 1546.8 | O81: =G81*J81 -> 30207600
A82: 67 | B82: 2018-04-10 | C82: 1517.050049 | D82: 1548.079956 | E82: 1517.050049 | F82: 1543.430054 | G82: 35439300 | H82: 1543.430054 | I82: 1 | J82: 1 | K82: 1517.05 | L82: 1548.08 | M82: 1517.05 | N82: 1543.43 | O82: 35439300
A83: 68 | B83: 2018-04-09 | C83: 1513.900024 | D83: 1533.939941 | E83: 1513.900024 | F83: 1514.459961 | G83: 30629600 | H83: 1514.459961 | I83: 1 | J83: 1 | K83: 1513.9 | L83: 1533.94 | M83: 1513.9 | N83: 1514.46 | O83: 30629600
A84: 69 | B84: 2018-04-06 | C84: 1540.01001 | D84: 1541.069946 | E84: 1502.630005 | F84: 1513.300049 | G84: 32997000 | H84: 1513.300049 | I84: 1 | J84: 1 | K84: 1540.01 | L84: 1541.07 | M84: 1502.63 | N84: 1513.3 | O84: 32997000
A85: 70 | B85: 2018-04-05 | C85: 1532.949951 | D85: 1545.280029 | E85: 1532.949951 | F85: 1542.930054 | G85: 31759700 | H85: 1542.930054 | I85: 1 | J85: 1 | K85: 1532.95 | L85: 1545.28 | M85: 1532.95 | N85: 1542.93 | O85: 31759700
A86: 71 | B86: 2018-04-04 | C86: 1508.599976 | D86: 1534.569946 | E86: 1491.689941 | F86: 1531.660034 | G86: 33503400 | H86: 1531.660034 | I86: 1 | J86: 1 | K86: 1508.6 | L86: 1534.57 | M86: 1491.69 | N86: 1531.66 | O86: 33503400
A87: 72 | B87: 2018-04-03 | C87: 1493.869995 | D87: 1514.560059 | E87: 1493.869995 | F87: 1512.150024 | G87: 33928100 | H87: 1512.150024 | I87: 1 | J87: 1 | K87: 1493.87 | L87: 1514.56 | M87: 1493.87 | N87: 1512.15 | O87: 33928100
A88: 73 | B88: 2018-04-02 | C88: 1529.140015 | D88: 1529.140015 | E88: 1482.900024 | F88: 1492.530029 | G88: 35885200 | H88: 1492.530029 | I88: 1 | J88: 1 | K88: 1529.14 | L88: 1529.14 | M88: 1482.9 | N88: 1492.53 | O88: 35885200
A89: 74 | B89: 2018-03-29 | C89: 1513.310059 | D89: 1540.02002 | E89: 1513.310059 | F89: 1529.430054 | G89: 35659900 | H89: 1529.430054 | I89: 1 | J89: 1 | K89: 1513.31 | L89: 1540.02 | M89: 1513.31 | N89: 1529.43 | O89: 35659900
A90: 75 | B90: 2018-03-28 | C90: 1513.800049 | D90: 1521.349976 | E90: 1505.640015 | F90: 1513.030029 | G90: 38645000 | H90: 1513.030029 | I90: 1 | J90: 1 | K90: 1513.8 | L90: 1521.35 | M90: 1505.64 | N90: 1513.03 | O90: 38645000
A91: 76 | B91: 2018-03-27 | C91: 1544.449951 | D91: 1547.709961 | E91: 1508.939941 | F91: 1513.569946 | G91: 37063500 | H91: 1513.569946 | I91: 1 | J91: 1 | K91: 1544.45 | L91: 1547.71 | M91: 1508.94 | N91: 1513.57 | O91: 37063500
A92: 77 | B92: 2018-03-26 | C92: 1513.540039 | D92: 1543.810059 | E92: 1513.540039 | F92: 1543.719971 | G92: 35111000 | H92: 1543.719971 | I92: 1 | J92: 1 | K92: 1513.54 | L92: 1543.81 | M92: 1513.54 | N92: 1543.72 | O92: 35111000
A93: 78 | B93: 2018-03-23 | C93: 1544.310059 | D93: 1548.72998 | E93: 1510.079956 | F93: 1510.079956 | G93: 38150800 | H93: 1510.079956 | I93: 1 | J93: 1 | K93: 1544.31 | L93: 1548.73 | M93: 1510.08 | N93: 1510.08 | O93: 38150800
A94: 79 | B94: 2018-03-22 | C94: 1576.589966 | D94: 1576.589966 | E94: 1543.869995 | F94: 1543.869995 | G94: 37398000 | H94: 1543.869995 | I94: 1 | J94: 1 | K94: 1576.59 | L94: 1576.59 | M94: 1543.87 | N94: 1543.87 | O94: 37398000
A95: 80 | B95: 2018-03-21 | C95: 1570.400024 | D95: 1587.73999 | E95: 1570.400024 | F95: 1579.300049 | G95: 34155100 | H95: 1579.300049 | I95: 1 | J95: 1 | K95: 1570.4 | L95: 1587.74 | M95: 1570.4 | N95: 1579.3 | O95: 34155100
A96: 81 | B96: 2018-03-20 | C96: 1570.849976 | D96: 1575.780029 | E96: 1566.75 | F96: 1570.410034 | G96: 32610300 | H96: 1570.410034 | I96: 1 | J96: 1 | K96: 1570.85 | L96: 1575.78 | M96: 1566.75 | N96: 1570.41 | O96: 32610300
A97: 82 | B97: 2018-03-19 | C97: 1585.829956 | D97: 1585.829956 | E97: 1553.900024 | F97: 1570.560059 | G97: 32821300 | H97: 1570.560059 | I97: 1 | J97: 1 | K97: 1585.83 | L97: 1585.83 | M97: 1553.9 | N97: 1570.56 | O97: 32821300
A98: 83 | B98: 2018-03-16 | C98: 1576.579956 | D98: 1588.920044 | E98: 1575.410034 | F98: 1586.050049 | G98: 53723400 | H98: 1586.050049 | I98: 1 | J98: 1 | K98: 1576.58 | L98: 1588.92 | M98: 1575.41 | N98: 1586.05 | O98: 53723400
A99: 84 | B99: 2018-03-15 | C99: 1584.400024 | D99: 1588.02002 | E99: 1572.160034 | F99: 1576.619995 | G99: 35003300 | H99: 1576.619995 | I99: 1 | J99: 1 | K99: 1584.4 | L99: 1588.02 | M99: 1572.16 | N99: 1576.62 | O99: 35003300
A100: 85 | B100: 2018-03-14 | C100: 1592.459961 | D100: 1598.329956 | E100: 1582.640015 | F100: 1584.310059 | G100: 33913600 | H100: 1584.310059 | I100: 1 | J100: 1 | K100: 1592.46 | L100: 1598.33 | M100: 1582.64 | N100: 1584.31 | O100: 33913600
A101: 86 | B101: 2018-03-13 | C101: 1601.650024 | D101: 1609.050049 | E101: 1590.109985 | F101: 1592.050049 | G101: 33016500 | H101: 1592.050049 | I101: 1 | J101: 1 | K101: 1601.65 | L101: 1609.05 | M101: 1590.11 | N101: 1592.05 | O101: 33016500
A102: 87 | B102: 2018-03-12 | C102: 1597.290039 | D102: 1603.790039 | E102: 1594.109985 | F102: 1601.060059 | G102: 31850200 | H102: 1601.060059 | I102: 1 | J102: 1 | K102: 1597.29 | L102: 1603.79 | M102: 1594.11 | N102: 1601.06 | O102: 31850200
A103: 88 | B103: 2018-03-09 | C103: 1573.189941 | D103: 1597.300049 | E103: 1573.189941 | F103: 1597.140015 | G103: 33641000 | H103: 1597.140015 | I103: 1 | J103: 1 | K103: 1573.19 | L103: 1597.3 | M103: 1573.19 | N103: 1597.14 | O103: 33641000
A104: 89 | B104: 2018-03-08 | C104: 1575.650024 | D104: 1580.48999 | E104: 1564.589966 | F104: 1571.969971 | G104: 32123200 | H104: 1571.969971 | I104: 1 | J104: 1 | K104: 1575.65 | L104: 1580.49 | M104: 1564.59 | N104: 1571.97 | O104: 32123200
A105: 90 | B105: 2018-03-07 | C105: 1560.969971 | D105: 1576.72998 | E105: 1550.469971 | F105: 1574.530029 | G105: 33932700 | H105: 1574.530029 | I105: 1 | J105: 1 | K105: 1560.97 | L105: 1576.73 | M105: 1550.47 | N105: 1574.53 | O105: 33932700
A106: 91 | B106: 2018-03-06 | C106: 1546.719971 | D106: 1562.199951 | E106: 1538.630005 | F106: 1562.199951 | G106: 33706900 | H106: 1562.199951 | I106: 1 | J106: 1 | K106: 1546.72 | L106: 1562.2 | M106: 1538.63 | N106: 1562.2 | O106: 33706900
A107: 92 | B107: 2018-03-05 | C107: 1531.98999 | D107: 1550.76001 | E107: 1525.079956 | F107: 1546.050049 | G107: 37108100 | H107: 1546.050049 | I107: 1 | J107: 1 | K107: 1531.99 | L107: 1550.76 | M107: 1525.08 | N107: 1546.05 | O107: 37108100
A108: 93 | B108: 2018-03-02 | C108: 1506.810059 | D108: 1535.199951 | E108: 1494 | F108: 1533.170044 | G108: 38824500 | H108: 1533.170044 | I108: 1 | J108: 1 | K108: 1506.81 | L108: 1535.2 | M108: 1494 | N108: 1533.17 | O108: 38824500
A109: 94 | B109: 2018-03-01 | C109: 1512.069946 | D109: 1522.469971 | E109: 1494.290039 | F109: 1507.390015 | G109: 45039700 | H109: 1507.390015 | I109: 1 | J109: 1 | K109: 1512.07 | L109: 1522.47 | M109: 1494.29 | N109: 1507.39 | O109: 45039700
A110: 95 | B110: 2018-02-28 | C110: 1536.800049 | D110: 1543.75 | E110: 1512.449951 | F110: 1512.449951 | G110: 42306600 | H110: 1512.449951 | I110: 1 | J110: 1 | K110: 1536.8 | L110: 1543.75 | M110: 1512.45 | N110: 1512.45 | O110: 42306600
A111: 96 | B111: 2018-02-27 | C111: 1559.27002 | D111: 1564.630005 | E111: 1536.469971 | F111: 1536.469971 | G111: 37450800 | H111: 1536.469971 | I111: 1 | J111: 1 | K111: 1559.27 | L111: 1564.63 | M111: 1536.47 | N111: 1536.47 | O111: 37450800
A112: 97 | B112: 2018-02-26 | C112: 1550.089966 | D112: 1560.73999 | E112: 1544.98999 | F112: 1559.329956 | G112: 34246500 | H112: 1559.329956 | I112: 1 | J112: 1 | K112: 1550.09 | L112: 1560.74 | M112: 1544.99 | N112: 1559.33 | O112: 34246500
A113: 98 | B113: 2018-02-23 | C113: 1531.349976 | D113: 1549.189941 | E113: 1531.349976 | F113: 1549.189941 | G113: 31891900 | H113: 1549.189941 | I113: 1 | J113: 1 | K113: 1531.35 | L113: 1549.19 | M113: 1531.35 | N113: 1549.19 | O113: 31891900
A114: 99 | B114: 2018-02-22 | C114: 1532.790039 | D114: 1548.290039 | E114: 1529.199951 | F114: 1529.98999 | G114: 37012700 | H114: 1529.98999 | I114: 1 | J114: 1 | K114: 1532.79 | L114: 1548.29 | M114: 1529.2 | N114: 1529.99 | O114: 37012700
A115: 100 | B115: 2018-02-21 | C115: 1530.47998 | D115: 1555.280029 | E115: 1530.47998 | F115: 1531.839966 | G115: 37794000 | H115: 1531.839966 | I115: 1 | J115: 1 | K115: 1530.48 | L115: 1555.28 | M115: 1530.48 | N115: 1531.84 | O115: 37794000
A116: 101 | B116: 2018-02-20 | C116: 1542.380005 | D116: 1546.430054 | E116: 1527.560059 | F116: 1529.98999 | G116: 36276100 | H116: 1529.98999 | I116: 1 | J116: 1 | K116: 1542.38 | L116: 1546.43 | M116: 1527.56 | N116: 1529.99 | O116: 36276100
A117: 102 | B117: 2018-02-16 | C117: 1536.319946 | D117: 1551.51001 | E117: 1532.219971 | F117: 1543.550049 | G117: 36374600 | H117: 1543.550049 | I117: 1 | J117: 1 | K117: 1536.32 | L117: 1551.51 | M117: 1532.22 | N117: 1543.55 | O117: 36374600
A118: 103 | B118: 2018-02-15 | C118: 1524.180054 | D118: 1537.77002 | E118: 1516.880005 | F118: 1537.199951 | G118: 36849100 | H118: 1537.199951 | I118: 1 | J118: 1 | K118: 1524.18 | L118: 1537.77 | M118: 1516.88 | N118: 1537.2 | O118: 36849100
A119: 104 | B119: 2018-02-14 | C119: 1492.76001 | D119: 1523.890015 | E119: 1483.290039 | F119: 1522.099976 | G119: 40037400 | H119: 1522.099976 | I119: 1 | J119: 1 | K119: 1492.76 | L119: 1523.89 | M119: 1483.29 | N119: 1522.1 | O119: 40037400
A120: 105 | B120: 2018-02-13 | C120: 1489.660034 | D120: 1497.02002 | E120: 1481.939941 | F120: 1494.949951 | G120: 34728700 | H120: 1494.949951 | I120: 1 | J120: 1 | K120: 1489.66 | L120: 1497.02 | M120: 1481.94 | N120: 1494.95 | O120: 34728700
A121: 106 | B121: 2018-02-12 | C121: 1479.109985 | D121: 1498.109985 | E121: 1466.880005 | F121: 1490.97998 | G121: 40557900 | H121: 1490.97998 | I121: 1 | J121: 1 | K121: 1479.11 | L121: 1498.11 | M121: 1466.88 | N121: 1490.98 | O121: 40557900
A122: 107 | B122: 2018-02-09 | C122: 1467.719971 | D122: 1487.579956 | E122: 1436.430054 | F122: 1477.839966 | G122: 56800700 | H122: 1477.839966 | I122: 1 | J122: 1 | K122: 1467.72 | L122: 1487.58 | M122: 1436.43 | N122: 1477.84 | O122: 56800700
A123: 108 | B123: 2018-02-08 | C123: 1508.449951 | D123: 1511.209961 | E123: 1463.73999 | F123: 1463.790039 | G123: 53054400 | H123: 1463.790039 | I123: 1 | J123: 1 | K123: 1508.45 | L123: 1511.21 | M123: 1463.74 | N123: 1463.79 | O123: 53054400
A124: 109 | B124: 2018-02-07 | C124: 1506.660034 | D124: 1517 | E124: 1503.319946 | F124: 1507.969971 | G124: 46265700 | H124: 1507.969971 | I124: 1 | J124: 1 | K124: 1506.66 | L124: 1517 | M124: 1503.32 | N124: 1507.97 | O124: 46265700
A125: 110 | B125: 2018-02-06 | C125: 1486.849976 | D125: 1512.97998 | E125: 1461.449951 | F125: 1507.170044 | G125: 58916600 | H125: 1507.170044 | I125: 1 | J125: 1 | K125: 1486.85 | L125: 1512.98 | M125: 1461.45 | N125: 1507.17 | O125: 58916600
A126: 111 | B126: 2018-02-05 | C126: 1544.939941 | D126: 1547.030029 | E126: 1491.060059 | F126: 1491.089966 | G126: 52834600 | H126: 1491.089966 | I126: 1 | J126: 1 | K126: 1544.94 | L126: 1547.03 | M126: 1491.06 | N126: 1491.09 | O126: 52834600
A127: 112 | B127: 2018-02-02 | C127: 1577.030029 | D127: 1577.030029 | E127: 1547.060059 | F127: 1547.27002 | G127: 43011300 | H127: 1547.27002 | I127: 1 | J127: 1 | K127: 1577.03 | L127: 1577.03 | M127: 1547.06 | N127: 1547.27 | O127: 43011300
A128: 113 | B128: 2018-02-01 | C128: 1574.72998 | D128: 1582.280029 | E128: 1568.849976 | F128: 1579.869995 | G128: 39384500 | H128: 1579.869995 | I128: 1 | J128: 1 | K128: 1574.73 | L128: 1582.28 | M128: 1568.85 | N128: 1579.87 | O128: 39384500
A129: 114 | B129: 2018-01-31 | C129: 1584.709961 | D129: 1594.27002 | E129: 1571.26001 | F129: 1574.97998 | G129: 42612800 | H129: 1574.97998 | I129: 1 | J129: 1 | K129: 1584.71 | L129: 1594.27 | M129: 1571.26 | N129: 1574.98 | O129: 42612800
A130: 115 | B130: 2018-01-30 | C130: 1595.640015 | D130: 1595.640015 | E130: 1579.48999 | F130: 1582.819946 | G130: 39906500 | H130: 1582.819946 | I130: 1 | J130: 1 | K130: 1595.64 | L130: 1595.64 | M130: 1579.49 | N130: 1582.82 | O130: 39906500
A131: 116 | B131: 2018-01-29 | C131: 1607.810059 | D131: 1607.949951 | E131: 1597.880005 | F131: 1598.109985 | G131: 35738300 | H131: 1598.109985 | I131: 1 | J131: 1 | K131: 1607.81 | L131: 1607.95 | M131: 1597.88 | N131: 1598.11 | O131: 35738300
A132: 117 | B132: 2018-01-26 | C132: 1602.969971 | D132: 1608.060059 | E132: 1599.5 | F132: 1608.060059 | G132: 34432300 | H132: 1608.060059 | I132: 1 | J132: 1 | K132: 1602.97 | L132: 1608.06 | M132: 1599.5 | N132: 1608.06 | O132: 34432300
A133: 118 | B133: 2018-01-25 | C133: 1601.589966 | D133: 1607.790039 | E133: 1594.420044 | F133: 1601.670044 | G133: 38351500 | H133: 1601.670044 | I133: 1 | J133: 1 | K133: 1601.59 | L133: 1607.79 | M133: 1594.42 | N133: 1601.67 | O133: 38351500
A134: 119 | B134: 2018-01-24 | C134: 1611.689941 | D134: 1615.52002 | E134: 1595.939941 | F134: 1601.77002 | G134: 39940700 | H134: 1601.77002 | I134: 1 | J134: 1 | K134: 1611.69 | L134: 1615.52 | M134: 1595.94 | N134: 1601.77 | O134: 39940700
A135: 120 | B135: 2018-01-23 | C135: 1604.939941 | D135: 1612.550049 | E135: 1599.209961 | F135: 1610.709961 | G135: 35196500 | H135: 1610.709961 | I135: 1 | J135: 1 | K135: 1604.94 | L135: 1612.55 | M135: 1599.21 | N135: 1610.71 | O135: 35196500
A136: 121 | B136: 2018-01-22 | C136: 1598.140015 | D136: 1605.170044 | E136: 1595.550049 | F136: 1605.170044 | G136: 34717800 | H136: 1605.170044 | I136: 1 | J136: 1 | K136: 1598.14 | L136: 1605.17 | M136: 1595.55 | N136: 1605.17 | O136: 34717800
A137: 122 | B137: 2018-01-19 | C137: 1576.5 | D137: 1597.630005 | E137: 1575.319946 | F137: 1597.630005 | G137: 36094300 | H137: 1597.630005 | I137: 1 | J137: 1 | K137: 1576.5 | L137: 1597.63 | M137: 1575.32 | N137: 1597.63 | O137: 36094300
A138: 123 | B138: 2018-01-18 | C138: 1586.310059 | D138: 1586.310059 | E138: 1576.410034 | F138: 1576.72998 | G138: 36814700 | H138: 1576.72998 | I138: 1 | J138: 1 | K138: 1586.31 | L138: 1586.31 | M138: 1576.41 | N138: 1576.73 | O138: 36814700
A139: 124 | B139: 2018-01-17 | C139: 1573.72998 | D139: 1589.130005 | E139: 1573.72998 | F139: 1586.660034 | G139: 37780500 | H139: 1586.660034 | I139: 1 | J139: 1 | K139: 1573.73 | L139: 1589.13 | M139: 1573.73 | N139: 1586.66 | O139: 37780500
A140: 125 | B140: 2018-01-16 | C140: 1592.910034 | D140: 1604.02002 | E140: 1570.75 | F140: 1572.969971 | G140: 43259700 | H140: 1572.969971 | I140: 1 | J140: 1 | K140: 1592.91 | L140: 1604.02 | M140: 1570.75 | N140: 1572.97 | O140: 43259700
A141: 126 | B141: 2018-01-12 | C141: 1587.119995 | D141: 1598.180054 | E141: 1587.119995 | F141: 1591.969971 | G141: 35739700 | H141: 1591.969971 | I141: 1 | J141: 1 | K141: 1587.12 | L141: 1598.18 | M141: 1587.12 | N141: 1591.97 | O141: 35739700
A142: 127 | B142: 2018-01-11 | C142: 1560.219971 | D142: 1586.790039 | E142: 1560.219971 | F142: 1586.790039 | G142: 36413200 | H142: 1586.790039 | I142: 1 | J142: 1 | K142: 1560.22 | L142: 1586.79 | M142: 1560.22 | N142: 1586.79 | O142: 36413200
A143: 128 | B143: 2018-01-10 | C143: 1559.01001 | D143: 1561.910034 | E143: 1551.52002 | F143: 1559.800049 | G143: 35763500 | H143: 1559.800049 | I143: 1 | J143: 1 | K143: 1559.01 | L143: 1561.91 | M143: 1551.52 | N143: 1559.8 | O143: 35763500
A144: 129 | B144: 2018-01-09 | C144: 1562.219971 | D144: 1565.579956 | E144: 1558.859985 | F144: 1560.099976 | G144: 34534800 | H144: 1560.099976 | I144: 1 | J144: 1 | K144: 1562.22 | L144: 1565.58 | M144: 1558.86 | N144: 1560.1 | O144: 34534800
A145: 130 | B145: 2018-01-08 | C145: 1559.800049 | D145: 1562.98999 | E145: 1548.22998 | F145: 1561.810059 | G145: 32426500 | H145: 1561.810059 | I145: =IF(F145=0,1,H145/F145) -> 1 | J145: =INDEX(OFFSET($T$15,0,0,$S$13+1,1),MATCH(B145,OFFSET($Q$15,0,0,$S$13+1,1),-1)) -> 1 | K145: =ROUND($I145*C145,2) -> 1559.8 | L145: =ROUND($I145*D145,2) -> 1562.99 | M145: =ROUND($I145*E145,2) -> 1548.23 | N145: =ROUND($I145*F145,2) -> 1561.81 | O145: =G145*J145 -> 32426500
A146: 131 | B146: 2018-01-05 | C146: 1555.869995 | D146: 1560.069946 | E146: 1552.130005 | F146: 1560.01001 | G146: 32366200 | H146: 1560.01001 | I146: 1 | J146: 1 | K146: 1555.87 | L146: 1560.07 | M146: 1552.13 | N146: 1560.01 | O146: 32366200
A147: 132 | B147: 2018-01-04 | C147: 1552.97998 | D147: 1560.839966 | E147: 1552.369995 | F147: 1555.719971 | G147: 36952600 | H147: 1555.719971 | I147: 1 | J147: 1 | K147: 1552.98 | L147: 1560.84 | M147: 1552.37 | N147: 1555.72 | O147: 36952600
A148: 133 | B148: 2018-01-03 | C148: 1550.280029 | D148: 1555.079956 | E148: 1547.589966 | F148: 1552.579956 | G148: 35386600 | H148: 1552.579956 | I148: 1 | J148: 1 | K148: 1550.28 | L148: 1555.08 | M148: 1547.59 | N148: 1552.58 | O148: 35386600
A149: 134 | B149: 2018-01-02 | C149: 1536.119995 | D149: 1550.300049 | E149: 1536.119995 | F149: 1550.01001 | G149: 33572500 | H149: 1550.01001 | I149: 1 | J149: 1 | K149: 1536.12 | L149: 1550.3 | M149: 1536.12 | N149: 1550.01 | O149: 33572500
A150: 135 | B150: 2017-12-29 | C150: 1549.060059 | D150: 1551.939941 | E150: 1535.51001 | F150: 1535.51001 | G150: 24434900 | H150: 1535.51001 | I150: 1 | J150: 1 | K150: 1549.06 | L150: 1551.94 | M150: 1535.51 | N150: 1535.51 | O150: 24434900
A151: 136 | B151: 2017-12-28 | C151: 1544.050049 | D151: 1549.040039 | E151: 1542.52002 | F151: 1548.930054 | G151: 21533300 | H151: 1548.930054 | I151: 1 | J151: 1 | K151: 1544.05 | L151: 1549.04 | M151: 1542.52 | N151: 1548.93 | O151: 21533300
A152: 137 | B152: 2017-12-27 | C152: 1544.390015 | D152: 1550.619995 | E152: 1541.949951 | F152: 1543.939941 | G152: 22020800 | H152: 1543.939941 | I152: 1 | J152: 1 | K152: 1544.39 | L152: 1550.62 | M152: 1541.95 | N152: 1543.94 | O152: 22020800
A153: 138 | B153: 2017-12-26 | C153: 1542.73999 | D153: 1546.589966 | E153: 1541.209961 | F153: 1544.22998 | G153: 19687800 | H153: 1544.22998 | I153: 1 | J153: 1 | K153: 1542.74 | L153: 1546.59 | M153: 1541.21 | N153: 1544.23 | O153: 19687800
A154: 139 | B154: 2017-12-22 | C154: 1547.23999 | D154: 1548.25 | E154: 1541.699951 | F154: 1542.930054 | G154: 23998300 | H154: 1542.930054 | I154: 1 | J154: 1 | K154: 1547.24 | L154: 1548.25 | M154: 1541.7 | N154: 1542.93 | O154: 23998300
A155: 140 | B155: 2017-12-21 | C155: 1540.459961 | D155: 1551.209961 | E155: 1540.459961 | F155: 1547.109985 | G155: 32733900 | H155: 1547.109985 | I155: 1 | J155: 1 | K155: 1540.46 | L155: 1551.21 | M155: 1540.46 | N155: 1547.11 | O155: 32733900
A156: 141 | B156: 2017-12-20 | C156: 1538.73999 | D156: 1544.349976 | E156: 1536.22998 | F156: 1540.079956 | G156: 32410300 | H156: 1540.079956 | I156: 1 | J156: 1 | K156: 1538.74 | L156: 1544.35 | M156: 1536.23 | N156: 1540.08 | O156: 32410300
A157: 142 | B157: 2017-12-19 | C157: 1549.319946 | D157: 1552.209961 | E157: 1535.910034 | F157: 1536.75 | G157: 33685900 | H157: 1536.75 | I157: 1 | J157: 1 | K157: 1549.32 | L157: 1552.21 | M157: 1535.91 | N157: 1536.75 | O157: 33685900
A158: 143 | B158: 2017-12-18 | C158: 1530.810059 | D158: 1552.319946 | E158: 1530.810059 | F158: 1548.920044 | G158: 37246600 | H158: 1548.920044 | I158: 1 | J158: 1 | K158: 1530.81 | L158: 1552.32 | M158: 1530.81 | N158: 1548.92 | O158: 37246600
A159: 144 | B159: 2017-12-15 | C159: 1507.680054 | D159: 1538.060059 | E159: 1507.680054 | F159: 1530.420044 | G159: 57239200 | H159: 1530.420044 | I159: 1 | J159: 1 | K159: 1507.68 | L159: 1538.06 | M159: 1507.68 | N159: 1530.42 | O159: 57239200
A160: 145 | B160: 2017-12-14 | C160: 1524.540039 | D160: 1527 | E160: 1504.890015 | F160: 1506.949951 | G160: 34300300 | H160: 1506.949951 | I160: 1 | J160: 1 | K160: 1524.54 | L160: 1527 | M160: 1504.89 | N160: 1506.95 | O160: 34300300
A161: 146 | B161: 2017-12-13 | C161: 1516.189941 | D161: 1532.380005 | E161: 1516.079956 | F161: 1524.449951 | G161: 35423700 | H161: 1524.449951 | I161: 1 | J161: 1 | K161: 1516.19 | L161: 1532.38 | M161: 1516.08 | N161: 1524.45 | O161: 35423700
A162: 147 | B162: 2017-12-12 | C162: 1520.060059 | D162: 1525.109985 | E162: 1515.949951 | F162: 1516.119995 | G162: 35556800 | H162: 1516.119995 | I162: 1 | J162: 1 | K162: 1520.06 | L162: 1525.11 | M162: 1515.95 | N162: 1516.12 | O162: 35556800
A163: 148 | B163: 2017-12-11 | C163: 1522.099976 | D163: 1527.469971 | E163: 1518.300049 | F163: 1519.839966 | G163: 30919500 | H163: 1519.839966 | I163: 1 | J163: 1 | K163: 1522.1 | L163: 1527.47 | M163: 1518.3 | N163: 1519.84 | O163: 30919500
A164: 149 | B164: 2017-12-08 | C164: 1521.780029 | D164: 1529 | E164: 1520.880005 | F164: 1521.719971 | G164: 31061500 | H164: 1521.719971 | I164: 1 | J164: 1 | K164: 1521.78 | L164: 1529 | M164: 1520.88 | N164: 1521.72 | O164: 31061500
A165: 150 | B165: 2017-12-07 | C165: 1508.930054 | D165: 1524 | E165: 1508.150024 | F165: 1520.469971 | G165: 32924000 | H165: 1520.469971 | I165: 1 | J165: 1 | K165: 1508.93 | L165: 1524 | M165: 1508.15 | N165: 1520.47 | O165: 32924000
A166: 151 | B166: 2017-12-06 | C166: 1516.359985 | D166: 1516.540039 | E166: 1508.130005 | F166: 1508.880005 | G166: 32290000 | H166: 1508.880005 | I166: 1 | J166: 1 | K166: 1516.36 | L166: 1516.54 | M166: 1508.13 | N166: 1508.88 | O166: 32290000
A167: 152 | B167: 2017-12-05 | C167: 1532.719971 | D167: 1534.01001 | E167: 1516.75 | F167: 1516.76001 | G167: 35390400 | H167: 1516.76001 | I167: 1 | J167: 1 | K167: 1532.72 | L167: 1534.01 | M167: 1516.75 | N167: 1516.76 | O167: 35390400
A168: 153 | B168: 2017-12-04 | C168: 1539.27002 | D168: 1559.609985 | E168: 1531.72998 | F168: 1532.410034 | G168: 40231500 | H168: 1532.410034 | I168: 1 | J168: 1 | K168: 1539.27 | L168: 1559.61 | M168: 1531.73 | N168: 1532.41 | O168: 40231500
A169: 154 | B169: 2017-12-01 | C169: 1544.099976 | D169: 1544.920044 | E169: 1498.780029 | F169: 1537.02002 | G169: 39423200 | H169: 1537.02002 | I169: 1 | J169: 1 | K169: 1544.1 | L169: 1544.92 | M169: 1498.78 | N169: 1537.02 | O169: 39423200
A170: 155 | B170: 2017-11-30 | C170: 1542.619995 | D170: 1551.689941 | E170: 1541.209961 | F170: 1544.140015 | G170: 49384900 | H170: 1544.140015 | I170: 1 | J170: 1 | K170: 1542.62 | L170: 1551.69 | M170: 1541.21 | N170: 1544.14 | O170: 49384900
A171: 156 | B171: 2017-11-29 | C171: 1536.819946 | D171: 1547.27002 | E171: 1536.819946 | F171: 1542.300049 | G171: 40782800 | H171: 1542.300049 | I171: 1 | J171: 1 | K171: 1536.82 | L171: 1547.27 | M171: 1536.82 | N171: 1542.3 | O171: 40782800
A172: 157 | B172: 2017-11-28 | C172: 1514.150024 | D172: 1536.630005 | E172: 1514.150024 | F172: 1536.430054 | G172: 34884200 | H172: 1536.430054 | I172: 1 | J172: 1 | K172: 1514.15 | L172: 1536.63 | M172: 1514.15 | N172: 1536.43 | O172: 34884200
A173: 158 | B173: 2017-11-27 | C173: 1519.170044 | D173: 1522.030029 | E173: 1513.189941 | F173: 1513.310059 | G173: 30068600 | H173: 1513.310059 | I173: 1 | J173: 1 | K173: 1519.17 | L173: 1522.03 | M173: 1513.19 | N173: 1513.31 | O173: 30068600
A174: 159 | B174: 2017-11-24 | C174: 1517.410034 | D174: 1521.380005 | E174: 1516.52002 | F174: 1519.160034 | G174: 13497800 | H174: 1519.160034 | I174: 1 | J174: 1 | K174: 1517.41 | L174: 1521.38 | M174: 1516.52 | N174: 1519.16 | O174: 13497800
A175: 160 | B175: 2017-11-22 | C175: 1518.97998 | D175: 1524.180054 | E175: 1516.76001 | F175: 1516.76001 | G175: 27629500 | H175: 1516.76001 | I175: 1 | J175: 1 | K175: 1518.98 | L175: 1524.18 | M175: 1516.76 | N175: 1516.76 | O175: 27629500
A176: 161 | B176: 2017-11-21 | C176: 1503.449951 | D176: 1519.530029 | E176: 1503.449951 | F176: 1518.890015 | G176: 33327200 | H176: 1518.890015 | I176: 1 | J176: 1 | K176: 1503.45 | L176: 1519.53 | M176: 1503.45 | N176: 1518.89 | O176: 33327200
A177: 162 | B177: 2017-11-20 | C177: 1492.930054 | D177: 1503.400024 | E177: 1492.930054 | F177: 1503.400024 | G177: 30035400 | H177: 1503.400024 | I177: 1 | J177: 1 | K177: 1492.93 | L177: 1503.4 | M177: 1492.93 | N177: 1503.4 | O177: 30035400
A178: 163 | B178: 2017-11-17 | C178: 1485.699951 | D178: 1496.859985 | E178: 1481.089966 | F178: 1492.819946 | G178: 33001600 | H178: 1492.819946 | I178: 1 | J178: 1 | K178: 1485.7 | L178: 1496.86 | M178: 1481.09 | N178: 1492.82 | O178: 33001600
A179: 164 | B179: 2017-11-16 | C179: 1464.969971 | D179: 1490.969971 | E179: 1464.969971 | F179: 1486.880005 | G179: 33127100 | H179: 1486.880005 | I179: 1 | J179: 1 | K179: 1464.97 | L179: 1490.97 | M179: 1464.97 | N179: 1486.88 | O179: 33127100
A180: 165 | B180: 2017-11-15 | C180: 1470.900024 | D180: 1470.900024 | E180: 1454.170044 | F180: 1464.089966 | G180: 35588900 | H180: 1464.089966 | I180: 1 | J180: 1 | K180: 1470.9 | L180: 1470.9 | M180: 1454.17 | N180: 1464.09 | O180: 35588900
A181: 166 | B181: 2017-11-14 | C181: 1474.27002 | D181: 1474.27002 | E181: 1465.380005 | F181: 1471.26001 | G181: 36417600 | H181: 1471.26001 | I181: 1 | J181: 1 | K181: 1474.27 | L181: 1474.27 | M181: 1465.38 | N181: 1471.26 | O181: 36417600
A182: 167 | B182: 2017-11-13 | C182: 1474.439941 | D182: 1476.680054 | E182: 1466.089966 | F182: 1475.069946 | G182: 34029300 | H182: 1475.069946 | I182: 1 | J182: 1 | K182: 1474.44 | L182: 1476.68 | M182: 1466.09 | N182: 1475.07 | O182: 34029300
A183: 168 | B183: 2017-11-10 | C183: 1474.920044 | D183: 1479.109985 | E183: 1473.140015 | F183: 1475.27002 | G183: 34869100 | H183: 1475.27002 | I183: 1 | J183: 1 | K183: 1474.92 | L183: 1479.11 | M183: 1473.14 | N183: 1475.27 | O183: 34869100
A184: 169 | B184: 2017-11-09 | C184: 1481.290039 | D184: 1481.619995 | E184: 1463.48999 | F184: 1475.02002 | G184: 38316100 | H184: 1475.02002 | I184: 1 | J184: 1 | K184: 1481.29 | L184: 1481.62 | M184: 1463.49 | N184: 1475.02 | O184: 38316100
A185: 170 | B185: 2017-11-08 | C185: 1477.949951 | D185: 1482.859985 | E185: 1469.339966 | F185: 1481.72998 | G185: 38993600 | H185: 1481.72998 | I185: 1 | J185: 1 | K185: 1477.95 | L185: 1482.86 | M185: 1469.34 | N185: 1481.73 | O185: 38993600
A186: 171 | B186: 2017-11-07 | C186: 1497.97998 | D186: 1498 | E186: 1476.719971 | F186: 1479.089966 | G186: 38096500 | H186: 1479.089966 | I186: 1 | J186: 1 | K186: 1497.98 | L186: 1498 | M186: 1476.72 | N186: 1479.09 | O186: 38096500
A187: 172 | B187: 2017-11-06 | C187: 1495.030029 | D187: 1501.48999 | E187: 1494.73999 | F187: 1497.959961 | G187: 35390800 | H187: 1497.959961 | I187: 1 | J187: 1 | K187: 1495.03 | L187: 1501.49 | M187: 1494.74 | N187: 1497.96 | O187: 35390800
A188: 173 | B188: 2017-11-03 | C188: 1496.319946 | D188: 1497.140015 | E188: 1490.660034 | F188: 1494.910034 | G188: 35677100 | H188: 1494.910034 | I188: 1 | J188: 1 | K188: 1496.32 | L188: 1497.14 | M188: 1490.66 | N188: 1494.91 | O188: 35677100
A189: 174 | B189: 2017-11-02 | C189: 1492.900024 | D189: 1499.939941 | E189: 1487.72998 | F189: 1496.550049 | G189: 40482700 | H189: 1496.550049 | I189: 1 | J189: 1 | K189: 1492.9 | L189: 1499.94 | M189: 1487.73 | N189: 1496.55 | O189: 40482700
A190: 175 | B190: 2017-11-01 | C190: 1504.540039 | D190: 1512.400024 | E190: 1485.130005 | F190: 1492.780029 | G190: 38131800 | H190: 1492.780029 | I190: 1 | J190: 1 | K190: 1504.54 | L190: 1512.4 | M190: 1485.13 | N190: 1492.78 | O190: 38131800
A191: 176 | B191: 2017-10-31 | C191: 1491.439941 | D191: 1506.780029 | E191: 1491.439941 | F191: 1502.530029 | G191: 38272300 | H191: 1502.530029 | I191: 1 | J191: 1 | K191: 1491.44 | L191: 1506.78 | M191: 1491.44 | N191: 1502.53 | O191: 38272300
A192: 177 | B192: 2017-10-30 | C192: 1507.47998 | D192: 1507.47998 | E192: 1484.819946 | F192: 1490.900024 | G192: 36588700 | H192: 1490.900024 | I192: 1 | J192: 1 | K192: 1507.48 | L192: 1507.48 | M192: 1484.82 | N192: 1490.9 | O192: 36588700
A193: 178 | B193: 2017-10-27 | C193: 1497.540039 | D193: 1508.319946 | E193: 1493.48999 | F193: 1508.319946 | G193: 38871100 | H193: 1508.319946 | I193: 1 | J193: 1 | K193: 1497.54 | L193: 1508.32 | M193: 1493.49 | N193: 1508.32 | O193: 38871100
A194: 179 | B194: 2017-10-26 | C194: 1494.109985 | D194: 1501.359985 | E194: 1494.109985 | F194: 1497.459961 | G194: 38690500 | H194: 1497.459961 | I194: 1 | J194: 1 | K194: 1494.11 | L194: 1501.36 | M194: 1494.11 | N194: 1497.46 | O194: 38690500
A195: 180 | B195: 2017-10-25 | C195: 1500.25 | D195: 1500.420044 | E195: 1482.530029 | F195: 1493.47998 | G195: 38745100 | H195: 1493.47998 | I195: 1 | J195: 1 | K195: 1500.25 | L195: 1500.42 | M195: 1482.53 | N195: 1493.48 | O195: 38745100
A196: 181 | B196: 2017-10-24 | C196: 1498.189941 | D196: 1505.569946 | E196: 1498.189941 | F196: 1500.420044 | G196: 34273300 | H196: 1500.420044 | I196: 1 | J196: 1 | K196: 1498.19 | L196: 1505.57 | M196: 1498.19 | N196: 1500.42 | O196: 34273300
A197: 182 | B197: 2017-10-23 | C197: 1509.670044 | D197: 1511.47998 | E197: 1497.339966 | F197: 1497.48999 | G197: 32117100 | H197: 1497.48999 | I197: 1 | J197: 1 | K197: 1509.67 | L197: 1511.48 | M197: 1497.34 | N197: 1497.49 | O197: 32117100
A198: 183 | B198: 2017-10-20 | C198: 1504.719971 | D198: 1512.75 | E198: 1504.719971 | F198: 1509.25 | G198: 33846500 | H198: 1509.25 | I198: 1 | J198: 1 | K198: 1504.72 | L198: 1512.75 | M198: 1504.72 | N198: 1509.25 | O198: 33846500
A199: 184 | B199: 2017-10-19 | C199: 1502.969971 | D199: 1505.140015 | E199: 1491.380005 | F199: 1502.040039 | G199: 29907100 | H199: 1502.040039 | I199: 1 | J199: 1 | K199: 1502.97 | L199: 1505.14 | M199: 1491.38 | N199: 1502.04 | O199: 29907100
A200: 185 | B200: 2017-10-18 | C200: 1497.97998 | D200: 1507.839966 | E200: 1497.97998 | F200: 1505.140015 | G200: 29980900 | H200: 1505.140015 | I200: 1 | J200: 1 | K200: 1497.98 | L200: 1507.84 | M200: 1497.98 | N200: 1505.14 | O200: 29980900
... 4300 more rows

Sheet CalculationsAndCharts
A1: Weekly & Daily Stochastics
A2: =InputPriceData!A1 -> Russell 2000 (^RUT) -Chicago Options (Daily)
A4: User Charting Controls | E4: Click to Shift Chart One Bar:
A5: Data Control
A6: =InputPriceData!$B$10 -> 7774 | B6: Available Input Data Rows | E6: Earliest: | F6: =OFFSET(InputPriceData!B15,CalculationsAndCharts!A6,0,1,1) -> 1987-09-10
B7: Use Close Adjusted: | C7: TRUE | E7: Latest: | F7: =OFFSET(InputPriceData!B15,1,0,1,1) -> 2018-07-13
A8: =MIN(A6-A11,LOOKUP(2,1/(B:B<>0),ROW(A:A))-32) -> 1000 | B8: Logically Available for Calc / Plot | E8: $ Change: | F8: =G33-G34 -> -2.98
F10: Y-axis Range
A11: 706 | B11: Input Data Offset (Pan) | E11: Max High+ | F11: =CEILING(MAX(MAX(OFFSET($E$33,0,0,$A$12,1)))+2*F14,0.1) -> 1315.4
A12: 139 | B12: Data Points to Plot (Zoom) | E12: Min Low- | F12: =FLOOR(MIN(MIN(OFFSET($F$33,0,0,$A$12,1)))-2*F14,0.1) -> 1083.1
B13: First: | C13: =OFFSET(B32,A12,0,1,1) -> 2015-03-09 | E13: White space %: | F13: 0.05
B14: ="Last: " & IF(OFFSET(InputPriceData!P15,1+A11,0,1,1)="","",TEXT(OFFSET(InputPriceData!P15,1+A11,0,1,1),"H:MM AM/PM")) -> Last: | C14: =B33 -> 2015-09-23 | E14: Allowance: | F14: =FLOOR((CEILING(MAX(MAX(OFFSET($E$33,0,0,$A$12,1))),1)-FLOOR(MIN(MIN(OFFSET($F$33,0,0,$A$12,1))),1))*F13,0.01) -> 9.7
A15: User Controls for Consolidation Tests
A17: Stochastic Controls | C17: Price SMA
A18: Daily | B18: 14 | C18: 200
B19: 3
A20: Weekly | B20: 70
B21: 3
A25: Help! I would like to plot data
A26: From | B26: 2015-03-09 | C26: =OFFSET(InputPriceData!$A$15,MATCH(B26,OFFSET(InputPriceData!B15,1,0,InputPriceData!$B$10,1),0),0,1,1)-C27 -> 139 | E26: 110
A27: To | B27: 2015-09-23 | C27: =OFFSET(InputPriceData!$A$15,MATCH(B27,OFFSET(InputPriceData!$B$15,1,0,InputPriceData!$B$10,1),0),0,1,1)-1 -> 706 | E27: =$A$12-$E$26+1 -> 30
H28: @ Cursor => | I28: =OFFSET(A32,$E$27,0,1,1)&"(RR)" -> 30(RR) | J28: =OFFSET($B$32,E27,0,1,1) -> 2015-08-12 | K28: =TEXT(OFFSET(D32,$E$27,0,1,1),"#,##0.00")&"(o)" -> 1,203.17(o) | L28: =TEXT(OFFSET(E32,$E$27,0,1,1),"#,##0.00")&"(h)" -> 1,210.98(h) | M28: =TEXT(OFFSET(F32,$E$27,0,1,1),"#,##0.00")&"(l)" -> 1,189.42(l) | N28: =TEXT(OFFSET(G32,$E$27,0,1,1),"#,##0.00")&"(c)" -> 1,208.98(c)
E29: Cursor ==> | AU29: Chart Cursor work area
A31: Rel Row | H31: Daily Stoch Calcs | J31: ="StocD (" & $B$18 & ")" -> StocD (14) | K31: ="Daily Stoch ("&$B$18&", "&$B$19& ")" -> Daily Stoch (14, 3) | L31: Weekly Stoch Calcs | N31: ="StocW (" & $B$20 & ")" -> StocW (70) | O31: ="Weekly Stoch ("&$B$20&", "&$B$21& ")" -> Weekly Stoch (70, 3) | P31: 20 | Q31: 50 | R31: 80 | AP31: Used To Color Vol Bars
B32: Date | C32: Volume | D32: Open | E32: High | F32: Low | G32: Close | H32: ="HHV(" & $B$18 & ")" -> HHV(14) | I32: ="LLV(" & $B$18 & ")" -> LLV(14) | L32: ="HHV(" & $B$20 & ")" -> HHV(70) | M32: ="LLV(" & $B$20 & ")" -> LLV(70) | P32: Osold | Q32: Mid | R32: Obot | S32: ="SMA("&$C$18&")" -> SMA(200) | AP32: Up Vol | AQ32: Dn Vol | AU32: Volume Cursor | AV32: =MAX(OFFSET(C33,0,0,A12,1)) -> 66126900 | AW32: Stochastic Cursor | AY32: Price Chart Cursor
A33: 1 | B33: =OFFSET(InputPriceData!B$15,CalculationsAndCharts!$A33+$A$11,0,1,1) -> 2015-09-23 | C33: =OFFSET(InputPriceData!G$15,CalculationsAndCharts!$A33+$A$11,IF($C$7,8,0),1,1) -> 31905300 | D33: =OFFSET(InputPriceData!C$15,CalculationsAndCharts!$A33+$A$11,IF($C$7,8,0),1,1) -> 1143.41 | E33: =OFFSET(InputPriceData!D$15,CalculationsAndCharts!$A33+$A$11,IF($C$7,8,0),1,1) -> 1149.22 | F33: =OFFSET(InputPriceData!E$15,CalculationsAndCharts!$A33+$A$11,IF($C$7,8,0),1,1) -> 1137.41 | G33: =OFFSET(InputPriceData!F$15,CalculationsAndCharts!$A33+$A$11,IF($C$7,8,0),1,1) -> 1140.05 | H33: =MAX(OFFSET($E33,0,0,$B$18,1)) -> 1193.99 | I33: =MIN(OFFSET($F33,0,0,$B$18,1)) -> 1130.75 | J33: =($G33-I33)/(H33-I33)*100 -> 14.70588235 | K33: =AVERAGE(OFFSET(J33,0,0,$B$19,1)) -> 30.03526662 | L33: =MAX(OFFSET($E33,0,0,$B$20,1)) -> 1296 | M33: =MIN(OFFSET($F33,0,0,$B$20,1)) -> 1102.58 | N33: =($G33-M33)/(L33-M33)*100 -> 19.37235033 | O33: =AVERAGE(OFFSET(N33,0,0,$B$21,1)) -> 23.51187399 | P33: =$P$31 -> 20 | Q33: =$Q$31 -> 50 | R33: =$R$31 -> 80 | S33: =AVERAGE(OFFSET(G33,0,0,$C$18,1)) -> 1220.81885 | AP33: =IF(G33>=D33,C33,NA()) ->  | AQ33: =IF(G33<D33,C33,NA()) -> 31905300 | AU33: =$E$27 -> 30 | AV33: 0 | AW33: =$E$27 -> 30 | AX33: 0 | AY33: =E27 -> 30 | AZ33: 1075.0155
A34: 2 | B34: =OFFSET(InputPriceData!B$15,CalculationsAndCharts!$A34+$A$11,0,1,1) -> 2015-09-22 | C34: =OFFSET(InputPriceData!G$15,CalculationsAndCharts!$A34+$A$11,IF($C$7,8,0),1,1) -> 38082600 | D34: =OFFSET(InputPriceData!C$15,CalculationsAndCharts!$A34+$A$11,IF($C$7,8,0),1,1) -> 1158.42 | E34: =OFFSET(InputPriceData!D$15,CalculationsAndCharts!$A34+$A$11,IF($C$7,8,0),1,1) -> 1158.42 | F34: =OFFSET(InputPriceData!E$15,CalculationsAndCharts!$A34+$A$11,IF($C$7,8,0),1,1) -> 1137.7 | G34: =OFFSET(InputPriceData!F$15,CalculationsAndCharts!$A34+$A$11,IF($C$7,8,0),1,1) -> 1143.03 | H34: =MAX(OFFSET($E34,0,0,$B$18,1)) -> 1193.99 | I34: =MIN(OFFSET($F34,0,0,$B$18,1)) -> 1128.05 | J34: =($G34-I34)/(H34-I34)*100 -> 22.71762208 | K34: =AVERAGE(OFFSET(J34,0,0,$B$19,1)) -> 43.77753614 | L34: =MAX(OFFSET($E34,0,0,$B$20,1)) -> 1296 | M34: =MIN(OFFSET($F34,0,0,$B$20,1)) -> 1102.58 | N34: =($G34-M34)/(L34-M34)*100 -> 20.91303898 | O34: =AVERAGE(OFFSET(N34,0,0,$B$21,1)) -> 27.52731534 | P34: =$P$31 -> 20 | Q34: =$Q$31 -> 50 | R34: =$R$31 -> 80 | S34: =AVERAGE(OFFSET(G34,0,0,$C$18,1)) -> 1221.03075 | AP34: =IF(G34>=D34,C34,NA()) ->  | AQ34: =IF(G34<D34,C34,NA()) -> 38082600 | AU34: =$E$27 -> 30 | AV34: =CEILING(AV32,10^INT(LOG10(AV32))) -> 70000000 | AW34: =$E$27 -> 30 | AX34: 100 | AY34: =E27 -> 30 | AZ34: 1328.4
A35: 3 | B35: =OFFSET(InputPriceData!B$15,CalculationsAndCharts!$A35+$A$11,0,1,1) -> 2015-09-21 | C35: =OFFSET(InputPriceData!G$15,CalculationsAndCharts!$A35+$A$11,IF($C$7,8,0),1,1) -> 32593500 | D35: =OFFSET(InputPriceData!C$15,CalculationsAndCharts!$A35+$A$11,IF($C$7,8,0),1,1) -> 1165.04 | E35: =OFFSET(InputPriceData!D$15,CalculationsAndCharts!$A35+$A$11,IF($C$7,8,0),1,1) -> 1177.96 | F35: =OFFSET(InputPriceData!E$15,CalculationsAndCharts!$A35+$A$11,IF($C$7,8,0),1,1) -> 1158.1 | G35: =OFFSET(InputPriceData!F$15,CalculationsAndCharts!$A35+$A$11,IF($C$7,8,0),1,1) -> 1161.09 | H35: 1193.99 | I35: 1124.46 | J35: 52.68229541 | K35: 63.16218419 | L35: 1296 | M35: 1102.58 | N35: 30.25023265 | O35: 34.01750939 | P35: 20 | Q35: 50 | R35: 80 | S35: 1221.18065 | AP35: =IF(G35>=D35,C35,NA()) ->  | AQ35: =IF(G35<D35,C35,NA()) -> 32593500
A36: 4 | B36: =OFFSET(InputPriceData!B$15,CalculationsAndCharts!$A36+$A$11,0,1,1) -> 2015-09-18 | C36: =OFFSET(InputPriceData!G$15,CalculationsAndCharts!$A36+$A$11,IF($C$7,8,0),1,1) -> 60002400 | D36: =OFFSET(InputPriceData!C$15,CalculationsAndCharts!$A36+$A$11,IF($C$7,8,0),1,1) -> 1175.34 | E36: =OFFSET(InputPriceData!D$15,CalculationsAndCharts!$A36+$A$11,IF($C$7,8,0),1,1) -> 1175.34 | F36: =OFFSET(InputPriceData!E$15,CalculationsAndCharts!$A36+$A$11,IF($C$7,8,0),1,1) -> 1160.66 | G36: =OFFSET(InputPriceData!F$15,CalculationsAndCharts!$A36+$A$11,IF($C$7,8,0),1,1) -> 1163.35 | H36: 1193.99 | I36: 1124.46 | J36: 55.93269092 | K36: 78.48754259 | L36: 1296 | M36: 1102.58 | N36: 31.41867439 | O36: 36.44917795 | P36: 20 | Q36: 50 | R36: 80 | S36: 1221.27025 | AP36: =IF(G36>=D36,C36,NA()) ->  | AQ36: =IF(G36<D36,C36,NA()) -> 60002400
A37: 5 | B37: =OFFSET(InputPriceData!B$15,CalculationsAndCharts!$A37+$A$11,0,1,1) -> 2015-09-17 | C37: =OFFSET(InputPriceData!G$15,CalculationsAndCharts!$A37+$A$11,IF($C$7,8,0),1,1) -> 41837900 | D37: =OFFSET(InputPriceData!C$15,CalculationsAndCharts!$A37+$A$11,IF($C$7,8,0),1,1) -> 1175.09 | E37: =OFFSET(InputPriceData!D$15,CalculationsAndCharts!$A37+$A$11,IF($C$7,8,0),1,1) -> 1193.99 | F37: =OFFSET(InputPriceData!E$15,CalculationsAndCharts!$A37+$A$11,IF($C$7,8,0),1,1) -> 1173.7 | G37: =OFFSET(InputPriceData!F$15,CalculationsAndCharts!$A37+$A$11,IF($C$7,8,0),1,1) -> 1180.69 | H37: 1193.99 | I37: 1124.46 | J37: 80.87156623 | K37: 91.10625224 | L37: 1296 | M37: 1102.58 | N37: 40.38362114 | O37: 36.90586978 | P37: 20 | Q37: 50 | R37: 80 | S37: 1221.29575 | AP37: 41837900
A38: 6 | B38: =OFFSET(InputPriceData!B$15,CalculationsAndCharts!$A38+$A$11,0,1,1) -> 2015-09-16 | C38: =OFFSET(InputPriceData!G$15,CalculationsAndCharts!$A38+$A$11,IF($C$7,8,0),1,1) -> 36306800 | D38: =OFFSET(InputPriceData!C$15,CalculationsAndCharts!$A38+$A$11,IF($C$7,8,0),1,1) -> 1166.17 | E38: =OFFSET(InputPriceData!D$15,CalculationsAndCharts!$A38+$A$11,IF($C$7,8,0),1,1) -> 1175.89 | F38: =OFFSET(InputPriceData!E$15,CalculationsAndCharts!$A38+$A$11,IF($C$7,8,0),1,1) -> 1165.41 | G38: =OFFSET(InputPriceData!F$15,CalculationsAndCharts!$A38+$A$11,IF($C$7,8,0),1,1) -> 1175.2 | H38: 1175.89 | I38: 1124.46 | J38: 98.6583706 | K38: 89.25011841 | L38: 1296 | M38: 1102.58 | N38: 37.54523834 | O38: 32.22003929 | P38: 20 | Q38: 50 | R38: 80 | S38: 1221.16255 | AP38: 36306800
A39: 7 | B39: =OFFSET(InputPriceData!B$15,CalculationsAndCharts!$A39+$A$11,0,1,1) -> 2015-09-15 | C39: =OFFSET(InputPriceData!G$15,CalculationsAndCharts!$A39+$A$11,IF($C$7,8,0),1,1) -> 32398600 | D39: =OFFSET(InputPriceData!C$15,CalculationsAndCharts!$A39+$A$11,IF($C$7,8,0),1,1) -> 1153.93 | E39: =OFFSET(InputPriceData!D$15,CalculationsAndCharts!$A39+$A$11,IF($C$7,8,0),1,1) -> 1167.28 | F39: =OFFSET(InputPriceData!E$15,CalculationsAndCharts!$A39+$A$11,IF($C$7,8,0),1,1) -> 1153.93 | G39: =OFFSET(InputPriceData!F$15,CalculationsAndCharts!$A39+$A$11,IF($C$7,8,0),1,1) -> 1166 | H39: 1170.2 | I39: 1102.58 | J39: 93.78881988 | K39: 83.57980874 | L39: 1296 | M39: 1102.58 | N39: 32.78874987 | O39: 29.21966015 | P39: 20 | Q39: 50 | R39: 80 | S39: 1221.1527 | AP39: 32398600
A40: 8 | B40: =OFFSET(InputPriceData!B$15,CalculationsAndCharts!$A40+$A$11,0,1,1) -> 2015-09-14 | C40: =OFFSET(InputPriceData!G$15,CalculationsAndCharts!$A40+$A$11,IF($C$7,8,0),1,1) -> 30002000 | D40: =OFFSET(InputPriceData!C$15,CalculationsAndCharts!$A40+$A$11,IF($C$7,8,0),1,1) -> 1158.03 | E40: =OFFSET(InputPriceData!D$15,CalculationsAndCharts!$A40+$A$11,IF($C$7,8,0),1,1) -> 1159.17 | F40: =OFFSET(InputPriceData!E$15,CalculationsAndCharts!$A40+$A$11,IF($C$7,8,0),1,1) -> 1151.31 | G40: =OFFSET(InputPriceData!F$15,CalculationsAndCharts!$A40+$A$11,IF($C$7,8,0),1,1) -> 1153.5 | H40: 1170.2 | I40: 1102.58 | J40: 75.30316474 | K40: 76.27906123 | L40: 1296 | M40: 1102.58 | N40: 26.32612967 | O40: 26.98445524 | P40: 20 | Q40: 50 | R40: 80 | S40: 1221.2758 | AQ40: 30002000
A41: 9 | B41: =OFFSET(InputPriceData!B$15,CalculationsAndCharts!$A41+$A$11,0,1,1) -> 2015-09-11 | C41: =OFFSET(InputPriceData!G$15,CalculationsAndCharts!$A41+$A$11,IF($C$7,8,0),1,1) -> 32185900 | D41: =OFFSET(InputPriceData!C$15,CalculationsAndCharts!$A41+$A$11,IF($C$7,8,0),1,1) -> 1152.51 | E41: =OFFSET(InputPriceData!D$15,CalculationsAndCharts!$A41+$A$11,IF($C$7,8,0),1,1) -> 1157.91 | F41: =OFFSET(InputPriceData!E$15,CalculationsAndCharts!$A41+$A$11,IF($C$7,8,0),1,1) -> 1143.73 | G41: =OFFSET(InputPriceData!F$15,CalculationsAndCharts!$A41+$A$11,IF($C$7,8,0),1,1) -> 1157.79 | H41: 1170.2 | I41: 1102.58 | J41: 81.64744159 | K41: 67.83555056 | L41: 1296 | M41: 1102.58 | N41: 28.54410092 | O41: 26.07624168 | P41: 20 | Q41: 50 | R41: 80 | S41: 1221.43995 | AP41: 32185900
A42: 10 | B42: =OFFSET(InputPriceData!B$15,CalculationsAndCharts!$A42+$A$11,0,1,1) -> 2015-09-10 | C42: =OFFSET(InputPriceData!G$15,CalculationsAndCharts!$A42+$A$11,IF($C$7,8,0),1,1) -> 36263200 | D42: =OFFSET(InputPriceData!C$15,CalculationsAndCharts!$A42+$A$11,IF($C$7,8,0),1,1) -> 1147.99 | E42: =OFFSET(InputPriceData!D$15,CalculationsAndCharts!$A42+$A$11,IF($C$7,8,0),1,1) -> 1158.26 | F42: =OFFSET(InputPriceData!E$15,CalculationsAndCharts!$A42+$A$11,IF($C$7,8,0),1,1) -> 1146.47 | G42: =OFFSET(InputPriceData!F$15,CalculationsAndCharts!$A42+$A$11,IF($C$7,8,0),1,1) -> 1153.03 | H42: 1172.76 | I42: 1102.58 | J42: 71.88657737 | K42: 58.70100771 | L42: 1296 | M42: 1102.58 | N42: 26.08313515 | O42: 26.76041774 | P42: 20 | Q42: 50 | R42: 80 | S42: 1221.5857 | AP42: 36263200
A43: 11 | B43: =OFFSET(InputPriceData!B$15,CalculationsAndCharts!$A43+$A$11,0,1,1) -> 2015-09-09 | C43: =OFFSET(InputPriceData!G$15,CalculationsAndCharts!$A43+$A$11,IF($C$7,8,0),1,1) -> 36521200 | D43: =OFFSET(InputPriceData!C$15,CalculationsAndCharts!$A43+$A$11,IF($C$7,8,0),1,1) -> 1162.72 | E43: =OFFSET(InputPriceData!D$15,CalculationsAndCharts!$A43+$A$11,IF($C$7,8,0),1,1) -> 1170.2 | F43: =OFFSET(InputPriceData!E$15,CalculationsAndCharts!$A43+$A$11,IF($C$7,8,0),1,1) -> 1147.33 | G43: =OFFSET(InputPriceData!F$15,CalculationsAndCharts!$A43+$A$11,IF($C$7,8,0),1,1) -> 1148.23 | H43: 1193.93 | I43: 1102.58 | J43: 49.97263273 | K43: 43.95114589 | L43: 1296 | M43: 1102.58 | N43: 23.60148899 | O43: 23.8548237 | P43: 20 | Q43: 50 | R43: 80 | S43: 1221.68265 | AQ43: 36521200
A44: 12 | B44: =OFFSET(InputPriceData!B$15,CalculationsAndCharts!$A44+$A$11,0,1,1) -> 2015-09-08 | C44: =OFFSET(InputPriceData!G$15,CalculationsAndCharts!$A44+$A$11,IF($C$7,8,0),1,1) -> 35486500 | D44: =OFFSET(InputPriceData!C$15,CalculationsAndCharts!$A44+$A$11,IF($C$7,8,0),1,1) -> 1139.07 | E44: =OFFSET(InputPriceData!D$15,CalculationsAndCharts!$A44+$A$11,IF($C$7,8,0),1,1) -> 1162.45 | F44: =OFFSET(InputPriceData!E$15,CalculationsAndCharts!$A44+$A$11,IF($C$7,8,0),1,1) -> 1139.07 | G44: =OFFSET(InputPriceData!F$15,CalculationsAndCharts!$A44+$A$11,IF($C$7,8,0),1,1) -> 1161.76 | H44: 1211.68 | I44: 1102.58 | J44: 54.24381302 | K44: 38.87632959 | L44: 1296 | M44: 1102.58 | N44: 30.5966291 | O44: 23.32402716 | P44: 20 | Q44: 50 | R44: 80 | S44: 1221.79525 | AP44: 35486500
A45: 13 | B45: =OFFSET(InputPriceData!B$15,CalculationsAndCharts!$A45+$A$11,0,1,1) -> 2015-09-04 | C45: =OFFSET(InputPriceData!G$15,CalculationsAndCharts!$A45+$A$11,IF($C$7,8,0),1,1) -> 31670900 | D45: =OFFSET(InputPriceData!C$15,CalculationsAndCharts!$A45+$A$11,IF($C$7,8,0),1,1) -> 1132.95 | E45: =OFFSET(InputPriceData!D$15,CalculationsAndCharts!$A45+$A$11,IF($C$7,8,0),1,1) -> 1142.55 | F45: =OFFSET(InputPriceData!E$15,CalculationsAndCharts!$A45+$A$11,IF($C$7,8,0),1,1) -> 1130.75 | G45: =OFFSET(InputPriceData!F$15,CalculationsAndCharts!$A45+$A$11,IF($C$7,8,0),1,1) -> 1136.17 | H45: 1224.12 | I45: 1102.58 | J45: 27.63699194 | K45: 32.61722276 | L45: 1296 | M45: 1102.58 | N45: 17.36635301 | O45: 20.61317341 | P45: 20 | Q45: 50 | R45: 80 | S45: 1221.7749 | AP45: 31670900
A46: 14 | B46: =OFFSET(InputPriceData!B$15,CalculationsAndCharts!$A46+$A$11,0,1,1) -> 2015-09-03 | C46: =OFFSET(InputPriceData!G$15,CalculationsAndCharts!$A46+$A$11,IF($C$7,8,0),1,1) -> 35207000 | D46: =OFFSET(InputPriceData!C$15,CalculationsAndCharts!$A46+$A$11,IF($C$7,8,0),1,1) -> 1148.62 | E46: =OFFSET(InputPriceData!D$15,CalculationsAndCharts!$A46+$A$11,IF($C$7,8,0),1,1) -> 1157.63 | F46: =OFFSET(InputPriceData!E$15,CalculationsAndCharts!$A46+$A$11,IF($C$7,8,0),1,1) -> 1143.79 | G46: =OFFSET(InputPriceData!F$15,CalculationsAndCharts!$A46+$A$11,IF($C$7,8,0),1,1) -> 1145.15 | H46: 1225.09 | I46: 1102.58 | J46: 34.74818382 | K46: 30.33493864 | L46: 1296 | M46: 1102.58 | N46: 22.00909937 | O46: 19.21380071 | P46: 20 | Q46: 50 | R46: 80 | S46: 1221.94545 | AQ46: 35207000
A47: 15 | B47: =OFFSET(InputPriceData!B$15,CalculationsAndCharts!$A47+$A$11,0,1,1) -> 2015-09-02 | C47: =OFFSET(InputPriceData!G$15,CalculationsAndCharts!$A47+$A$11,IF($C$7,8,0),1,1) -> 37426200 | D47: =OFFSET(InputPriceData!C$15,CalculationsAndCharts!$A47+$A$11,IF($C$7,8,0),1,1) -> 1128.05 | E47: =OFFSET(InputPriceData!D$15,CalculationsAndCharts!$A47+$A$11,IF($C$7,8,0),1,1) -> 1146.03 | F47: =OFFSET(InputPriceData!E$15,CalculationsAndCharts!$A47+$A$11,IF($C$7,8,0),1,1) -> 1128.05 | G47: =OFFSET(InputPriceData!F$15,CalculationsAndCharts!$A47+$A$11,IF($C$7,8,0),1,1) -> 1146.03 | H47: 1225.09 | I47: 1102.58 | J47: 35.46649253 | K47: 34.22577749 | L47: 1296 | M47: 1102.58 | N47: 22.46406783 | O47: 21.67821321 | P47: 20 | Q47: 50 | R47: 80 | S47: 1222.04085 | AP47: 37426200
A48: 16 | B48: =OFFSET(InputPriceData!B$15,CalculationsAndCharts!$A48+$A$11,0,1,1) -> 2015-09-01 | C48: =OFFSET(InputPriceData!G$15,CalculationsAndCharts!$A48+$A$11,IF($C$7,8,0),1,1) -> 43718500 | D48: =OFFSET(InputPriceData!C$15,CalculationsAndCharts!$A48+$A$11,IF($C$7,8,0),1,1) -> 1148.31 | E48: =OFFSET(InputPriceData!D$15,CalculationsAndCharts!$A48+$A$11,IF($C$7,8,0),1,1) -> 1151.53 | F48: =OFFSET(InputPriceData!E$15,CalculationsAndCharts!$A48+$A$11,IF($C$7,8,0),1,1) -> 1124.46 | G48: =OFFSET(InputPriceData!F$15,CalculationsAndCharts!$A48+$A$11,IF($C$7,8,0),1,1) -> 1128.05 | H48: 1225.09 | I48: 1102.58 | J48: 20.79013958 | K48: 38.81859984 | L48: 1296 | M48: 1102.58 | N48: 13.16823493 | O48: 24.58725399 | P48: 20 | Q48: 50 | R48: 80 | S48: 1222.17975 | AQ48: 43718500
A49: 17 | B49: =OFFSET(InputPriceData!B$15,CalculationsAndCharts!$A49+$A$11,0,1,1) -> 2015-08-31 | C49: =OFFSET(InputPriceData!G$15,CalculationsAndCharts!$A49+$A$11,IF($C$7,8,0),1,1) -> 39151000 | D49: =OFFSET(InputPriceData!C$15,CalculationsAndCharts!$A49+$A$11,IF($C$7,8,0),1,1) -> 1161.01 | E49: =OFFSET(InputPriceData!D$15,CalculationsAndCharts!$A49+$A$11,IF($C$7,8,0),1,1) -> 1164.89 | F49: =OFFSET(InputPriceData!E$15,CalculationsAndCharts!$A49+$A$11,IF($C$7,8,0),1,1) -> 1156.37 | G49: =OFFSET(InputPriceData!F$15,CalculationsAndCharts!$A49+$A$11,IF($C$7,8,0),1,1) -> 1159.45 | H49: 1225.09 | I49: 1102.58 | J49: 46.42070035 | K49: 45.77313417 | L49: 1296 | M49: 1102.58 | N49: 29.40233688 | O49: 28.99217592 | P49: 20 | Q49: 50 | R49: 80 | S49: 1222.4166 | AQ49: 39151000
A50: 18 | B50: =OFFSET(InputPriceData!B$15,CalculationsAndCharts!$A50+$A$11,0,1,1) -> 2015-08-28 | C50: =OFFSET(InputPriceData!G$15,CalculationsAndCharts!$A50+$A$11,IF($C$7,8,0),1,1) -> 39490800 | D50: =OFFSET(InputPriceData!C$15,CalculationsAndCharts!$A50+$A$11,IF($C$7,8,0),1,1) -> 1149.55 | E50: =OFFSET(InputPriceData!D$15,CalculationsAndCharts!$A50+$A$11,IF($C$7,8,0),1,1) -> 1163.05 | F50: =OFFSET(InputPriceData!E$15,CalculationsAndCharts!$A50+$A$11,IF($C$7,8,0),1,1) -> 1149.47 | G50: =OFFSET(InputPriceData!F$15,CalculationsAndCharts!$A50+$A$11,IF($C$7,8,0),1,1) -> 1162.91 | H50: 1225.09 | I50: 1102.58 | J50: 49.2449596 | K50: 38.35605257 | L50: 1296 | M50: 1102.58 | N50: 31.19119016 | O50: 24.29428187 | P50: 20 | Q50: 50 | R50: 80 | S50: 1222.5517 | AP50: 39490800
A51: 19 | B51: =OFFSET(InputPriceData!B$15,CalculationsAndCharts!$A51+$A$11,0,1,1) -> 2015-08-27 | C51: =OFFSET(InputPriceData!G$15,CalculationsAndCharts!$A51+$A$11,IF($C$7,8,0),1,1) -> 49763900 | D51: =OFFSET(InputPriceData!C$15,CalculationsAndCharts!$A51+$A$11,IF($C$7,8,0),1,1) -> 1140.92 | E51: =OFFSET(InputPriceData!D$15,CalculationsAndCharts!$A51+$A$11,IF($C$7,8,0),1,1) -> 1157.9 | F51: =OFFSET(InputPriceData!E$15,CalculationsAndCharts!$A51+$A$11,IF($C$7,8,0),1,1) -> 1133.77 | G51: =OFFSET(InputPriceData!F$15,CalculationsAndCharts!$A51+$A$11,IF($C$7,8,0),1,1) -> 1153.61 | H51: 1225.09 | I51: 1102.58 | J51: 41.65374255 | K51: 21.95401404 | L51: 1296 | M51: 1102.58 | N51: 26.38300072 | O51: 13.9059013 | P51: 20 | Q51: 50 | R51: 80 | S51: 1222.63695 | AP51: 49763900
A52: 20 | B52: =OFFSET(InputPriceData!B$15,CalculationsAndCharts!$A52+$A$11,0,1,1) -> 2015-08-26 | C52: =OFFSET(InputPriceData!G$15,CalculationsAndCharts!$A52+$A$11,IF($C$7,8,0),1,1) -> 53382500 | D52: =OFFSET(InputPriceData!C$15,CalculationsAndCharts!$A52+$A$11,IF($C$7,8,0),1,1) -> 1119.28 | E52: =OFFSET(InputPriceData!D$15,CalculationsAndCharts!$A52+$A$11,IF($C$7,8,0),1,1) -> 1132.63 | F52: =OFFSET(InputPriceData!E$15,CalculationsAndCharts!$A52+$A$11,IF($C$7,8,0),1,1) -> 1102.58 | G52: =OFFSET(InputPriceData!F$15,CalculationsAndCharts!$A52+$A$11,IF($C$7,8,0),1,1) -> 1132.19 | H52: 1225.09 | I52: 1102.58 | J52: 24.16945555 | K52: 9.468544167 | L52: 1296 | M52: 1102.58 | N52: 15.30865474 | O52: 6.121721884 | P52: 20 | Q52: 50 | R52: 80 | S52: 1222.76675 | AP52: 53382500
A53: 21 | B53: =OFFSET(InputPriceData!B$15,CalculationsAndCharts!$A53+$A$11,0,1,1) -> 2015-08-25 | C53: =OFFSET(InputPriceData!G$15,CalculationsAndCharts!$A53+$A$11,IF($C$7,8,0),1,1) -> 51835600 | D53: =OFFSET(InputPriceData!C$15,CalculationsAndCharts!$A53+$A$11,IF($C$7,8,0),1,1) -> 1133.13 | E53: =OFFSET(InputPriceData!D$15,CalculationsAndCharts!$A53+$A$11,IF($C$7,8,0),1,1) -> 1133.15 | F53: =OFFSET(InputPriceData!E$15,CalculationsAndCharts!$A53+$A$11,IF($C$7,8,0),1,1) -> 1104.05 | G53: =OFFSET(InputPriceData!F$15,CalculationsAndCharts!$A53+$A$11,IF($C$7,8,0),1,1) -> 1104.1 | H53: 1232.77 | I53: 1104.05 | J53: 0.03884400249 | K53: 3.034851507 | L53: 1296 | M53: 1104.05 | N53: 0.02604845012 | O53: 2.044620813 | P53: 20 | Q53: 50 | R53: 80 | S53: 1222.9724 | AQ53: 51835600
A54: 22 | B54: =OFFSET(InputPriceData!B$15,CalculationsAndCharts!$A54+$A$11,0,1,1) -> 2015-08-24 | C54: =OFFSET(InputPriceData!G$15,CalculationsAndCharts!$A54+$A$11,IF($C$7,8,0),1,1) -> 66126900 | D54: =OFFSET(InputPriceData!C$15,CalculationsAndCharts!$A54+$A$11,IF($C$7,8,0),1,1) -> 1119.76 | E54: =OFFSET(InputPriceData!D$15,CalculationsAndCharts!$A54+$A$11,IF($C$7,8,0),1,1) -> 1148.58 | F54: =OFFSET(InputPriceData!E$15,CalculationsAndCharts!$A54+$A$11,IF($C$7,8,0),1,1) -> 1105.93 | G54: =OFFSET(InputPriceData!F$15,CalculationsAndCharts!$A54+$A$11,IF($C$7,8,0),1,1) -> 1111.69 | H54: 1243.16 | I54: 1105.93 | J54: 4.197332945 | K54: 3.021903506 | L54: 1296 | M54: 1105.93 | N54: 3.030462461 | O54: 2.035937996 | P54: 20 | Q54: 50 | R54: 80 | S54: 1223.3112 | AQ54: 66126900
A55: 23 | B55: =OFFSET(InputPriceData!B$15,CalculationsAndCharts!$A55+$A$11,0,1,1) -> 2015-08-21 | C55: =OFFSET(InputPriceData!G$15,CalculationsAndCharts!$A55+$A$11,IF($C$7,8,0),1,1) -> 50182400 | D55: =OFFSET(InputPriceData!C$15,CalculationsAndCharts!$A55+$A$11,IF($C$7,8,0),1,1) -> 1158 | E55: =OFFSET(InputPriceData!D$15,CalculationsAndCharts!$A55+$A$11,IF($C$7,8,0),1,1) -> 1172.76 | F55: =OFFSET(InputPriceData!E$15,CalculationsAndCharts!$A55+$A$11,IF($C$7,8,0),1,1) -> 1152.37 | G55: =OFFSET(InputPriceData!F$15,CalculationsAndCharts!$A55+$A$11,IF($C$7,8,0),1,1) -> 1156.79 | H55: 1243.16 | I55: 1152.37 | J55: 4.868377575 | K55: 9.758141697 | L55: 1296 | M55: 1152.37 | N55: 3.077351528 | O55: 5.266729611 | P55: 20 | Q55: 50 | R55: 80 | S55: 1223.5881 | AQ55: 50182400
A56: 24 | B56: =OFFSET(InputPriceData!B$15,CalculationsAndCharts!$A56+$A$11,0,1,1) -> 2015-08-20 | C56: =OFFSET(InputPriceData!G$15,CalculationsAndCharts!$A56+$A$11,IF($C$7,8,0),1,1) -> 39224700 | D56: =OFFSET(InputPriceData!C$15,CalculationsAndCharts!$A56+$A$11,IF($C$7,8,0),1,1) -> 1193.9 | E56: =OFFSET(InputPriceData!D$15,CalculationsAndCharts!$A56+$A$11,IF($C$7,8,0),1,1) -> 1193.93 | F56: =OFFSET(InputPriceData!E$15,CalculationsAndCharts!$A56+$A$11,IF($C$7,8,0),1,1) -> 1172.52 | G56: =OFFSET(InputPriceData!F$15,CalculationsAndCharts!$A56+$A$11,IF($C$7,8,0),1,1) -> 1172.52 | H56: 1243.16 | I56: 1172.52 | J56: 0 | K56: 23.41612671 | L56: 1296 | M56: 1172.52 | N56: 0 | O56: 12.20679302 | P56: 20 | Q56: 50 | R56: 80 | S56: 1223.63125 | AQ56: 39224700
A57: 25 | B57: =OFFSET(InputPriceData!B$15,CalculationsAndCharts!$A57+$A$11,0,1,1) -> 2015-08-19 | C57: =OFFSET(InputPriceData!G$15,CalculationsAndCharts!$A57+$A$11,IF($C$7,8,0),1,1) -> 35129200 | D57: =OFFSET(InputPriceData!C$15,CalculationsAndCharts!$A57+$A$11,IF($C$7,8,0),1,1) -> 1208.55 | E57: =OFFSET(InputPriceData!D$15,CalculationsAndCharts!$A57+$A$11,IF($C$7,8,0),1,1) -> 1211.68 | F57: =OFFSET(InputPriceData!E$15,CalculationsAndCharts!$A57+$A$11,IF($C$7,8,0),1,1) -> 1196.66 | G57: =OFFSET(InputPriceData!F$15,CalculationsAndCharts!$A57+$A$11,IF($C$7,8,0),1,1) -> 1202.98 | H57: 1244.98 | I57: 1189.42 | J57: 24.40604752 | K57: 44.81641469 | L57: 1296 | M57: 1189.42 | N57: 12.72283731 | O57: 23.36273222 | P57: 20 | Q57: 50 | R57: 80 | S57: 1223.61965 | AQ57: 35129200
A58: 26 | B58: =OFFSET(InputPriceData!B$15,CalculationsAndCharts!$A58+$A$11,0,1,1) -> 2015-08-18 | C58: =OFFSET(InputPriceData!G$15,CalculationsAndCharts!$A58+$A$11,IF($C$7,8,0),1,1) -> 29499900 | D58: =OFFSET(InputPriceData!C$15,CalculationsAndCharts!$A58+$A$11,IF($C$7,8,0),1,1) -> 1224.08 | E58: =OFFSET(InputPriceData!D$15,CalculationsAndCharts!$A58+$A$11,IF($C$7,8,0),1,1) -> 1224.12 | F58: =OFFSET(InputPriceData!E$15,CalculationsAndCharts!$A58+$A$11,IF($C$7,8,0),1,1) -> 1214.26 | G58: =OFFSET(InputPriceData!F$15,CalculationsAndCharts!$A58+$A$11,IF($C$7,8,0),1,1) -> 1214.89 | H58: 1244.98 | I58: 1189.42 | J58: 45.84233261 | K58: 50.64194864 | L58: 1296 | M58: 1189.42 | N58: 23.89754175 | O58: 26.39957465 | P58: 20 | Q58: 50 | R58: 80 | S58: 1223.4723 | AQ58: 29499900
A59: 27 | B59: =OFFSET(InputPriceData!B$15,CalculationsAndCharts!$A59+$A$11,0,1,1) -> 2015-08-17 | C59: =OFFSET(InputPriceData!G$15,CalculationsAndCharts!$A59+$A$11,IF($C$7,8,0),1,1) -> 28676900 | D59: =OFFSET(InputPriceData!C$15,CalculationsAndCharts!$A59+$A$11,IF($C$7,8,0),1,1) -> 1209.24 | E59: =OFFSET(InputPriceData!D$15,CalculationsAndCharts!$A59+$A$11,IF($C$7,8,0),1,1) -> 1225.09 | F59: =OFFSET(InputPriceData!E$15,CalculationsAndCharts!$A59+$A$11,IF($C$7,8,0),1,1) -> 1206.4 | G59: =OFFSET(InputPriceData!F$15,CalculationsAndCharts!$A59+$A$11,IF($C$7,8,0),1,1) -> 1225.09 | H59: 1244.98 | I59: 1189.42 | J59: 64.20086393 | K59: 44.55243581 | L59: 1296 | M59: 1189.42 | N59: 33.4678176 | O59: 23.22512041 | P59: 20 | Q59: 50 | R59: 80 | S59: 1223.1767 | AP59: 28676900
A60: 28 | B60: =OFFSET(InputPriceData!B$15,CalculationsAndCharts!$A60+$A$11,0,1,1) -> 2015-08-14 | C60: =OFFSET(InputPriceData!G$15,CalculationsAndCharts!$A60+$A$11,IF($C$7,8,0),1,1) -> 27955900 | D60: =OFFSET(InputPriceData!C$15,CalculationsAndCharts!$A60+$A$11,IF($C$7,8,0),1,1) -> 1202.11 | E60: =OFFSET(InputPriceData!D$15,CalculationsAndCharts!$A60+$A$11,IF($C$7,8,0),1,1) -> 1212.79 | F60: =OFFSET(InputPriceData!E$15,CalculationsAndCharts!$A60+$A$11,IF($C$7,8,0),1,1) -> 1199.46 | G60: =OFFSET(InputPriceData!F$15,CalculationsAndCharts!$A60+$A$11,IF($C$7,8,0),1,1) -> 1212.69 | H60: 1244.98 | I60: 1189.42 | J60: 41.88264939 | K60: 34.88720902 | L60: 1296 | M60: 1189.42 | N60: 21.83336461 | O60: 18.18665165 | P60: 20 | Q60: 50 | R60: 80 | S60: 1222.7831 | AP60: 27955900
A61: 29 | B61: =OFFSET(InputPriceData!B$15,CalculationsAndCharts!$A61+$A$11,0,1,1) -> 2015-08-13 | C61: =OFFSET(InputPriceData!G$15,CalculationsAndCharts!$A61+$A$11,IF($C$7,8,0),1,1) -> 32213000 | D61: =OFFSET(InputPriceData!C$15,CalculationsAndCharts!$A61+$A$11,IF($C$7,8,0),1,1) -> 1208.57 | E61: =OFFSET(InputPriceData!D$15,CalculationsAndCharts!$A61+$A$11,IF($C$7,8,0),1,1) -> 1213.41 | F61: =OFFSET(InputPriceData!E$15,CalculationsAndCharts!$A61+$A$11,IF($C$7,8,0),1,1) -> 1203.64 | G61: =OFFSET(InputPriceData!F$15,CalculationsAndCharts!$A61+$A$11,IF($C$7,8,0),1,1) -> 1204.74 | H61: 1244.98 | I61: 1189.42 | J61: 27.5737941 | K61: 26.68029415 | L61: 1296 | M61: 1189.42 | N61: 14.37417902 | O61: 14.65053796 | P61: 20 | Q61: 50 | R61: 80 | S61: 1222.4669 | AQ61: 32213000
A62: 30 | B62: =OFFSET(InputPriceData!B$15,CalculationsAndCharts!$A62+$A$11,0,1,1) -> 2015-08-12 | C62: =OFFSET(InputPriceData!G$15,CalculationsAndCharts!$A62+$A$11,IF($C$7,8,0),1,1) -> 42691300 | D62: =OFFSET(InputPriceData!C$15,CalculationsAndCharts!$A62+$A$11,IF($C$7,8,0),1,1) -> 1203.17 | E62: =OFFSET(InputPriceData!D$15,CalculationsAndCharts!$A62+$A$11,IF($C$7,8,0),1,1) -> 1210.98 | F62: =OFFSET(InputPriceData!E$15,CalculationsAndCharts!$A62+$A$11,IF($C$7,8,0),1,1) -> 1189.42 | G62: =OFFSET(InputPriceData!F$15,CalculationsAndCharts!$A62+$A$11,IF($C$7,8,0),1,1) -> 1208.98 | H62: 1244.98 | I62: 1189.42 | J62: 35.20518359 | K62: 29.42596639 | L62: 1296 | M62: 1189.42 | N62: 18.35241133 | O62: 17.62146319 | P62: 20 | Q62: 50 | R62: 80 | S62: 1222.0306 | AP62: 42691300
A63: 31 | B63: =OFFSET(InputPriceData!B$15,CalculationsAndCharts!$A63+$A$11,0,1,1) -> 2015-08-11 | C63: =OFFSET(InputPriceData!G$15,CalculationsAndCharts!$A63+$A$11,IF($C$7,8,0),1,1) -> 37088800 | D63: =OFFSET(InputPriceData!C$15,CalculationsAndCharts!$A63+$A$11,IF($C$7,8,0),1,1) -> 1214.14 | E63: =OFFSET(InputPriceData!D$15,CalculationsAndCharts!$A63+$A$11,IF($C$7,8,0),1,1) -> 1218.67 | F63: =OFFSET(InputPriceData!E$15,CalculationsAndCharts!$A63+$A$11,IF($C$7,8,0),1,1) -> 1205.87 | G63: =OFFSET(InputPriceData!F$15,CalculationsAndCharts!$A63+$A$11,IF($C$7,8,0),1,1) -> 1211.14 | H63: 1262.57 | I63: 1200.41 | J63: 17.26190476 | K63: 21.01757493 | L63: 1296 | M63: 1200.41 | N63: 11.22502354 | O63: 13.76713045 | P63: 20 | Q63: 50 | R63: 80 | S63: 1221.5798 | AQ63: 37088800
A64: 32 | B64: =OFFSET(InputPriceData!B$15,CalculationsAndCharts!$A64+$A$11,0,1,1) -> 2015-08-10 | C64: =OFFSET(InputPriceData!G$15,CalculationsAndCharts!$A64+$A$11,IF($C$7,8,0),1,1) -> 35144600 | D64: =OFFSET(InputPriceData!C$15,CalculationsAndCharts!$A64+$A$11,IF($C$7,8,0),1,1) -> 1212.42 | E64: =OFFSET(InputPriceData!D$15,CalculationsAndCharts!$A64+$A$11,IF($C$7,8,0),1,1) -> 1223.39 | F64: =OFFSET(InputPriceData!E$15,CalculationsAndCharts!$A64+$A$11,IF($C$7,8,0),1,1) -> 1212.42 | G64: =OFFSET(InputPriceData!F$15,CalculationsAndCharts!$A64+$A$11,IF($C$7,8,0),1,1) -> 1222.67 | H64: 1262.57 | I64: 1200.41 | J64: 35.81081081 | K64: 20.84183797 | L64: 1296 | M64: 1200.41 | N64: 23.2869547 | O64: 13.9383877 | P64: 20 | Q64: 50 | R64: 80 | S64: 1221.10655 | AP64: 35144600
A65: 33 | B65: =OFFSET(InputPriceData!B$15,CalculationsAndCharts!$A65+$A$11,0,1,1) -> 2015-08-07 | C65: =OFFSET(InputPriceData!G$15,CalculationsAndCharts!$A65+$A$11,IF($C$7,8,0),1,1) -> 36023200 | D65: =OFFSET(InputPriceData!C$15,CalculationsAndCharts!$A65+$A$11,IF($C$7,8,0),1,1) -> 1209.48 | E65: =OFFSET(InputPriceData!D$15,CalculationsAndCharts!$A65+$A$11,IF($C$7,8,0),1,1) -> 1211.93 | F65: =OFFSET(InputPriceData!E$15,CalculationsAndCharts!$A65+$A$11,IF($C$7,8,0),1,1) -> 1200.41 | G65: =OFFSET(InputPriceData!F$15,CalculationsAndCharts!$A65+$A$11,IF($C$7,8,0),1,1) -> 1206.9 | H65: 1265.44 | I65: 1200.41 | J65: 9.980009227 | K65: 21.83324994 | L65: 1296 | M65: 1200.41 | N65: 6.789413119 | O65: 15.92536286 | P65: 20 | Q65: 50 | R65: 80 | S65: 1220.47755 | AQ65: 36023200
A66: 34 | B66: =OFFSET(InputPriceData!B$15,CalculationsAndCharts!$A66+$A$11,0,1,1) -> 2015-08-06 | C66: =OFFSET(InputPriceData!G$15,CalculationsAndCharts!$A66+$A$11,IF($C$7,8,0),1,1) -> 42465700 | D66: =OFFSET(InputPriceData!C$15,CalculationsAndCharts!$A66+$A$11,IF($C$7,8,0),1,1) -> 1232.44 | E66: =OFFSET(InputPriceData!D$15,CalculationsAndCharts!$A66+$A$11,IF($C$7,8,0),1,1) -> 1232.77 | F66: =OFFSET(InputPriceData!E$15,CalculationsAndCharts!$A66+$A$11,IF($C$7,8,0),1,1) -> 1207.77 | G66: =OFFSET(InputPriceData!F$15,CalculationsAndCharts!$A66+$A$11,IF($C$7,8,0),1,1) -> 1215.85 | H66: 1268.89 | I66: 1205.19 | J66: 16.73469388 | K66: 29.66011813 | L66: 1296 | M66: 1205.19 | N66: 11.73879529 | O66: 22.34702492 | P66: 20 | Q66: 50 | R66: 80 | S66: 1220.0073 | AQ66: 42465700
A67: 35 | B67: =OFFSET(InputPriceData!B$15,CalculationsAndCharts!$A67+$A$11,0,1,1) -> 2015-08-05 | C67: =OFFSET(InputPriceData!G$15,CalculationsAndCharts!$A67+$A$11,IF($C$7,8,0),1,1) -> 39686800 | D67: =OFFSET(InputPriceData!C$15,CalculationsAndCharts!$A67+$A$11,IF($C$7,8,0),1,1) -> 1233.72 | E67: =OFFSET(InputPriceData!D$15,CalculationsAndCharts!$A67+$A$11,IF($C$7,8,0),1,1) -> 1243.16 | F67: =OFFSET(InputPriceData!E$15,CalculationsAndCharts!$A67+$A$11,IF($C$7,8,0),1,1) -> 1229.51 | G67: =OFFSET(InputPriceData!F$15,CalculationsAndCharts!$A67+$A$11,IF($C$7,8,0),1,1) -> 1231.75 | H67: 1273.67 | I67: 1205.19 | J67: 38.78504673 | K67: 36.62136734 | L67: 1296 | M67: 1205.19 | N67: 29.24788019 | O67: 28.19806923 | P67: 20 | Q67: 50 | R67: 80 | S67: 1219.4029 | AQ67: 39686800
A68: 36 | B68: =OFFSET(InputPriceData!B$15,CalculationsAndCharts!$A68+$A$11,0,1,1) -> 2015-08-04 | C68: =OFFSET(InputPriceData!G$15,CalculationsAndCharts!$A68+$A$11,IF($C$7,8,0),1,1) -> 35467100 | D68: =OFFSET(InputPriceData!C$15,CalculationsAndCharts!$A68+$A$11,IF($C$7,8,0),1,1) -> 1232.52 | E68: =OFFSET(InputPriceData!D$15,CalculationsAndCharts!$A68+$A$11,IF($C$7,8,0),1,1) -> 1237.2 | F68: =OFFSET(InputPriceData!E$15,CalculationsAndCharts!$A68+$A$11,IF($C$7,8,0),1,1) -> 1226.37 | G68: =OFFSET(InputPriceData!F$15,CalculationsAndCharts!$A68+$A$11,IF($C$7,8,0),1,1) -> 1228.85 | H68: 1275.9 | I68: 1205.19 | J68: 33.46061377 | K68: 39.48050724 | L68: 1296 | M68: 1205.19 | N68: 26.0543993 | O68: 30.74184194 | P68: 20 | Q68: 50 | R68: 80 | S68: 1218.6558 | AQ68: 35467100
A69: 37 | B69: =OFFSET(InputPriceData!B$15,CalculationsAndCharts!$A69+$A$11,0,1,1) -> 2015-08-03 | C69: =OFFSET(InputPriceData!G$15,CalculationsAndCharts!$A69+$A$11,IF($C$7,8,0),1,1) -> 34767700 | D69: =OFFSET(InputPriceData!C$15,CalculationsAndCharts!$A69+$A$11,IF($C$7,8,0),1,1) -> 1238.32 | E69: =OFFSET(InputPriceData!D$15,CalculationsAndCharts!$A69+$A$11,IF($C$7,8,0),1,1) -> 1238.97 | F69: =OFFSET(InputPriceData!E$15,CalculationsAndCharts!$A69+$A$11,IF($C$7,8,0),1,1) -> 1224.87 | G69: =OFFSET(InputPriceData!F$15,CalculationsAndCharts!$A69+$A$11,IF($C$7,8,0),1,1) -> 1231.79 | H69: 1275.9 | I69: 1205.19 | J69: 37.61844152 | K69: 40.99844435 | L69: 1296 | M69: 1205.19 | N69: 29.2919282 | O69: 31.92379694 | P69: 20 | Q69: 50 | R69: 80 | S69: 1217.9421 | AQ69: 34767700
A70: 38 | B70: =OFFSET(InputPriceData!B$15,CalculationsAndCharts!$A70+$A$11,0,1,1) -> 2015-07-31 | C70: =OFFSET(InputPriceData!G$15,CalculationsAndCharts!$A70+$A$11,IF($C$7,8,0),1,1) -> 36813400 | D70: =OFFSET(InputPriceData!C$15,CalculationsAndCharts!$A70+$A$11,IF($C$7,8,0),1,1) -> 1235.17 | E70: =OFFSET(InputPriceData!D$15,CalculationsAndCharts!$A70+$A$11,IF($C$7,8,0),1,1) -> 1244.98 | F70: =OFFSET(InputPriceData!E$15,CalculationsAndCharts!$A70+$A$11,IF($C$7,8,0),1,1) -> 1232.95 | G70: =OFFSET(InputPriceData!F$15,CalculationsAndCharts!$A70+$A$11,IF($C$7,8,0),1,1) -> 1238.68 | H70: 1275.9 | I70: 1205.19 | J70: 47.36246641 | K70: 39.96605855 | L70: 1296 | M70: 1205.19 | N70: 36.87919833 | O70: 31.11992071 | P70: 20 | Q70: 50 | R70: 80 | S70: 1217.1454 | AP70: 36813400
A71: 39 | B71: =OFFSET(InputPriceData!B$15,CalculationsAndCharts!$A71+$A$11,0,1,1) -> 2015-07-30 | C71: =OFFSET(InputPriceData!G$15,CalculationsAndCharts!$A71+$A$11,IF($C$7,8,0),1,1) -> 35794100 | D71: =OFFSET(InputPriceData!C$15,CalculationsAndCharts!$A71+$A$11,IF($C$7,8,0),1,1) -> 1226.04 | E71: =OFFSET(InputPriceData!D$15,CalculationsAndCharts!$A71+$A$11,IF($C$7,8,0),1,1) -> 1233 | F71: =OFFSET(InputPriceData!E$15,CalculationsAndCharts!$A71+$A$11,IF($C$7,8,0),1,1) -> 1220.98 | G71: =OFFSET(InputPriceData!F$15,CalculationsAndCharts!$A71+$A$11,IF($C$7,8,0),1,1) -> 1232.07 | H71: 1275.9 | I71: 1205.19 | J71: 38.01442512 | K71: 33.32861924 | L71: 1296 | M71: 1205.19 | N71: 29.60026429 | O71: 25.9516206 | P71: 20 | Q71: 50 | R71: 80 | S71: 1216.26 | AP71: 35794100
A72: 40 | B72: =OFFSET(InputPriceData!B$15,CalculationsAndCharts!$A72+$A$11,0,1,1) -> 2015-07-29 | C72: =OFFSET(InputPriceData!G$15,CalculationsAndCharts!$A72+$A$11,IF($C$7,8,0),1,1) -> 40389000 | D72: =OFFSET(InputPriceData!C$15,CalculationsAndCharts!$A72+$A$11,IF($C$7,8,0),1,1) -> 1223.98 | E72: =OFFSET(InputPriceData!D$15,CalculationsAndCharts!$A72+$A$11,IF($C$7,8,0),1,1) -> 1232.34 | F72: =OFFSET(InputPriceData!E$15,CalculationsAndCharts!$A72+$A$11,IF($C$7,8,0),1,1) -> 1220.93 | G72: =OFFSET(InputPriceData!F$15,CalculationsAndCharts!$A72+$A$11,IF($C$7,8,0),1,1) -> 1229.6 | H72: 1275.9 | I72: 1205.19 | J72: 34.52128412 | K72: 21.85267669 | L72: 1296 | M72: 1205.19 | N72: 26.88029953 | O72: 17.45166211 | P72: 20 | Q72: 50 | R72: 80 | S72: 1215.34615 | AP72: 40389000
A73: 41 | B73: =OFFSET(InputPriceData!B$15,CalculationsAndCharts!$A73+$A$11,0,1,1) -> 2015-07-28 | C73: =OFFSET(InputPriceData!G$15,CalculationsAndCharts!$A73+$A$11,IF($C$7,8,0),1,1) -> 41177400 | D73: =OFFSET(InputPriceData!C$15,CalculationsAndCharts!$A73+$A$11,IF($C$7,8,0),1,1) -> 1219.47 | E73: =OFFSET(InputPriceData!D$15,CalculationsAndCharts!$A73+$A$11,IF($C$7,8,0),1,1) -> 1226.41 | F73: =OFFSET(InputPriceData!E$15,CalculationsAndCharts!$A73+$A$11,IF($C$7,8,0),1,1) -> 1205.19 | G73: =OFFSET(InputPriceData!F$15,CalculationsAndCharts!$A73+$A$11,IF($C$7,8,0),1,1) -> 1224.6 | H73: 1275.9 | I73: 1205.19 | J73: 27.45014849 | K73: 10.71543866 | L73: 1296 | M73: 1205.19 | N73: 21.37429798 | O73: 14.32793948 | P73: 20 | Q73: 50 | R73: 80 | S73: 1214.46475 | AP73: 41177400
A74: 42 | B74: =OFFSET(InputPriceData!B$15,CalculationsAndCharts!$A74+$A$11,0,1,1) -> 2015-07-27 | C74: =OFFSET(InputPriceData!G$15,CalculationsAndCharts!$A74+$A$11,IF($C$7,8,0),1,1) -> 38367500 | D74: =OFFSET(InputPriceData!C$15,CalculationsAndCharts!$A74+$A$11,IF($C$7,8,0),1,1) -> 1219.21 | E74: =OFFSET(InputPriceData!D$15,CalculationsAndCharts!$A74+$A$11,IF($C$7,8,0),1,1) -> 1220.73 | F74: =OFFSET(InputPriceData!E$15,CalculationsAndCharts!$A74+$A$11,IF($C$7,8,0),1,1) -> 1212.33 | G74: =OFFSET(InputPriceData!F$15,CalculationsAndCharts!$A74+$A$11,IF($C$7,8,0),1,1) -> 1214.61 | H74: 1275.9 | I74: 1212.33 | J74: 3.586597452 | K74: 14.24567763 | L74: 1296 | M74: 1211.13 | N74: 4.10038883 | O74: 20.494089 | P74: 20 | Q74: 50 | R74: 80 | S74: 1213.6817 | AQ74: 38367500
A75: 43 | B75: =OFFSET(InputPriceData!B$15,CalculationsAndCharts!$A75+$A$11,0,1,1) -> 2015-07-24 | C75: =OFFSET(InputPriceData!G$15,CalculationsAndCharts!$A75+$A$11,IF($C$7,8,0),1,1) -> 38700400 | D75: =OFFSET(InputPriceData!C$15,CalculationsAndCharts!$A75+$A$11,IF($C$7,8,0),1,1) -> 1242.39 | E75: =OFFSET(InputPriceData!D$15,CalculationsAndCharts!$A75+$A$11,IF($C$7,8,0),1,1) -> 1243.58 | F75: =OFFSET(InputPriceData!E$15,CalculationsAndCharts!$A75+$A$11,IF($C$7,8,0),1,1) -> 1225.43 | G75: =OFFSET(InputPriceData!F$15,CalculationsAndCharts!$A75+$A$11,IF($C$7,8,0),1,1) -> 1225.99 | H75: 1275.9 | I75: 1225.43 | J75: 1.109570042 | K75: 34.66472848 | L75: 1296 | M75: 1211.13 | N75: 17.50913161 | O75: 37.67330427 | P75: 20 | Q75: 50 | R75: 80 | S75: 1213.09425 | AQ75: 38700400
A76: 44 | B76: =OFFSET(InputPriceData!B$15,CalculationsAndCharts!$A76+$A$11,0,1,1) -> 2015-07-23 | C76: =OFFSET(InputPriceData!G$15,CalculationsAndCharts!$A76+$A$11,IF($C$7,8,0),1,1) -> 37728100 | D76: =OFFSET(InputPriceData!C$15,CalculationsAndCharts!$A76+$A$11,IF($C$7,8,0),1,1) -> 1260.66 | E76: =OFFSET(InputPriceData!D$15,CalculationsAndCharts!$A76+$A$11,IF($C$7,8,0),1,1) -> 1262.57 | F76: =OFFSET(InputPriceData!E$15,CalculationsAndCharts!$A76+$A$11,IF($C$7,8,0),1,1) -> 1243.69 | G76: =OFFSET(InputPriceData!F$15,CalculationsAndCharts!$A76+$A$11,IF($C$7,8,0),1,1) -> 1244.97 | H76: 1275.9 | I76: 1225.98 | J76: 38.04086538 | K76: 53.38541667 | L76: 1296 | M76: 1211.13 | N76: 39.87274655 | O76: 48.89831507 | P76: 20 | Q76: 50 | R76: 80 | S76: 1212.34585 | AQ76: 37728100
A77: 45 | B77: =OFFSET(InputPriceData!B$15,CalculationsAndCharts!$A77+$A$11,0,1,1) -> 2015-07-22 | C77: =OFFSET(InputPriceData!G$15,CalculationsAndCharts!$A77+$A$11,IF($C$7,8,0),1,1) -> 36940700 | D77: =OFFSET(InputPriceData!C$15,CalculationsAndCharts!$A77+$A$11,IF($C$7,8,0),1,1) -> 1249.37 | E77: =OFFSET(InputPriceData!D$15,CalculationsAndCharts!$A77+$A$11,IF($C$7,8,0),1,1) -> 1259.76 | F77: =OFFSET(InputPriceData!E$15,CalculationsAndCharts!$A77+$A$11,IF($C$7,8,0),1,1) -> 1248.63 | G77: =OFFSET(InputPriceData!F$15,CalculationsAndCharts!$A77+$A$11,IF($C$7,8,0),1,1) -> 1258.35 | H77: 1275.9 | I77: 1225.98 | J77: 64.84375 | K77: 63.56837607 | L77: 1296 | M77: 1211.13 | N77: 55.63803464 | O77: 54.88786772 | P77: 20 | Q77: 50 | R77: 80 | S77: 1211.59425 | AP77: 36940700
A78: 46 | B78: =OFFSET(InputPriceData!B$15,CalculationsAndCharts!$A78+$A$11,0,1,1) -> 2015-07-21 | C78: =OFFSET(InputPriceData!G$15,CalculationsAndCharts!$A78+$A$11,IF($C$7,8,0),1,1) -> 33436900 | D78: =OFFSET(InputPriceData!C$15,CalculationsAndCharts!$A78+$A$11,IF($C$7,8,0),1,1) -> 1259.75 | E78: =OFFSET(InputPriceData!D$15,CalculationsAndCharts!$A78+$A$11,IF($C$7,8,0),1,1) -> 1265.44 | F78: =OFFSET(InputPriceData!E$15,CalculationsAndCharts!$A78+$A$11,IF($C$7,8,0),1,1) -> 1252.09 | G78: =OFFSET(InputPriceData!F$15,CalculationsAndCharts!$A78+$A$11,IF($C$7,8,0),1,1) -> 1254.57 | H78: 1275.9 | I78: 1225.98 | J78: 57.27163462 | K78: 69.40438034 | L78: 1296 | M78: 1211.13 | N78: 51.18416402 | O78: 58.32056871 | P78: 20 | Q78: 50 | R78: 80 | S78: 1210.8262 | AQ78: 33436900
A79: 47 | B79: =OFFSET(InputPriceData!B$15,CalculationsAndCharts!$A79+$A$11,0,1,1) -> 2015-07-20 | C79: =OFFSET(InputPriceData!G$15,CalculationsAndCharts!$A79+$A$11,IF($C$7,8,0),1,1) -> 32458700 | D79: =OFFSET(InputPriceData!C$15,CalculationsAndCharts!$A79+$A$11,IF($C$7,8,0),1,1) -> 1268.82 | E79: =OFFSET(InputPriceData!D$15,CalculationsAndCharts!$A79+$A$11,IF($C$7,8,0),1,1) -> 1268.89 | F79: =OFFSET(InputPriceData!E$15,CalculationsAndCharts!$A79+$A$11,IF($C$7,8,0),1,1) -> 1258.3 | G79: =OFFSET(InputPriceData!F$15,CalculationsAndCharts!$A79+$A$11,IF($C$7,8,0),1,1) -> 1260.22 | H79: 1275.9 | I79: 1225.98 | J79: 68.58974359 | K79: 75.86466444 | L79: 1296 | M79: 1211.13 | N79: 57.8414045 | O79: 65.49232159 | P79: 20 | Q79: 50 | R79: 80 | S79: 1210.03525 | AQ79: 32458700
A80: 48 | B80: =OFFSET(InputPriceData!B$15,CalculationsAndCharts!$A80+$A$11,0,1,1) -> 2015-07-17 | C80: =OFFSET(InputPriceData!G$15,CalculationsAndCharts!$A80+$A$11,IF($C$7,8,0),1,1) -> 33627500 | D80: =OFFSET(InputPriceData!C$15,CalculationsAndCharts!$A80+$A$11,IF($C$7,8,0),1,1) -> 1273.67 | E80: =OFFSET(InputPriceData!D$15,CalculationsAndCharts!$A80+$A$11,IF($C$7,8,0),1,1) -> 1273.67 | F80: =OFFSET(InputPriceData!E$15,CalculationsAndCharts!$A80+$A$11,IF($C$7,8,0),1,1) -> 1263.87 | G80: =OFFSET(InputPriceData!F$15,CalculationsAndCharts!$A80+$A$11,IF($C$7,8,0),1,1) -> 1267.09 | H80: 1275.9 | I80: 1225.98 | J80: 82.35176282 | K80: 73.89710081 | L80: 1296 | M80: 1211.13 | N80: 65.93613762 | O80: 67.18117906 | P80: 20 | Q80: 50 | R80: 80 | S80: 1209.1612 | AQ80: 33627500
A81: 49 | B81: =OFFSET(InputPriceData!B$15,CalculationsAndCharts!$A81+$A$11,0,1,1) -> 2015-07-16 | C81: =OFFSET(InputPriceData!G$15,CalculationsAndCharts!$A81+$A$11,IF($C$7,8,0),1,1) -> 32270800 | D81: =OFFSET(InputPriceData!C$15,CalculationsAndCharts!$A81+$A$11,IF($C$7,8,0),1,1) -> 1271.1 | E81: =OFFSET(InputPriceData!D$15,CalculationsAndCharts!$A81+$A$11,IF($C$7,8,0),1,1) -> 1275.9 | F81: =OFFSET(InputPriceData!E$15,CalculationsAndCharts!$A81+$A$11,IF($C$7,8,0),1,1) -> 1269.66 | G81: =OFFSET(InputPriceData!F$15,CalculationsAndCharts!$A81+$A$11,IF($C$7,8,0),1,1) -> 1272.83 | H81: 1287.1 | I81: 1225.98 | J81: 76.65248691 | K81: 69.30434569 | L81: 1296 | M81: 1211.13 | N81: 72.69942265 | O81: 69.63198617 | P81: 20 | Q81: 50 | R81: 80 | S81: 1208.33415 | AP81: 32270800
A82: 50 | B82: =OFFSET(InputPriceData!B$15,CalculationsAndCharts!$A82+$A$11,0,1,1) -> 2015-07-15 | C82: =OFFSET(InputPriceData!G$15,CalculationsAndCharts!$A82+$A$11,IF($C$7,8,0),1,1) -> 32618100 | D82: =OFFSET(InputPriceData!C$15,CalculationsAndCharts!$A82+$A$11,IF($C$7,8,0),1,1) -> 1273.8 | E82: =OFFSET(InputPriceData!D$15,CalculationsAndCharts!$A82+$A$11,IF($C$7,8,0),1,1) -> 1273.8 | F82: =OFFSET(InputPriceData!E$15,CalculationsAndCharts!$A82+$A$11,IF($C$7,8,0),1,1) -> 1263.01 | G82: =OFFSET(InputPriceData!F$15,CalculationsAndCharts!$A82+$A$11,IF($C$7,8,0),1,1) -> 1264.52 | H82: 1287.46 | I82: 1225.98 | J82: 62.6870527 | K82: 62.49578084 | L82: 1296 | M82: 1211.13 | N82: 62.90797691 | O82: 66.6941597 | P82: 20 | Q82: 50 | R82: 80 | S82: 1207.55955 | AP82: =IF(G82>=D82,C82,NA()) ->  | AQ82: =IF(G82<D82,C82,NA()) -> 32618100
A83: 51 | B83: =OFFSET(InputPriceData!B$15,CalculationsAndCharts!$A83+$A$11,0,1,1) -> 2015-07-14 | C83: =OFFSET(InputPriceData!G$15,CalculationsAndCharts!$A83+$A$11,IF($C$7,8,0),1,1) -> 30021200 | D83: =OFFSET(InputPriceData!C$15,CalculationsAndCharts!$A83+$A$11,IF($C$7,8,0),1,1) -> 1265.3 | E83: =OFFSET(InputPriceData!D$15,CalculationsAndCharts!$A83+$A$11,IF($C$7,8,0),1,1) -> 1274.11 | F83: =OFFSET(InputPriceData!E$15,CalculationsAndCharts!$A83+$A$11,IF($C$7,8,0),1,1) -> 1264.87 | G83: =OFFSET(InputPriceData!F$15,CalculationsAndCharts!$A83+$A$11,IF($C$7,8,0),1,1) -> 1273.33 | H83: 1295.03 | I83: 1225.98 | J83: 68.57349747 | K83: 53.99655476 | L83: 1296 | M83: 1211.13 | N83: 73.28855897 | O83: 61.78469031 | P83: 20 | Q83: 50 | R83: 80 | S83: 1206.8336 | AP83: 30021200
A84: 52 | B84: =OFFSET(InputPriceData!B$15,CalculationsAndCharts!$A84+$A$11,0,1,1) -> 2015-07-13 | C84: =OFFSET(InputPriceData!G$15,CalculationsAndCharts!$A84+$A$11,IF($C$7,8,0),1,1) -> 30967300 | D84: =OFFSET(InputPriceData!C$15,CalculationsAndCharts!$A84+$A$11,IF($C$7,8,0),1,1) -> 1258.79 | E84: =OFFSET(InputPriceData!D$15,CalculationsAndCharts!$A84+$A$11,IF($C$7,8,0),1,1) -> 1266.1 | F84: =OFFSET(InputPriceData!E$15,CalculationsAndCharts!$A84+$A$11,IF($C$7,8,0),1,1) -> 1258.79 | G84: =OFFSET(InputPriceData!F$15,CalculationsAndCharts!$A84+$A$11,IF($C$7,8,0),1,1) -> 1265.35 | H84: 1296 | I84: 1225.98 | J84: 56.22679235 | K84: 35.02808721 | L84: 1296 | M84: 1211.13 | N84: 63.88594321 | O84: 46.39644947 | P84: 20 | Q84: 50 | R84: 80 | S84: 1206.01815 | AP84: 30967300
A85: 53 | B85: =OFFSET(InputPriceData!B$15,CalculationsAndCharts!$A85+$A$11,0,1,1) -> 2015-07-10 | C85: =OFFSET(InputPriceData!G$15,CalculationsAndCharts!$A85+$A$11,IF($C$7,8,0),1,1) -> 30650700 | D85: =OFFSET(InputPriceData!C$15,CalculationsAndCharts!$A85+$A$11,IF($C$7,8,0),1,1) -> 1245 | E85: =OFFSET(InputPriceData!D$15,CalculationsAndCharts!$A85+$A$11,IF($C$7,8,0),1,1) -> 1252.87 | F85: =OFFSET(InputPriceData!E$15,CalculationsAndCharts!$A85+$A$11,IF($C$7,8,0),1,1) -> 1244.22 | G85: =OFFSET(InputPriceData!F$15,CalculationsAndCharts!$A85+$A$11,IF($C$7,8,0),1,1) -> 1252.02 | H85: 1296 | I85: 1225.98 | J85: 37.18937446 | K85: 17.70446539 | L85: 1296 | M85: 1211.13 | N85: 48.17956875 | O85: 32.1040022 | P85: 20 | Q85: 50 | R85: 80 | S85: 1205.33295 | AP85: 30650700
A86: 54 | B86: =OFFSET(InputPriceData!B$15,CalculationsAndCharts!$A86+$A$11,0,1,1) -> 2015-07-09 | C86: =OFFSET(InputPriceData!G$15,CalculationsAndCharts!$A86+$A$11,IF($C$7,8,0),1,1) -> 34468100 | D86: =OFFSET(InputPriceData!C$15,CalculationsAndCharts!$A86+$A$11,IF($C$7,8,0),1,1) -> 1240.16 | E86: =OFFSET(InputPriceData!D$15,CalculationsAndCharts!$A86+$A$11,IF($C$7,8,0),1,1) -> 1243.96 | F86: =OFFSET(InputPriceData!E$15,CalculationsAndCharts!$A86+$A$11,IF($C$7,8,0),1,1) -> 1232.81 | G86: =OFFSET(InputPriceData!F$15,CalculationsAndCharts!$A86+$A$11,IF($C$7,8,0),1,1) -> 1234.15 | H86: 1296 | I86: 1225.98 | J86: 11.66809483 | K86: 15.81452918 | L86: 1296 | M86: 1211.13 | N86: 27.12383646 | O86: 30.54475472 | P86: 20 | Q86: 50 | R86: 80 | S86: 1204.66645 | AQ86: 34468100
A87: 55 | B87: =OFFSET(InputPriceData!B$15,CalculationsAndCharts!$A87+$A$11,0,1,1) -> 2015-07-08 | C87: =OFFSET(InputPriceData!G$15,CalculationsAndCharts!$A87+$A$11,IF($C$7,8,0),1,1) -> 36087800 | D87: =OFFSET(InputPriceData!C$15,CalculationsAndCharts!$A87+$A$11,IF($C$7,8,0),1,1) -> 1239.08 | E87: =OFFSET(InputPriceData!D$15,CalculationsAndCharts!$A87+$A$11,IF($C$7,8,0),1,1) -> 1241.35 | F87: =OFFSET(InputPriceData!E$15,CalculationsAndCharts!$A87+$A$11,IF($C$7,8,0),1,1) -> 1226.52 | G87: =OFFSET(InputPriceData!F$15,CalculationsAndCharts!$A87+$A$11,IF($C$7,8,0),1,1) -> 1228.96 | H87: 1296 | I87: 1225.98 | J87: 4.255926878 | K87: 17.74348888 | L87: 1296 | M87: 1211.13 | N87: 21.00860139 | O87: 35.57597895 | P87: 20 | Q87: 50 | R87: 80 | S87: 1204.1425 | AQ87: 36087800
A88: 56 | B88: =OFFSET(InputPriceData!B$15,CalculationsAndCharts!$A88+$A$11,0,1,1) -> 2015-07-07 | C88: =OFFSET(InputPriceData!G$15,CalculationsAndCharts!$A88+$A$11,IF($C$7,8,0),1,1) -> 44586600 | D88: =OFFSET(InputPriceData!C$15,CalculationsAndCharts!$A88+$A$11,IF($C$7,8,0),1,1) -> 1247.78 | E88: =OFFSET(InputPriceData!D$15,CalculationsAndCharts!$A88+$A$11,IF($C$7,8,0),1,1) -> 1248.96 | F88: =OFFSET(InputPriceData!E$15,CalculationsAndCharts!$A88+$A$11,IF($C$7,8,0),1,1) -> 1225.98 | G88: =OFFSET(InputPriceData!F$15,CalculationsAndCharts!$A88+$A$11,IF($C$7,8,0),1,1) -> 1248.05 | H88: 1296 | I88: 1225.98 | J88: 31.51956584 | K88: 18.68030697 | L88: 1296 | M88: 1211.13 | N88: 43.50182632 | O88: 43.15619968 | P88: 20 | Q88: 50 | R88: 80 | S88: 1203.7323 | AP88: 44586600
A89: 57 | B89: =OFFSET(InputPriceData!B$15,CalculationsAndCharts!$A89+$A$11,0,1,1) -> 2015-07-06 | C89: =OFFSET(InputPriceData!G$15,CalculationsAndCharts!$A89+$A$11,IF($C$7,8,0),1,1) -> 34863600 | D89: =OFFSET(InputPriceData!C$15,CalculationsAndCharts!$A89+$A$11,IF($C$7,8,0),1,1) -> 1239.23 | E89: =OFFSET(InputPriceData!D$15,CalculationsAndCharts!$A89+$A$11,IF($C$7,8,0),1,1) -> 1253.2 | F89: =OFFSET(InputPriceData!E$15,CalculationsAndCharts!$A89+$A$11,IF($C$7,8,0),1,1) -> 1236.59 | G89: =OFFSET(InputPriceData!F$15,CalculationsAndCharts!$A89+$A$11,IF($C$7,8,0),1,1) -> 1246.96 | H89: 1296 | I89: 1236.59 | J89: 17.45497391 | K89: 14.78647058 | L89: 1296 | M89: 1211.13 | N89: 42.21750913 | O89: 46.43572523 | P89: 20 | Q89: 50 | R89: 80 | S89: 1203.2884 | AP89: 34863600
A90: 58 | B90: =OFFSET(InputPriceData!B$15,CalculationsAndCharts!$A90+$A$11,0,1,1) -> 2015-07-02 | C90: =OFFSET(InputPriceData!G$15,CalculationsAndCharts!$A90+$A$11,IF($C$7,8,0),1,1) -> 29965400 | D90: =OFFSET(InputPriceData!C$15,CalculationsAndCharts!$A90+$A$11,IF($C$7,8,0),1,1) -> 1259.03 | E90: =OFFSET(InputPriceData!D$15,CalculationsAndCharts!$A90+$A$11,IF($C$7,8,0),1,1) -> 1259.25 | F90: =OFFSET(InputPriceData!E$15,CalculationsAndCharts!$A90+$A$11,IF($C$7,8,0),1,1) -> 1244.63 | G90: =OFFSET(InputPriceData!F$15,CalculationsAndCharts!$A90+$A$11,IF($C$7,8,0),1,1) -> 1248.26 | H90: 1296 | I90: 1244.63 | J90: 7.066381156 | K90: 13.92766012 | L90: 1296 | M90: 1211.13 | N90: 43.74926358 | O90: 49.18110051 | P90: 20 | Q90: 50 | R90: 80 | S90: 1202.82305 | AQ90: 29965400
A91: 59 | B91: =OFFSET(InputPriceData!B$15,CalculationsAndCharts!$A91+$A$11,0,1,1) -> 2015-07-01 | C91: =OFFSET(InputPriceData!G$15,CalculationsAndCharts!$A91+$A$11,IF($C$7,8,0),1,1) -> 37272600 | D91: =OFFSET(InputPriceData!C$15,CalculationsAndCharts!$A91+$A$11,IF($C$7,8,0),1,1) -> 1262.12 | E91: =OFFSET(InputPriceData!D$15,CalculationsAndCharts!$A91+$A$11,IF($C$7,8,0),1,1) -> 1264.63 | F91: =OFFSET(InputPriceData!E$15,CalculationsAndCharts!$A91+$A$11,IF($C$7,8,0),1,1) -> 1250.65 | G91: =OFFSET(InputPriceData!F$15,CalculationsAndCharts!$A91+$A$11,IF($C$7,8,0),1,1) -> 1256.4 | H91: 1296 | I91: 1246.6 | J91: 19.83805668 | K91: 11.6734143 | L91: 1296 | M91: 1211.13 | N91: 53.34040297 | O91: 48.58803661 | P91: 20 | Q91: 50 | R91: 80 | S91: 1202.3366 | AQ91: 37272600
A92: 60 | B92: =OFFSET(InputPriceData!B$15,CalculationsAndCharts!$A92+$A$11,0,1,1) -> 2015-06-30 | C92: =OFFSET(InputPriceData!G$15,CalculationsAndCharts!$A92+$A$11,IF($C$7,8,0),1,1) -> 40785400 | D92: =OFFSET(InputPriceData!C$15,CalculationsAndCharts!$A92+$A$11,IF($C$7,8,0),1,1) -> 1255.51 | E92: =OFFSET(InputPriceData!D$15,CalculationsAndCharts!$A92+$A$11,IF($C$7,8,0),1,1) -> 1256.87 | F92: =OFFSET(InputPriceData!E$15,CalculationsAndCharts!$A92+$A$11,IF($C$7,8,0),1,1) -> 1248.81 | G92: =OFFSET(InputPriceData!F$15,CalculationsAndCharts!$A92+$A$11,IF($C$7,8,0),1,1) -> 1253.95 | H92: 1296 | I92: 1246.6 | J92: 14.87854251 | K92: 28.32694798 | L92: 1296 | M92: 1211.13 | N92: 50.45363497 | O92: 57.77856329 | P92: 20 | Q92: 50 | R92: 80 | S92: 1201.7872 | AQ92: 40785400
A93: 61 | B93: =OFFSET(InputPriceData!B$15,CalculationsAndCharts!$A93+$A$11,0,1,1) -> 2015-06-29 | C93: =OFFSET(InputPriceData!G$15,CalculationsAndCharts!$A93+$A$11,IF($C$7,8,0),1,1) -> 36789600 | D93: =OFFSET(InputPriceData!C$15,CalculationsAndCharts!$A93+$A$11,IF($C$7,8,0),1,1) -> 1269.36 | E93: =OFFSET(InputPriceData!D$15,CalculationsAndCharts!$A93+$A$11,IF($C$7,8,0),1,1) -> 1273.95 | F93: =OFFSET(InputPriceData!E$15,CalculationsAndCharts!$A93+$A$11,IF($C$7,8,0),1,1) -> 1246.6 | G93: =OFFSET(InputPriceData!F$15,CalculationsAndCharts!$A93+$A$11,IF($C$7,8,0),1,1) -> 1246.75 | H93: 1296 | I93: 1246.6 | J93: 0.3036437247 | K93: 48.7962183 | L93: 1296 | M93: 1211.13 | N93: 41.97007187 | O93: 69.29814226 | P93: 20 | Q93: 50 | R93: 80 | S93: 1201.3205 | AQ93: 36789600
A94: 62 | B94: =OFFSET(InputPriceData!B$15,CalculationsAndCharts!$A94+$A$11,0,1,1) -> 2015-06-26 | C94: =OFFSET(InputPriceData!G$15,CalculationsAndCharts!$A94+$A$11,IF($C$7,8,0),1,1) -> 50254700 | D94: =OFFSET(InputPriceData!C$15,CalculationsAndCharts!$A94+$A$11,IF($C$7,8,0),1,1) -> 1285.23 | E94: =OFFSET(InputPriceData!D$15,CalculationsAndCharts!$A94+$A$11,IF($C$7,8,0),1,1) -> 1287.1 | F94: =OFFSET(InputPriceData!E$15,CalculationsAndCharts!$A94+$A$11,IF($C$7,8,0),1,1) -> 1274.03 | G94: =OFFSET(InputPriceData!F$15,CalculationsAndCharts!$A94+$A$11,IF($C$7,8,0),1,1) -> 1279.8 | H94: 1296 | I94: 1242.36 | J94: 69.79865772 | K94: 74.52150137 | L94: 1296 | M94: 1211.13 | N94: 80.91198303 | O94: 83.89694042 | P94: 20 | Q94: 50 | R94: 80 | S94: 1200.94845 | AQ94: 50254700
A95: 63 | B95: =OFFSET(InputPriceData!B$15,CalculationsAndCharts!$A95+$A$11,0,1,1) -> 2015-06-25 | C95: =OFFSET(InputPriceData!G$15,CalculationsAndCharts!$A95+$A$11,IF($C$7,8,0),1,1) -> 32146100 | D95: =OFFSET(InputPriceData!C$15,CalculationsAndCharts!$A95+$A$11,IF($C$7,8,0),1,1) -> 1286.97 | E95: =OFFSET(InputPriceData!D$15,CalculationsAndCharts!$A95+$A$11,IF($C$7,8,0),1,1) -> 1287.46 | F95: =OFFSET(InputPriceData!E$15,CalculationsAndCharts!$A95+$A$11,IF($C$7,8,0),1,1) -> 1278.57 | G95: =OFFSET(InputPriceData!F$15,CalculationsAndCharts!$A95+$A$11,IF($C$7,8,0),1,1) -> 1283.28 | H95: 1296 | I95: 1242.36 | J95: 76.28635347 | K95: 84.4643301 | L95: 1296 | M95: 1211.13 | N95: 85.01237186 | O95: 90.18106123 | P95: 20 | Q95: 50 | R95: 80 | S95: 1200.3744 | AQ95: 32146100
A96: 64 | B96: =OFFSET(InputPriceData!B$15,CalculationsAndCharts!$A96+$A$11,0,1,1) -> 2015-06-24 | C96: =OFFSET(InputPriceData!G$15,CalculationsAndCharts!$A96+$A$11,IF($C$7,8,0),1,1) -> 31024800 | D96: =OFFSET(InputPriceData!C$15,CalculationsAndCharts!$A96+$A$11,IF($C$7,8,0),1,1) -> 1293.81 | E96: =OFFSET(InputPriceData!D$15,CalculationsAndCharts!$A96+$A$11,IF($C$7,8,0),1,1) -> 1295.03 | F96: =OFFSET(InputPriceData!E$15,CalculationsAndCharts!$A96+$A$11,IF($C$7,8,0),1,1) -> 1283.2 | G96: =OFFSET(InputPriceData!F$15,CalculationsAndCharts!$A96+$A$11,IF($C$7,8,0),1,1) -> 1283.92 | H96: 1296 | I96: 1242.36 | J96: 77.47949292 | K96: 91.76698166 | L96: 1296 | M96: 1211.13 | N96: 85.76646636 | O96: 94.80377268 | P96: 20 | Q96: 50 | R96: 80 | S96: 1199.7505 | AQ96: 31024800
A97: 65 | B97: =OFFSET(InputPriceData!B$15,CalculationsAndCharts!$A97+$A$11,0,1,1) -> 2015-06-23 | C97: =OFFSET(InputPriceData!G$15,CalculationsAndCharts!$A97+$A$11,IF($C$7,8,0),1,1) -> 30911900 | D97: =OFFSET(InputPriceData!C$15,CalculationsAndCharts!$A97+$A$11,IF($C$7,8,0),1,1) -> 1294.37 | E97: =OFFSET(InputPriceData!D$15,CalculationsAndCharts!$A97+$A$11,IF($C$7,8,0),1,1) -> 1296 | F97: =OFFSET(InputPriceData!E$15,CalculationsAndCharts!$A97+$A$11,IF($C$7,8,0),1,1) -> 1289.59 | G97: =OFFSET(InputPriceData!F$15,CalculationsAndCharts!$A97+$A$11,IF($C$7,8,0),1,1) -> 1295.8 | H97: 1296 | I97: 1242.36 | J97: 99.62714392 | K97: 97.48410818 | L97: 1296 | M97: 1211.13 | N97: 99.76434547 | O97: 98.49468189 | P97: 20 | Q97: 50 | R97: 80 | S97: 1199.19245 | AP97: 30911900
A98: 66 | B98: =OFFSET(InputPriceData!B$15,CalculationsAndCharts!$A98+$A$11,0,1,1) -> 2015-06-22 | C98: =OFFSET(InputPriceData!G$15,CalculationsAndCharts!$A98+$A$11,IF($C$7,8,0),1,1) -> 30300200 | D98: =OFFSET(InputPriceData!C$15,CalculationsAndCharts!$A98+$A$11,IF($C$7,8,0),1,1) -> 1290.56 | E98: =OFFSET(InputPriceData!D$15,CalculationsAndCharts!$A98+$A$11,IF($C$7,8,0),1,1) -> 1293.31 | F98: =OFFSET(InputPriceData!E$15,CalculationsAndCharts!$A98+$A$11,IF($C$7,8,0),1,1) -> 1288.49 | G98: =OFFSET(InputPriceData!F$15,CalculationsAndCharts!$A98+$A$11,IF($C$7,8,0),1,1) -> 1292.39 | H98: =MAX(OFFSET($E98,0,0,$B$18,1)) -> 1293.31 | I98: =MIN(OFFSET($F98,0,0,$B$18,1)) -> 1242.36 | J98: =($G98-I98)/(H98-I98)*100 -> 98.19430815 | K98: =AVERAGE(OFFSET(J98,0,0,$B$19,1)) -> 95.96961368 | L98: =MAX(OFFSET($E98,0,0,$B$20,1)) -> 1293.31 | M98: =MIN(OFFSET($F98,0,0,$B$20,1)) -> 1211.13 | N98: =($G98-M98)/(L98-M98)*100 -> 98.88050621 | O98: =AVERAGE(OFFSET(N98,0,0,$B$21,1)) -> 97.59320458 | P98: =$P$31 -> 20 | Q98: =$Q$31 -> 50 | R98: =$R$31 -> 80 | S98: =AVERAGE(OFFSET(G98,0,0,$C$18,1)) -> 1198.5641 | AP98: 30300200
A99: 67 | B99: =OFFSET(InputPriceData!B$15,CalculationsAndCharts!$A99+$A$11,0,1,1) -> 2015-06-19 | C99: =OFFSET(InputPriceData!G$15,CalculationsAndCharts!$A99+$A$11,IF($C$7,8,0),1,1) -> 44498100 | D99: =OFFSET(InputPriceData!C$15,CalculationsAndCharts!$A99+$A$11,IF($C$7,8,0),1,1) -> 1285.47 | E99: =OFFSET(InputPriceData!D$15,CalculationsAndCharts!$A99+$A$11,IF($C$7,8,0),1,1) -> 1286.58 | F99: =OFFSET(InputPriceData!E$15,CalculationsAndCharts!$A99+$A$11,IF($C$7,8,0),1,1) -> 1281.66 | G99: =OFFSET(InputPriceData!F$15,CalculationsAndCharts!$A99+$A$11,IF($C$7,8,0),1,1) -> 1284.66 | H99: 1287.06 | I99: 1242.36 | J99: 94.63087248 | K99: 90.9118373 | L99: 1287.06 | M99: 1211.13 | N99: 96.83919399 | O99: 93.23204301 | P99: 20 | Q99: 50 | R99: 80 | S99: 1197.9382 | AQ99: 44498100
A100: 68 | B100: =OFFSET(InputPriceData!B$15,CalculationsAndCharts!$A100+$A$11,0,1,1) -> 2015-06-18 | C100: =OFFSET(InputPriceData!G$15,CalculationsAndCharts!$A100+$A$11,IF($C$7,8,0),1,1) -> 34990000 | D100: =OFFSET(InputPriceData!C$15,CalculationsAndCharts!$A100+$A$11,IF($C$7,8,0),1,1) -> 1271.95 | E100: =OFFSET(InputPriceData!D$15,CalculationsAndCharts!$A100+$A$11,IF($C$7,8,0),1,1) -> 1287.06 | F100: =OFFSET(InputPriceData!E$15,CalculationsAndCharts!$A100+$A$11,IF($C$7,8,0),1,1) -> 1271.95 | G100: =OFFSET(InputPriceData!F$15,CalculationsAndCharts!$A100+$A$11,IF($C$7,8,0),1,1) -> 1284.68 | H100: 1287.06 | I100: 1238.65 | J100: 95.0836604 | K100: 90.74076216 | L100: 1287.06 | M100: 1206.11 | N100: 97.05991353 | O100: 90.10289083 | P100: 20 | Q100: 50 | R100: 80 | S100: 1197.3759 | AP100: 34990000
A101: 69 | B101: =OFFSET(InputPriceData!B$15,CalculationsAndCharts!$A101+$A$11,0,1,1) -> 2015-06-17 | C101: =OFFSET(InputPriceData!G$15,CalculationsAndCharts!$A101+$A$11,IF($C$7,8,0),1,1) -> 32222400 | D101: =OFFSET(InputPriceData!C$15,CalculationsAndCharts!$A101+$A$11,IF($C$7,8,0),1,1) -> 1273.36 | E101: =OFFSET(InputPriceData!D$15,CalculationsAndCharts!$A101+$A$11,IF($C$7,8,0),1,1) -> 1274.4 | F101: =OFFSET(InputPriceData!E$15,CalculationsAndCharts!$A101+$A$11,IF($C$7,8,0),1,1) -> 1266.63 | G101: =OFFSET(InputPriceData!F$15,CalculationsAndCharts!$A101+$A$11,IF($C$7,8,0),1,1) -> 1268.33 | H101: 1274.4 | I101: 1238.65 | J101: 83.02097902 | K101: 82.58448476 | L101: 1278.63 | M101: 1206.11 | N101: 85.79702151 | O101: 82.99779371 | P101: 20 | Q101: 50 | R101: 80 | S101: 1196.84985 | AQ101: 32222400
A102: 70 | B102: =OFFSET(InputPriceData!B$15,CalculationsAndCharts!$A102+$A$11,0,1,1) -> 2015-06-16 | C102: =OFFSET(InputPriceData!G$15,CalculationsAndCharts!$A102+$A$11,IF($C$7,8,0),1,1) -> 29199000 | D102: =OFFSET(InputPriceData!C$15,CalculationsAndCharts!$A102+$A$11,IF($C$7,8,0),1,1) -> 1259.02 | E102: =OFFSET(InputPriceData!D$15,CalculationsAndCharts!$A102+$A$11,IF($C$7,8,0),1,1) -> 1271.46 | F102: =OFFSET(InputPriceData!E$15,CalculationsAndCharts!$A102+$A$11,IF($C$7,8,0),1,1) -> 1258.93 | G102: =OFFSET(InputPriceData!F$15,CalculationsAndCharts!$A102+$A$11,IF($C$7,8,0),1,1) -> 1269.53 | H102: 1271.46 | I102: 1238.65 | J102: 94.11764706 | K102: 83.05577608 | L102: 1278.63 | M102: 1206.11 | N102: 87.45173745 | O102: 81.47637433 | P102: 20 | Q102: 50 | R102: 80 | S102: 1196.37995 | AP102: 29199000
A103: 71 | B103: =OFFSET(InputPriceData!B$15,CalculationsAndCharts!$A103+$A$11,0,1,1) -> 2015-06-15 | C103: =OFFSET(InputPriceData!G$15,CalculationsAndCharts!$A103+$A$11,IF($C$7,8,0),1,1) -> 30615700 | D103: =OFFSET(InputPriceData!C$15,CalculationsAndCharts!$A103+$A$11,IF($C$7,8,0),1,1) -> 1259.38 | E103: =OFFSET(InputPriceData!D$15,CalculationsAndCharts!$A103+$A$11,IF($C$7,8,0),1,1) -> 1262.86 | F103: =OFFSET(InputPriceData!E$15,CalculationsAndCharts!$A103+$A$11,IF($C$7,8,0),1,1) -> 1247.52 | G103: =OFFSET(InputPriceData!F$15,CalculationsAndCharts!$A103+$A$11,IF($C$7,8,0),1,1) -> 1261.04 | H103: 1270.79 | I103: 1237.61 | J103: 70.61482821 | K103: 83.33505693 | L103: 1278.63 | M103: 1206.11 | N103: 75.74462217 | O103: 81.19599191 | P103: 20 | Q103: 50 | R103: 80 | S103: 1195.86205 | AP103: 30615700
A104: 72 | B104: =OFFSET(InputPriceData!B$15,CalculationsAndCharts!$A104+$A$11,0,1,1) -> 2015-06-12 | C104: =OFFSET(InputPriceData!G$15,CalculationsAndCharts!$A104+$A$11,IF($C$7,8,0),1,1) -> 27194000 | D104: =OFFSET(InputPriceData!C$15,CalculationsAndCharts!$A104+$A$11,IF($C$7,8,0),1,1) -> 1265.56 | E104: =OFFSET(InputPriceData!D$15,CalculationsAndCharts!$A104+$A$11,IF($C$7,8,0),1,1) -> 1266.78 | F104: =OFFSET(InputPriceData!E$15,CalculationsAndCharts!$A104+$A$11,IF($C$7,8,0),1,1) -> 1262.22 | G104: =OFFSET(InputPriceData!F$15,CalculationsAndCharts!$A104+$A$11,IF($C$7,8,0),1,1) -> 1265.02 | H104: 1270.79 | I104: 1233.72 | J104: 84.43485298 | K104: 90.50413177 | L104: 1278.63 | M104: 1206.11 | N104: 81.23276338 | O104: 83.90329105 | P104: 20 | Q104: 50 | R104: 80 | S104: 1195.4204 | AQ104: 27194000
A105: 73 | B105: =OFFSET(InputPriceData!B$15,CalculationsAndCharts!$A105+$A$11,0,1,1) -> 2015-06-11 | C105: =OFFSET(InputPriceData!G$15,CalculationsAndCharts!$A105+$A$11,IF($C$7,8,0),1,1) -> 31286000 | D105: =OFFSET(InputPriceData!C$15,CalculationsAndCharts!$A105+$A$11,IF($C$7,8,0),1,1) -> 1268.68 | E105: =OFFSET(InputPriceData!D$15,CalculationsAndCharts!$A105+$A$11,IF($C$7,8,0),1,1) -> 1270.79 | F105: =OFFSET(InputPriceData!E$15,CalculationsAndCharts!$A105+$A$11,IF($C$7,8,0),1,1) -> 1266.05 | G105: =OFFSET(InputPriceData!F$15,CalculationsAndCharts!$A105+$A$11,IF($C$7,8,0),1,1) -> 1268.92 | H105: 1270.79 | I105: 1233.72 | J105: 94.95548961 | K105: 79.37818568 | L105: 1278.63 | M105: 1206.11 | N105: 86.61059018 | O105: 76.8431697 | P105: 20 | Q105: 50 | R105: 80 | S105: 1194.97115 | AP105: 31286000
A106: 74 | B106: =OFFSET(InputPriceData!B$15,CalculationsAndCharts!$A106+$A$11,0,1,1) -> 2015-06-10 | C106: =OFFSET(InputPriceData!G$15,CalculationsAndCharts!$A106+$A$11,IF($C$7,8,0),1,1) -> 34143200 | D106: =OFFSET(InputPriceData!C$15,CalculationsAndCharts!$A106+$A$11,IF($C$7,8,0),1,1) -> 1254.47 | E106: =OFFSET(InputPriceData!D$15,CalculationsAndCharts!$A106+$A$11,IF($C$7,8,0),1,1) -> 1269.77 | F106: =OFFSET(InputPriceData!E$15,CalculationsAndCharts!$A106+$A$11,IF($C$7,8,0),1,1) -> 1254.47 | G106: =OFFSET(InputPriceData!F$15,CalculationsAndCharts!$A106+$A$11,IF($C$7,8,0),1,1) -> 1266.93 | H106: 1269.77 | I106: 1233.72 | J106: 92.1220527 | K106: 69.05883499 | L106: 1278.63 | M106: 1206.11 | N106: 83.86651958 | O106: 69.84739842 | P106: 20 | Q106: 50 | R106: 80 | S106: 1194.45265 | AP106: 34143200
A107: 75 | B107: =OFFSET(InputPriceData!B$15,CalculationsAndCharts!$A107+$A$11,0,1,1) -> 2015-06-09 | C107: =OFFSET(InputPriceData!G$15,CalculationsAndCharts!$A107+$A$11,IF($C$7,8,0),1,1) -> 30345800 | D107: =OFFSET(InputPriceData!C$15,CalculationsAndCharts!$A107+$A$11,IF($C$7,8,0),1,1) -> 1253.5 | E107: =OFFSET(InputPriceData!D$15,CalculationsAndCharts!$A107+$A$11,IF($C$7,8,0),1,1) -> 1254.44 | F107: =OFFSET(InputPriceData!E$15,CalculationsAndCharts!$A107+$A$11,IF($C$7,8,0),1,1) -> 1242.36 | G107: =OFFSET(InputPriceData!F$15,CalculationsAndCharts!$A107+$A$11,IF($C$7,8,0),1,1) -> 1249.66 | H107: 1264.94 | I107: 1233.72 | J107: 51.05701473 | K107: 67.48878924 | L107: 1278.63 | M107: 1206.11 | N107: 60.05239934 | O107: 67.12630998 | P107: 20 | Q107: 50 | R107: 80 | S107: 1193.9197 | AQ107: 30345800
A108: 76 | B108: =OFFSET(InputPriceData!B$15,CalculationsAndCharts!$A108+$A$11,0,1,1) -> 2015-06-08 | C108: =OFFSET(InputPriceData!G$15,CalculationsAndCharts!$A108+$A$11,IF($C$7,8,0),1,1) -> 29171500 | D108: =OFFSET(InputPriceData!C$15,CalculationsAndCharts!$A108+$A$11,IF($C$7,8,0),1,1) -> 1259.67 | E108: =OFFSET(InputPriceData!D$15,CalculationsAndCharts!$A108+$A$11,IF($C$7,8,0),1,1) -> 1261.18 | F108: =OFFSET(InputPriceData!E$15,CalculationsAndCharts!$A108+$A$11,IF($C$7,8,0),1,1) -> 1252.73 | G108: =OFFSET(InputPriceData!F$15,CalculationsAndCharts!$A108+$A$11,IF($C$7,8,0),1,1) -> 1253.7 | H108: 1264.94 | I108: 1233.72 | J108: 63.99743754 | K108: 69.22912663 | L108: 1278.63 | M108: 1206.11 | N108: 65.62327634 | O108: 67.87552859 | P108: 20 | Q108: 50 | R108: 80 | S108: 1193.47155 | AQ108: 29171500
A109: 77 | B109: =OFFSET(InputPriceData!B$15,CalculationsAndCharts!$A109+$A$11,0,1,1) -> 2015-06-05 | C109: =OFFSET(InputPriceData!G$15,CalculationsAndCharts!$A109+$A$11,IF($C$7,8,0),1,1) -> 32436900 | D109: =OFFSET(InputPriceData!C$15,CalculationsAndCharts!$A109+$A$11,IF($C$7,8,0),1,1) -> 1250.4 | E109: =OFFSET(InputPriceData!D$15,CalculationsAndCharts!$A109+$A$11,IF($C$7,8,0),1,1) -> 1261.07 | F109: =OFFSET(InputPriceData!E$15,CalculationsAndCharts!$A109+$A$11,IF($C$7,8,0),1,1) -> 1242.74 | G109: =OFFSET(InputPriceData!F$15,CalculationsAndCharts!$A109+$A$11,IF($C$7,8,0),1,1) -> 1261.01 | H109: 1264.94 | I109: 1233.72 | J109: 87.41191544 | K109: 80.85972469 | L109: 1278.63 | M109: 1206.11 | N109: 75.70325427 | O109: 72.87644788 | P109: 20 | Q109: 50 | R109: 80 | S109: 1192.9906 | AP109: 32436900
A110: 78 | B110: =OFFSET(InputPriceData!B$15,CalculationsAndCharts!$A110+$A$11,0,1,1) -> 2015-06-04 | C110: =OFFSET(InputPriceData!G$15,CalculationsAndCharts!$A110+$A$11,IF($C$7,8,0),1,1) -> 32000500 | D110: =OFFSET(InputPriceData!C$15,CalculationsAndCharts!$A110+$A$11,IF($C$7,8,0),1,1) -> 1258.54 | E110: =OFFSET(InputPriceData!D$15,CalculationsAndCharts!$A110+$A$11,IF($C$7,8,0),1,1) -> 1261.21 | F110: =OFFSET(InputPriceData!E$15,CalculationsAndCharts!$A110+$A$11,IF($C$7,8,0),1,1) -> 1248.43 | G110: =OFFSET(InputPriceData!F$15,CalculationsAndCharts!$A110+$A$11,IF($C$7,8,0),1,1) -> 1251.29 | H110: 1264.94 | I110: 1233.72 | J110: 56.27802691 | K110: 75.60806356 | L110: 1278.63 | M110: 1206.11 | N110: 62.30005516 | O110: 68.64313293 | P110: 20 | Q110: 50 | R110: 80 | S110: 1192.4979 | AQ110: 32000500
A111: 79 | B111: =OFFSET(InputPriceData!B$15,CalculationsAndCharts!$A111+$A$11,0,1,1) -> 2015-06-03 | C111: =OFFSET(InputPriceData!G$15,CalculationsAndCharts!$A111+$A$11,IF($C$7,8,0),1,1) -> 30999800 | D111: =OFFSET(InputPriceData!C$15,CalculationsAndCharts!$A111+$A$11,IF($C$7,8,0),1,1) -> 1254.98 | E111: =OFFSET(InputPriceData!D$15,CalculationsAndCharts!$A111+$A$11,IF($C$7,8,0),1,1) -> 1264.94 | F111: =OFFSET(InputPriceData!E$15,CalculationsAndCharts!$A111+$A$11,IF($C$7,8,0),1,1) -> 1252.79 | G111: =OFFSET(InputPriceData!F$15,CalculationsAndCharts!$A111+$A$11,IF($C$7,8,0),1,1) -> 1264.58 | H111: 1264.94 | I111: 1232.53 | J111: 98.88923172 | K111: 81.27232423 | L111: 1278.63 | M111: 1206.11 | N111: 80.6260342 | O111: 67.87552859 | P111: 20 | Q111: 50 | R111: 80 | S111: 1192.03345 | AP111: 30999800
A112: 80 | B112: =OFFSET(InputPriceData!B$15,CalculationsAndCharts!$A112+$A$11,0,1,1) -> 2015-06-02 | C112: =OFFSET(InputPriceData!G$15,CalculationsAndCharts!$A112+$A$11,IF($C$7,8,0),1,1) -> 30493500 | D112: =OFFSET(InputPriceData!C$15,CalculationsAndCharts!$A112+$A$11,IF($C$7,8,0),1,1) -> 1245.59 | E112: =OFFSET(InputPriceData!D$15,CalculationsAndCharts!$A112+$A$11,IF($C$7,8,0),1,1) -> 1258.46 | F112: =OFFSET(InputPriceData!E$15,CalculationsAndCharts!$A112+$A$11,IF($C$7,8,0),1,1) -> 1243.3 | G112: =OFFSET(InputPriceData!F$15,CalculationsAndCharts!$A112+$A$11,IF($C$7,8,0),1,1) -> 1251.8 | H112: 1261.02 | I112: 1228.49 | J112: 71.65693206 | K112: 70.3178441 | L112: 1278.63 | M112: 1206.11 | N112: 63.00330943 | O112: 59.57896672 | P112: 20 | Q112: 50 | R112: 80 | S112: 1191.4188 | AP112: 30493500
A113: 81 | B113: =OFFSET(InputPriceData!B$15,CalculationsAndCharts!$A113+$A$11,0,1,1) -> 2015-06-01 | C113: =OFFSET(InputPriceData!G$15,CalculationsAndCharts!$A113+$A$11,IF($C$7,8,0),1,1) -> 30117100 | D113: =OFFSET(InputPriceData!C$15,CalculationsAndCharts!$A113+$A$11,IF($C$7,8,0),1,1) -> 1252.02 | E113: =OFFSET(InputPriceData!D$15,CalculationsAndCharts!$A113+$A$11,IF($C$7,8,0),1,1) -> 1254.56 | F113: =OFFSET(InputPriceData!E$15,CalculationsAndCharts!$A113+$A$11,IF($C$7,8,0),1,1) -> 1238.65 | G113: =OFFSET(InputPriceData!F$15,CalculationsAndCharts!$A113+$A$11,IF($C$7,8,0),1,1) -> 1249.62 | H113: 1261.02 | I113: 1218.37 | J113: 73.27080891 | K113: 73.57561547 | L113: 1278.63 | M113: 1206.11 | N113: 59.99724214 | O113: 60.17650303 | P113: 20 | Q113: 50 | R113: 80 | S113: 1190.8765 | AQ113: 30117100
A114: 82 | B114: =OFFSET(InputPriceData!B$15,CalculationsAndCharts!$A114+$A$11,0,1,1) -> 2015-05-29 | C114: =OFFSET(InputPriceData!G$15,CalculationsAndCharts!$A114+$A$11,IF($C$7,8,0),1,1) -> 39273900 | D114: =OFFSET(InputPriceData!C$15,CalculationsAndCharts!$A114+$A$11,IF($C$7,8,0),1,1) -> 1251.58 | E114: =OFFSET(InputPriceData!D$15,CalculationsAndCharts!$A114+$A$11,IF($C$7,8,0),1,1) -> 1252.64 | F114: =OFFSET(InputPriceData!E$15,CalculationsAndCharts!$A114+$A$11,IF($C$7,8,0),1,1) -> 1241.15 | G114: =OFFSET(InputPriceData!F$15,CalculationsAndCharts!$A114+$A$11,IF($C$7,8,0),1,1) -> 1246.53 | H114: 1261.02 | I114: 1218.37 | J114: 66.02579132 | K114: 77.61585692 | L114: 1278.63 | M114: 1206.11 | N114: 55.73634859 | O114: 62.35521236 | P114: 20 | Q114: 50 | R114: 80 | S114: 1190.3373 | AQ114: 39273900
A115: 83 | B115: =OFFSET(InputPriceData!B$15,CalculationsAndCharts!$A115+$A$11,0,1,1) -> 2015-05-28 | C115: =OFFSET(InputPriceData!G$15,CalculationsAndCharts!$A115+$A$11,IF($C$7,8,0),1,1) -> 29803500 | D115: =OFFSET(InputPriceData!C$15,CalculationsAndCharts!$A115+$A$11,IF($C$7,8,0),1,1) -> 1251.78 | E115: =OFFSET(InputPriceData!D$15,CalculationsAndCharts!$A115+$A$11,IF($C$7,8,0),1,1) -> 1253.2 | F115: =OFFSET(InputPriceData!E$15,CalculationsAndCharts!$A115+$A$11,IF($C$7,8,0),1,1) -> 1246.07 | G115: =OFFSET(InputPriceData!F$15,CalculationsAndCharts!$A115+$A$11,IF($C$7,8,0),1,1) -> 1253.1 | H115: 1261.02 | I115: 1218.37 | J115: 81.43024619 | K115: 74.06787316 | L115: 1278.63 | M115: 1206.11 | N115: 64.79591837 | O115: 58.78378378 | P115: 20 | Q115: 50 | R115: 80 | S115: 1189.7698 | AP115: 29803500
A116: 84 | B116: =OFFSET(InputPriceData!B$15,CalculationsAndCharts!$A116+$A$11,0,1,1) -> 2015-05-27 | C116: =OFFSET(InputPriceData!G$15,CalculationsAndCharts!$A116+$A$11,IF($C$7,8,0),1,1) -> 31279600 | D116: =OFFSET(InputPriceData!C$15,CalculationsAndCharts!$A116+$A$11,IF($C$7,8,0),1,1) -> 1241.01 | E116: =OFFSET(InputPriceData!D$15,CalculationsAndCharts!$A116+$A$11,IF($C$7,8,0),1,1) -> 1255.05 | F116: =OFFSET(InputPriceData!E$15,CalculationsAndCharts!$A116+$A$11,IF($C$7,8,0),1,1) -> 1237.61 | G116: =OFFSET(InputPriceData!F$15,CalculationsAndCharts!$A116+$A$11,IF($C$7,8,0),1,1) -> 1254.36 | H116: 1261.02 | I116: 1215.43 | J116: 85.39153323 | K116: 74.3781893 | L116: 1278.63 | M116: 1206.11 | N116: 66.5333701 | O116: 58.37929767 | P116: 20 | Q116: 50 | R116: 80 | S116: 1189.21395 | AP116: 31279600
A117: 85 | B117: =OFFSET(InputPriceData!B$15,CalculationsAndCharts!$A117+$A$11,0,1,1) -> 2015-05-26 | C117: =OFFSET(InputPriceData!G$15,CalculationsAndCharts!$A117+$A$11,IF($C$7,8,0),1,1) -> 33421300 | D117: =OFFSET(InputPriceData!C$15,CalculationsAndCharts!$A117+$A$11,IF($C$7,8,0),1,1) -> 1248.11 | E117: =OFFSET(InputPriceData!D$15,CalculationsAndCharts!$A117+$A$11,IF($C$7,8,0),1,1) -> 1248.11 | F117: =OFFSET(InputPriceData!E$15,CalculationsAndCharts!$A117+$A$11,IF($C$7,8,0),1,1) -> 1233.72 | G117: =OFFSET(InputPriceData!F$15,CalculationsAndCharts!$A117+$A$11,IF($C$7,8,0),1,1) -> 1238.76 | H117: 1261.02 | I117: 1211.13 | J117: 55.38184005 | K117: 76.38805372 | L117: 1278.63 | M117: 1206.11 | N117: 45.02206288 | O117: 60.78059181 | P117: 20 | Q117: 50 | R117: 80 | S117: 1188.5989 | AQ117: 33421300
A118: 86 | B118: =OFFSET(InputPriceData!B$15,CalculationsAndCharts!$A118+$A$11,0,1,1) -> 2015-05-22 | C118: =OFFSET(InputPriceData!G$15,CalculationsAndCharts!$A118+$A$11,IF($C$7,8,0),1,1) -> 25718600 | D118: =OFFSET(InputPriceData!C$15,CalculationsAndCharts!$A118+$A$11,IF($C$7,8,0),1,1) -> 1255.49 | E118: =OFFSET(InputPriceData!D$15,CalculationsAndCharts!$A118+$A$11,IF($C$7,8,0),1,1) -> 1258.73 | F118: =OFFSET(InputPriceData!E$15,CalculationsAndCharts!$A118+$A$11,IF($C$7,8,0),1,1) -> 1248.37 | G118: =OFFSET(InputPriceData!F$15,CalculationsAndCharts!$A118+$A$11,IF($C$7,8,0),1,1) -> 1252.22 | H118: 1261.02 | I118: 1211.13 | J118: 82.36119463 | K118: 89.18833909 | L118: 1278.63 | M118: 1206.11 | N118: 63.58246001 | O118: 71.22593105 | P118: 20 | Q118: 50 | R118: 80 | S118: 1188.0039 | AQ118: 25718600
A119: 87 | B119: =OFFSET(InputPriceData!B$15,CalculationsAndCharts!$A119+$A$11,0,1,1) -> 2015-05-21 | C119: =OFFSET(InputPriceData!G$15,CalculationsAndCharts!$A119+$A$11,IF($C$7,8,0),1,1) -> 30704600 | D119: =OFFSET(InputPriceData!C$15,CalculationsAndCharts!$A119+$A$11,IF($C$7,8,0),1,1) -> 1257.5 | E119: =OFFSET(InputPriceData!D$15,CalculationsAndCharts!$A119+$A$11,IF($C$7,8,0),1,1) -> 1261.02 | F119: =OFFSET(InputPriceData!E$15,CalculationsAndCharts!$A119+$A$11,IF($C$7,8,0),1,1) -> 1252.99 | G119: =OFFSET(InputPriceData!F$15,CalculationsAndCharts!$A119+$A$11,IF($C$7,8,0),1,1) -> 1256.74 | H119: 1261.02 | I119: 1211.13 | J119: 91.42112648 | K119: 93.01665883 | L119: 1278.63 | M119: 1195.28 | N119: 73.73725255 | O119: 74.69980246 | P119: 20 | Q119: 50 | R119: 80 | S119: 1187.37055 | AQ119: 30704600
A120: 88 | B120: =OFFSET(InputPriceData!B$15,CalculationsAndCharts!$A120+$A$11,0,1,1) -> 2015-05-20 | C120: =OFFSET(InputPriceData!G$15,CalculationsAndCharts!$A120+$A$11,IF($C$7,8,0),1,1) -> 30258800 | D120: =OFFSET(InputPriceData!C$15,CalculationsAndCharts!$A120+$A$11,IF($C$7,8,0),1,1) -> 1257.33 | E120: =OFFSET(InputPriceData!D$15,CalculationsAndCharts!$A120+$A$11,IF($C$7,8,0),1,1) -> 1260.83 | F120: =OFFSET(InputPriceData!E$15,CalculationsAndCharts!$A120+$A$11,IF($C$7,8,0),1,1) -> 1252.36 | G120: =OFFSET(InputPriceData!F$15,CalculationsAndCharts!$A120+$A$11,IF($C$7,8,0),1,1) -> 1257.74 | H120: 1260.83 | I120: 1211.13 | J120: 93.78269618 | K120: 95.53491359 | L120: 1278.63 | M120: 1190.27 | N120: 76.35808058 | O120: 75.49041799 | P120: 20 | Q120: 50 | R120: 80 | S120: 1186.69465 | AP120: 30258800
A121: 89 | B121: =OFFSET(InputPriceData!B$15,CalculationsAndCharts!$A121+$A$11,0,1,1) -> 2015-05-19 | C121: =OFFSET(InputPriceData!G$15,CalculationsAndCharts!$A121+$A$11,IF($C$7,8,0),1,1) -> 32960300 | D121: =OFFSET(InputPriceData!C$15,CalculationsAndCharts!$A121+$A$11,IF($C$7,8,0),1,1) -> 1257.86 | E121: =OFFSET(InputPriceData!D$15,CalculationsAndCharts!$A121+$A$11,IF($C$7,8,0),1,1) -> 1258.58 | F121: =OFFSET(InputPriceData!E$15,CalculationsAndCharts!$A121+$A$11,IF($C$7,8,0),1,1) -> 1251.82 | G121: =OFFSET(InputPriceData!F$15,CalculationsAndCharts!$A121+$A$11,IF($C$7,8,0),1,1) -> 1255.66 | H121: 1258.58 | I121: 1211.13 | J121: 93.84615385 | K121: 86.3482683 | L121: 1278.63 | M121: 1190.27 | N121: 74.00407424 | O121: 70.28821488 | P121: 20 | Q121: 50 | R121: 80 | S121: 1186.03005 | AQ121: 32960300
A122: 90 | B122: =OFFSET(InputPriceData!B$15,CalculationsAndCharts!$A122+$A$11,0,1,1) -> 2015-05-18 | C122: =OFFSET(InputPriceData!G$15,CalculationsAndCharts!$A122+$A$11,IF($C$7,8,0),1,1) -> 28881900 | D122: =OFFSET(InputPriceData!C$15,CalculationsAndCharts!$A122+$A$11,IF($C$7,8,0),1,1) -> 1242.08 | E122: =OFFSET(InputPriceData!D$15,CalculationsAndCharts!$A122+$A$11,IF($C$7,8,0),1,1) -> 1258 | F122: =OFFSET(InputPriceData!E$15,CalculationsAndCharts!$A122+$A$11,IF($C$7,8,0),1,1) -> 1240.84 | G122: =OFFSET(InputPriceData!F$15,CalculationsAndCharts!$A122+$A$11,IF($C$7,8,0),1,1) -> 1257.52 | H122: 1258 | I122: 1211.13 | J122: 98.97589076 | K122: 72.56995163 | L122: 1278.63 | M122: 1190.27 | N122: 76.10909914 | O122: 66.43999078 | P122: 20 | Q122: 50 | R122: 80 | S122: 1185.32605 | AP122: 28881900
A123: 91 | B123: =OFFSET(InputPriceData!B$15,CalculationsAndCharts!$A123+$A$11,0,1,1) -> 2015-05-15 | C123: =OFFSET(InputPriceData!G$15,CalculationsAndCharts!$A123+$A$11,IF($C$7,8,0),1,1) -> 30920800 | D123: =OFFSET(InputPriceData!C$15,CalculationsAndCharts!$A123+$A$11,IF($C$7,8,0),1,1) -> 1245.42 | E123: =OFFSET(InputPriceData!D$15,CalculationsAndCharts!$A123+$A$11,IF($C$7,8,0),1,1) -> 1245.9 | F123: =OFFSET(InputPriceData!E$15,CalculationsAndCharts!$A123+$A$11,IF($C$7,8,0),1,1) -> 1238.99 | G123: =OFFSET(InputPriceData!F$15,CalculationsAndCharts!$A123+$A$11,IF($C$7,8,0),1,1) -> 1243.95 | H123: 1260.69 | I123: 1211.13 | J123: 66.22276029 | K123: 50.47274928 | L123: 1278.63 | M123: 1190.27 | N123: 60.75147125 | O123: 58.7294842 | P123: 20 | Q123: 50 | R123: 80 | S123: 1184.6388 | AQ123: 30920800
A124: 92 | B124: =OFFSET(InputPriceData!B$15,CalculationsAndCharts!$A124+$A$11,0,1,1) -> 2015-05-14 | C124: =OFFSET(InputPriceData!G$15,CalculationsAndCharts!$A124+$A$11,IF($C$7,8,0),1,1) -> 32257400 | D124: =OFFSET(InputPriceData!C$15,CalculationsAndCharts!$A124+$A$11,IF($C$7,8,0),1,1) -> 1236.81 | E124: =OFFSET(InputPriceData!D$15,CalculationsAndCharts!$A124+$A$11,IF($C$7,8,0),1,1) -> 1245.12 | F124: =OFFSET(InputPriceData!E$15,CalculationsAndCharts!$A124+$A$11,IF($C$7,8,0),1,1) -> 1232.53 | G124: =OFFSET(InputPriceData!F$15,CalculationsAndCharts!$A124+$A$11,IF($C$7,8,0),1,1) -> 1245.11 | H124: 1275.84 | I124: 1211.13 | J124: 52.51120383 | K124: 39.73110802 | L124: 1278.63 | M124: 1189.34 | N124: 62.45940195 | O124: 59.66344321 | P124: 20 | Q124: 50 | R124: 80 | S124: 1184.1519 | AP124: 32257400
A125: 93 | B125: =OFFSET(InputPriceData!B$15,CalculationsAndCharts!$A125+$A$11,0,1,1) -> 2015-05-13 | C125: =OFFSET(InputPriceData!G$15,CalculationsAndCharts!$A125+$A$11,IF($C$7,8,0),1,1) -> 33742600 | D125: =OFFSET(InputPriceData!C$15,CalculationsAndCharts!$A125+$A$11,IF($C$7,8,0),1,1) -> 1235.74 | E125: =OFFSET(InputPriceData!D$15,CalculationsAndCharts!$A125+$A$11,IF($C$7,8,0),1,1) -> 1237.88 | F125: =OFFSET(InputPriceData!E$15,CalculationsAndCharts!$A125+$A$11,IF($C$7,8,0),1,1) -> 1228.49 | G125: =OFFSET(InputPriceData!F$15,CalculationsAndCharts!$A125+$A$11,IF($C$7,8,0),1,1) -> 1232.28 | H125: 1275.84 | I125: 1211.13 | J125: 32.68428373 | K125: 34.95080616 | L125: 1278.63 | M125: 1180.06 | N125: 52.97757939 | O125: 60.74901477 | P125: 20 | Q125: 50 | R125: 80 | S125: 1183.63455 | AQ125: 33742600
A126: 94 | B126: =OFFSET(InputPriceData!B$15,CalculationsAndCharts!$A126+$A$11,0,1,1) -> 2015-05-12 | C126: =OFFSET(InputPriceData!G$15,CalculationsAndCharts!$A126+$A$11,IF($C$7,8,0),1,1) -> 31395200 | D126: =OFFSET(InputPriceData!C$15,CalculationsAndCharts!$A126+$A$11,IF($C$7,8,0),1,1) -> 1230.57 | E126: =OFFSET(InputPriceData!D$15,CalculationsAndCharts!$A126+$A$11,IF($C$7,8,0),1,1) -> 1236.14 | F126: =OFFSET(InputPriceData!E$15,CalculationsAndCharts!$A126+$A$11,IF($C$7,8,0),1,1) -> 1218.37 | G126: =OFFSET(InputPriceData!F$15,CalculationsAndCharts!$A126+$A$11,IF($C$7,8,0),1,1) -> 1233.13 | H126: 1275.84 | I126: 1211.13 | J126: 33.9978365 | K126: 36.31587081 | L126: 1278.63 | M126: 1153.79 | N126: 63.55334829 | O126: 64.75488625 | P126: 20 | Q126: 50 | R126: 80 | S126: 1183.17065 | AP126: 31395200
A127: 95 | B127: =OFFSET(InputPriceData!B$15,CalculationsAndCharts!$A127+$A$11,0,1,1) -> 2015-05-11 | C127: =OFFSET(InputPriceData!G$15,CalculationsAndCharts!$A127+$A$11,IF($C$7,8,0),1,1) -> 29926700 | D127: =OFFSET(InputPriceData!C$15,CalculationsAndCharts!$A127+$A$11,IF($C$7,8,0),1,1) -> 1234.59 | E127: =OFFSET(InputPriceData!D$15,CalculationsAndCharts!$A127+$A$11,IF($C$7,8,0),1,1) -> 1243.56 | F127: =OFFSET(InputPriceData!E$15,CalculationsAndCharts!$A127+$A$11,IF($C$7,8,0),1,1) -> 1234.51 | G127: =OFFSET(InputPriceData!F$15,CalculationsAndCharts!$A127+$A$11,IF($C$7,8,0),1,1) -> 1235.83 | H127: 1275.84 | I127: 1211.13 | J127: 38.17029825 | K127: 32.40611961 | L127: 1278.63 | M127: 1153.79 | N127: 65.71611663 | O127: 62.72829221 | P127: 20 | Q127: 50 | R127: 80 | S127: 1182.7286 | AP127: 29926700
A128: 96 | B128: =OFFSET(InputPriceData!B$15,CalculationsAndCharts!$A128+$A$11,0,1,1) -> 2015-05-08 | C128: =OFFSET(InputPriceData!G$15,CalculationsAndCharts!$A128+$A$11,IF($C$7,8,0),1,1) -> 33994400 | D128: =OFFSET(InputPriceData!C$15,CalculationsAndCharts!$A128+$A$11,IF($C$7,8,0),1,1) -> 1234.82 | E128: =OFFSET(InputPriceData!D$15,CalculationsAndCharts!$A128+$A$11,IF($C$7,8,0),1,1) -> 1239.38 | F128: =OFFSET(InputPriceData!E$15,CalculationsAndCharts!$A128+$A$11,IF($C$7,8,0),1,1) -> 1232.59 | G128: =OFFSET(InputPriceData!F$15,CalculationsAndCharts!$A128+$A$11,IF($C$7,8,0),1,1) -> 1234.93 | H128: 1275.84 | I128: 1211.13 | J128: 36.77947767 | K128: 23.92211405 | L128: 1278.63 | M128: 1153.79 | N128: 64.99519385 | O128: 58.33066325 | P128: 20 | Q128: 50 | R128: 80 | S128: 1182.33075 | AP128: 33994400
A129: 97 | B129: =OFFSET(InputPriceData!B$15,CalculationsAndCharts!$A129+$A$11,0,1,1) -> 2015-05-07 | C129: =OFFSET(InputPriceData!G$15,CalculationsAndCharts!$A129+$A$11,IF($C$7,8,0),1,1) -> 36766400 | D129: =OFFSET(InputPriceData!C$15,CalculationsAndCharts!$A129+$A$11,IF($C$7,8,0),1,1) -> 1218.95 | E129: =OFFSET(InputPriceData!D$15,CalculationsAndCharts!$A129+$A$11,IF($C$7,8,0),1,1) -> 1228.82 | F129: =OFFSET(InputPriceData!E$15,CalculationsAndCharts!$A129+$A$11,IF($C$7,8,0),1,1) -> 1215.43 | G129: =OFFSET(InputPriceData!F$15,CalculationsAndCharts!$A129+$A$11,IF($C$7,8,0),1,1) -> 1225.54 | H129: 1275.84 | I129: 1211.13 | J129: 22.26858291 | K129: 13.55634581 | L129: 1278.63 | M129: 1153.79 | N129: 57.47356616 | O129: 53.12132863 | P129: 20 | Q129: 50 | R129: 80 | S129: 1181.94665 | AP129: 36766400
A130: 98 | B130: =OFFSET(InputPriceData!B$15,CalculationsAndCharts!$A130+$A$11,0,1,1) -> 2015-05-06 | C130: =OFFSET(InputPriceData!G$15,CalculationsAndCharts!$A130+$A$11,IF($C$7,8,0),1,1) -> 37922100 | D130: =OFFSET(InputPriceData!C$15,CalculationsAndCharts!$A130+$A$11,IF($C$7,8,0),1,1) -> 1221.53 | E130: =OFFSET(InputPriceData!D$15,CalculationsAndCharts!$A130+$A$11,IF($C$7,8,0),1,1) -> 1222.9 | F130: =OFFSET(InputPriceData!E$15,CalculationsAndCharts!$A130+$A$11,IF($C$7,8,0),1,1) -> 1211.13 | G130: =OFFSET(InputPriceData!F$15,CalculationsAndCharts!$A130+$A$11,IF($C$7,8,0),1,1) -> 1219.36 | H130: 1275.84 | I130: 1211.13 | J130: 12.71828156 | K130: 15.25977089 | L130: 1278.63 | M130: 1153.79 | N130: 52.52322973 | O130: 55.17195343 | P130: 20 | Q130: 50 | R130: 80 | S130: 1181.5997 | AQ130: 37922100
A131: 99 | B131: =OFFSET(InputPriceData!B$15,CalculationsAndCharts!$A131+$A$11,0,1,1) -> 2015-05-05 | C131: =OFFSET(InputPriceData!G$15,CalculationsAndCharts!$A131+$A$11,IF($C$7,8,0),1,1) -> 37939500 | D131: =OFFSET(InputPriceData!C$15,CalculationsAndCharts!$A131+$A$11,IF($C$7,8,0),1,1) -> 1231.77 | E131: =OFFSET(InputPriceData!D$15,CalculationsAndCharts!$A131+$A$11,IF($C$7,8,0),1,1) -> 1234.04 | F131: =OFFSET(InputPriceData!E$15,CalculationsAndCharts!$A131+$A$11,IF($C$7,8,0),1,1) -> 1211.78 | G131: =OFFSET(InputPriceData!F$15,CalculationsAndCharts!$A131+$A$11,IF($C$7,8,0),1,1) -> 1215.42 | H131: 1275.84 | I131: 1211.78 | J131: 5.682172963 | K131: 17.42260395 | L131: 1278.63 | M131: 1153.79 | N131: 49.36719 | O131: 57.50827726 | P131: 20 | Q131: 50 | R131: 80 | S131: 1181.2362 | AQ131: 37939500
A132: 100 | B132: =OFFSET(InputPriceData!B$15,CalculationsAndCharts!$A132+$A$11,0,1,1) -> 2015-05-04 | C132: =OFFSET(InputPriceData!G$15,CalculationsAndCharts!$A132+$A$11,IF($C$7,8,0),1,1) -> 30915800 | D132: =OFFSET(InputPriceData!C$15,CalculationsAndCharts!$A132+$A$11,IF($C$7,8,0),1,1) -> 1230.3 | E132: =OFFSET(InputPriceData!D$15,CalculationsAndCharts!$A132+$A$11,IF($C$7,8,0),1,1) -> 1240.63 | F132: =OFFSET(InputPriceData!E$15,CalculationsAndCharts!$A132+$A$11,IF($C$7,8,0),1,1) -> 1230.1 | G132: =OFFSET(InputPriceData!F$15,CalculationsAndCharts!$A132+$A$11,IF($C$7,8,0),1,1) -> 1233.22 | H132: 1278.63 | I132: 1216.1 | J132: 27.37885815 | K132: 17.67684845 | L132: 1278.63 | M132: 1153.79 | N132: 63.62544056 | O132: 58.765887 | P132: 20 | Q132: 50 | R132: 80 | S132: 1180.91715 | AP132: 30915800
A133: 101 | B133: =OFFSET(InputPriceData!B$15,CalculationsAndCharts!$A133+$A$11,0,1,1) -> 2015-05-01 | C133: =OFFSET(InputPriceData!G$15,CalculationsAndCharts!$A133+$A$11,IF($C$7,8,0),1,1) -> 33793900 | D133: =OFFSET(InputPriceData!C$15,CalculationsAndCharts!$A133+$A$11,IF($C$7,8,0),1,1) -> 1223.05 | E133: =OFFSET(InputPriceData!D$15,CalculationsAndCharts!$A133+$A$11,IF($C$7,8,0),1,1) -> 1229.47 | F133: =OFFSET(InputPriceData!E$15,CalculationsAndCharts!$A133+$A$11,IF($C$7,8,0),1,1) -> 1218.59 | G133: =OFFSET(InputPriceData!F$15,CalculationsAndCharts!$A133+$A$11,IF($C$7,8,0),1,1) -> 1228.11 | H133: 1278.63 | I133: 1216.1 | J133: 19.20678075 | K133: 12.59936994 | L133: 1278.63 | M133: 1153.79 | N133: 59.53220122 | O133: 62.43191285 | P133: 20 | Q133: 50 | R133: 80 | S133: 1180.41905 | AP133: 33793900
A134: 102 | B134: =OFFSET(InputPriceData!B$15,CalculationsAndCharts!$A134+$A$11,0,1,1) -> 2015-04-30 | C134: =OFFSET(InputPriceData!G$15,CalculationsAndCharts!$A134+$A$11,IF($C$7,8,0),1,1) -> 45096800 | D134: =OFFSET(InputPriceData!C$15,CalculationsAndCharts!$A134+$A$11,IF($C$7,8,0),1,1) -> 1241.4 | E134: =OFFSET(InputPriceData!D$15,CalculationsAndCharts!$A134+$A$11,IF($C$7,8,0),1,1) -> 1242.77 | F134: =OFFSET(InputPriceData!E$15,CalculationsAndCharts!$A134+$A$11,IF($C$7,8,0),1,1) -> 1216.1 | G134: =OFFSET(InputPriceData!F$15,CalculationsAndCharts!$A134+$A$11,IF($C$7,8,0),1,1) -> 1220.13 | H134: 1278.63 | I134: 1216.1 | J134: 6.444906445 | K134: 21.71753861 | L134: 1278.63 | M134: 1153.79 | N134: 53.14001922 | O134: 70.87654443 | P134: 20 | Q134: 50 | R134: 80 | S134: 1180.03625 | AQ134: 45096800
A135: 103 | B135: =OFFSET(InputPriceData!B$15,CalculationsAndCharts!$A135+$A$11,0,1,1) -> 2015-04-29 | C135: =OFFSET(InputPriceData!G$15,CalculationsAndCharts!$A135+$A$11,IF($C$7,8,0),1,1) -> 40749700 | D135: =OFFSET(InputPriceData!C$15,CalculationsAndCharts!$A135+$A$11,IF($C$7,8,0),1,1) -> 1254.5 | E135: =OFFSET(InputPriceData!D$15,CalculationsAndCharts!$A135+$A$11,IF($C$7,8,0),1,1) -> 1255.81 | F135: =OFFSET(InputPriceData!E$15,CalculationsAndCharts!$A135+$A$11,IF($C$7,8,0),1,1) -> 1245.47 | G135: =OFFSET(InputPriceData!F$15,CalculationsAndCharts!$A135+$A$11,IF($C$7,8,0),1,1) -> 1246.95 | H135: 1278.63 | I135: 1242.57 | J135: 12.14642263 | K135: 24.52655753 | L135: 1278.63 | M135: 1153.79 | N135: 74.6235181 | O135: 79.70840221 | P135: 20 | Q135: 50 | R135: 80 | S135: 1179.70465 | AQ135: 40749700
A136: 104 | B136: =OFFSET(InputPriceData!B$15,CalculationsAndCharts!$A136+$A$11,0,1,1) -> 2015-04-28 | C136: =OFFSET(InputPriceData!G$15,CalculationsAndCharts!$A136+$A$11,IF($C$7,8,0),1,1) -> 35462700 | D136: =OFFSET(InputPriceData!C$15,CalculationsAndCharts!$A136+$A$11,IF($C$7,8,0),1,1) -> 1252.89 | E136: =OFFSET(InputPriceData!D$15,CalculationsAndCharts!$A136+$A$11,IF($C$7,8,0),1,1) -> 1260.69 | F136: =OFFSET(InputPriceData!E$15,CalculationsAndCharts!$A136+$A$11,IF($C$7,8,0),1,1) -> 1242.57 | G136: =OFFSET(InputPriceData!F$15,CalculationsAndCharts!$A136+$A$11,IF($C$7,8,0),1,1) -> 1259.36 | H136: 1278.63 | I136: 1242.57 | J136: 46.56128674 | K136: 41.6749485 | L136: 1278.63 | M136: 1151.3 | N136: 84.86609597 | O136: 85.26401215 | P136: 20 | Q136: 50 | R136: 80 | S136: 1179.30595 | AP136: 35462700
A137: 105 | B137: =OFFSET(InputPriceData!B$15,CalculationsAndCharts!$A137+$A$11,0,1,1) -> 2015-04-27 | C137: =OFFSET(InputPriceData!G$15,CalculationsAndCharts!$A137+$A$11,IF($C$7,8,0),1,1) -> 34387500 | D137: =OFFSET(InputPriceData!C$15,CalculationsAndCharts!$A137+$A$11,IF($C$7,8,0),1,1) -> 1269.87 | E137: =OFFSET(InputPriceData!D$15,CalculationsAndCharts!$A137+$A$11,IF($C$7,8,0),1,1) -> 1275.84 | F137: =OFFSET(InputPriceData!E$15,CalculationsAndCharts!$A137+$A$11,IF($C$7,8,0),1,1) -> 1250.45 | G137: =OFFSET(InputPriceData!F$15,CalculationsAndCharts!$A137+$A$11,IF($C$7,8,0),1,1) -> 1252.7 | H137: 1278.63 | I137: 1248.17 | J137: 14.87196323 | K137: 51.72904355 | L137: 1278.63 | M137: 1151.3 | N137: 79.63559255 | O137: 88.45257729 | P137: 20 | Q137: 50 | R137: 80 | S137: 1178.8088 | AQ137: 34387500
A138: 106 | B138: =OFFSET(InputPriceData!B$15,CalculationsAndCharts!$A138+$A$11,0,1,1) -> 2015-04-24 | C138: =OFFSET(InputPriceData!G$15,CalculationsAndCharts!$A138+$A$11,IF($C$7,8,0),1,1) -> 33757800 | D138: =OFFSET(InputPriceData!C$15,CalculationsAndCharts!$A138+$A$11,IF($C$7,8,0),1,1) -> 1272.8 | E138: =OFFSET(InputPriceData!D$15,CalculationsAndCharts!$A138+$A$11,IF($C$7,8,0),1,1) -> 1273.08 | F138: =OFFSET(InputPriceData!E$15,CalculationsAndCharts!$A138+$A$11,IF($C$7,8,0),1,1) -> 1266.22 | G138: =OFFSET(InputPriceData!F$15,CalculationsAndCharts!$A138+$A$11,IF($C$7,8,0),1,1) -> 1267.54 | H138: 1278.63 | I138: 1248.17 | J138: 63.59159554 | K138: 65.71459838 | L138: 1278.63 | M138: 1151.3 | N138: 91.29034791 | O138: 91.79821461 | P138: 20 | Q138: 50 | R138: 80 | S138: 1178.3546 | AQ138: 33757800
A139: 107 | B139: =OFFSET(InputPriceData!B$15,CalculationsAndCharts!$A139+$A$11,0,1,1) -> 2015-04-23 | C139: =OFFSET(InputPriceData!G$15,CalculationsAndCharts!$A139+$A$11,IF($C$7,8,0),1,1) -> 36366700 | D139: =OFFSET(InputPriceData!C$15,CalculationsAndCharts!$A139+$A$11,IF($C$7,8,0),1,1) -> 1263.66 | E139: =OFFSET(InputPriceData!D$15,CalculationsAndCharts!$A139+$A$11,IF($C$7,8,0),1,1) -> 1273.25 | F139: =OFFSET(InputPriceData!E$15,CalculationsAndCharts!$A139+$A$11,IF($C$7,8,0),1,1) -> 1262.41 | G139: =OFFSET(InputPriceData!F$15,CalculationsAndCharts!$A139+$A$11,IF($C$7,8,0),1,1) -> 1271.54 | H139: 1278.63 | I139: 1248.17 | J139: 76.7235719 | K139: 65.48417756 | L139: 1278.63 | M139: 1151.3 | N139: 94.43179141 | O139: 90.91075683 | P139: 20 | Q139: 50 | R139: 80 | S139: 1177.88595 | AP139: 36366700
A140: 108 | B140: =OFFSET(InputPriceData!B$15,CalculationsAndCharts!$A140+$A$11,0,1,1) -> 2015-04-22 | C140: =OFFSET(InputPriceData!G$15,CalculationsAndCharts!$A140+$A$11,IF($C$7,8,0),1,1) -> 33484800 | D140: =OFFSET(InputPriceData!C$15,CalculationsAndCharts!$A140+$A$11,IF($C$7,8,0),1,1) -> 1265.01 | E140: =OFFSET(InputPriceData!D$15,CalculationsAndCharts!$A140+$A$11,IF($C$7,8,0),1,1) -> 1266.56 | F140: =OFFSET(InputPriceData!E$15,CalculationsAndCharts!$A140+$A$11,IF($C$7,8,0),1,1) -> 1255.04 | G140: =OFFSET(InputPriceData!F$15,CalculationsAndCharts!$A140+$A$11,IF($C$7,8,0),1,1) -> 1265.48 | H140: 1278.63 | I140: 1248.17 | J140: 56.82862771 | K140: 61.53404509 | L140: 1278.63 | M140: 1151.3 | N140: 89.67250452 | O140: 89.17772717 | P140: 20 | Q140: 50 | R140: 80 | S140: 1177.389 | AP140: 33484800
A141: 109 | B141: =OFFSET(InputPriceData!B$15,CalculationsAndCharts!$A141+$A$11,0,1,1) -> 2015-04-21 | C141: =OFFSET(InputPriceData!G$15,CalculationsAndCharts!$A141+$A$11,IF($C$7,8,0),1,1) -> 32434100 | D141: =OFFSET(InputPriceData!C$15,CalculationsAndCharts!$A141+$A$11,IF($C$7,8,0),1,1) -> 1269.32 | E141: =OFFSET(InputPriceData!D$15,CalculationsAndCharts!$A141+$A$11,IF($C$7,8,0),1,1) -> 1270.08 | F141: =OFFSET(InputPriceData!E$15,CalculationsAndCharts!$A141+$A$11,IF($C$7,8,0),1,1) -> 1263.59 | G141: =OFFSET(InputPriceData!F$15,CalculationsAndCharts!$A141+$A$11,IF($C$7,8,0),1,1) -> 1264.15 | H141: 1278.63 | I141: 1239.6 | J141: 62.90033308 | K141: 53.06174737 | L141: 1278.63 | M141: 1151.3 | N141: 88.62797455 | O141: 85.6121888 | P141: 20 | Q141: 50 | R141: 80 | S141: 1176.9953 | AQ141: 32434100
A142: 110 | B142: =OFFSET(InputPriceData!B$15,CalculationsAndCharts!$A142+$A$11,0,1,1) -> 2015-04-20 | C142: =OFFSET(InputPriceData!G$15,CalculationsAndCharts!$A142+$A$11,IF($C$7,8,0),1,1) -> 30001600 | D142: =OFFSET(InputPriceData!C$15,CalculationsAndCharts!$A142+$A$11,IF($C$7,8,0),1,1) -> 1257.61 | E142: =OFFSET(InputPriceData!D$15,CalculationsAndCharts!$A142+$A$11,IF($C$7,8,0),1,1) -> 1266.98 | F142: =OFFSET(InputPriceData!E$15,CalculationsAndCharts!$A142+$A$11,IF($C$7,8,0),1,1) -> 1255.75 | G142: =OFFSET(InputPriceData!F$15,CalculationsAndCharts!$A142+$A$11,IF($C$7,8,0),1,1) -> 1264.92 | H142: 1278.63 | I142: 1239.6 | J142: 64.87317448 | K142: 61.55013043 | L142: 1278.63 | M142: 1151.3 | N142: 89.23270243 | O142: 87.90282468 | P142: 20 | Q142: 50 | R142: 80 | S142: 1176.7153 | AP142: 30001600
A143: 111 | B143: =OFFSET(InputPriceData!B$15,CalculationsAndCharts!$A143+$A$11,0,1,1) -> 2015-04-17 | C143: =OFFSET(InputPriceData!G$15,CalculationsAndCharts!$A143+$A$11,IF($C$7,8,0),1,1) -> 36276000 | D143: =OFFSET(InputPriceData!C$15,CalculationsAndCharts!$A143+$A$11,IF($C$7,8,0),1,1) -> 1264.22 | E143: =OFFSET(InputPriceData!D$15,CalculationsAndCharts!$A143+$A$11,IF($C$7,8,0),1,1) -> 1264.22 | F143: =OFFSET(InputPriceData!E$15,CalculationsAndCharts!$A143+$A$11,IF($C$7,8,0),1,1) -> 1248.23 | G143: =OFFSET(InputPriceData!F$15,CalculationsAndCharts!$A143+$A$11,IF($C$7,8,0),1,1) -> 1251.86 | H143: 1278.63 | I143: 1239.6 | J143: 31.41173456 | K143: 71.20238804 | L143: 1278.63 | M143: 1151.3 | N143: 78.97588942 | O143: 90.63326265 | P143: 20 | Q143: 50 | R143: 80 | S143: 1176.3882 | AQ143: 36276000
A144: 112 | B144: =OFFSET(InputPriceData!B$15,CalculationsAndCharts!$A144+$A$11,0,1,1) -> 2015-04-16 | C144: =OFFSET(InputPriceData!G$15,CalculationsAndCharts!$A144+$A$11,IF($C$7,8,0),1,1) -> 34341200 | D144: =OFFSET(InputPriceData!C$15,CalculationsAndCharts!$A144+$A$11,IF($C$7,8,0),1,1) -> 1273.48 | E144: =OFFSET(InputPriceData!D$15,CalculationsAndCharts!$A144+$A$11,IF($C$7,8,0),1,1) -> 1275.28 | F144: =OFFSET(InputPriceData!E$15,CalculationsAndCharts!$A144+$A$11,IF($C$7,8,0),1,1) -> 1271.11 | G144: =OFFSET(InputPriceData!F$15,CalculationsAndCharts!$A144+$A$11,IF($C$7,8,0),1,1) -> 1272.9 | H144: 1278.63 | I144: 1229.38 | J144: 88.36548223 | K144: 89.46172845 | L144: 1278.63 | M144: 1151.3 | N144: 95.4998822 | O144: 95.87278407 | P144: 20 | Q144: 50 | R144: 80 | S144: 1176.15865 | AQ144: 34341200
A145: 113 | B145: =OFFSET(InputPriceData!B$15,CalculationsAndCharts!$A145+$A$11,0,1,1) -> 2015-04-15 | C145: =OFFSET(InputPriceData!G$15,CalculationsAndCharts!$A145+$A$11,IF($C$7,8,0),1,1) -> 40137600 | D145: =OFFSET(InputPriceData!C$15,CalculationsAndCharts!$A145+$A$11,IF($C$7,8,0),1,1) -> 1269.65 | E145: =OFFSET(InputPriceData!D$15,CalculationsAndCharts!$A145+$A$11,IF($C$7,8,0),1,1) -> 1278.63 | F145: =OFFSET(InputPriceData!E$15,CalculationsAndCharts!$A145+$A$11,IF($C$7,8,0),1,1) -> 1268.82 | G145: =OFFSET(InputPriceData!F$15,CalculationsAndCharts!$A145+$A$11,IF($C$7,8,0),1,1) -> 1275.35 | H145: 1278.63 | I145: 1225.47 | J145: 93.82994733 | K145: 88.9093845 | L145: 1278.63 | M145: 1151.3 | N145: 97.42401634 | O145: 95.67073101 | P145: 20 | Q145: 50 | R145: 80 | S145: 1175.75895 | AP145: 40137600
A146: 114 | B146: =OFFSET(InputPriceData!B$15,CalculationsAndCharts!$A146+$A$11,0,1,1) -> 2015-04-14 | C146: =OFFSET(InputPriceData!G$15,CalculationsAndCharts!$A146+$A$11,IF($C$7,8,0),1,1) -> 33012700 | D146: =OFFSET(InputPriceData!C$15,CalculationsAndCharts!$A146+$A$11,IF($C$7,8,0),1,1) -> 1266.68 | E146: =OFFSET(InputPriceData!D$15,CalculationsAndCharts!$A146+$A$11,IF($C$7,8,0),1,1) -> 1267.97 | F146: =OFFSET(InputPriceData!E$15,CalculationsAndCharts!$A146+$A$11,IF($C$7,8,0),1,1) -> 1258.53 | G146: =OFFSET(InputPriceData!F$15,CalculationsAndCharts!$A146+$A$11,IF($C$7,8,0),1,1) -> 1265.35 | H146: 1271.74 | I146: 1225.47 | J146: 86.18975578 | K146: 88.3190788 | L146: 1271.74 | M146: 1151.3 | N146: 94.69445367 | O146: 95.56242321 | P146: 20 | Q146: 50 | R146: 80 | S146: 1175.3297 | AP146: =IF(G146>=D146,C146,NA()) ->  | AQ146: =IF(G146<D146,C146,NA()) -> 33012700
A147: 115 | B147: =OFFSET(InputPriceData!B$15,CalculationsAndCharts!$A147+$A$11,0,1,1) -> 2015-04-13 | C147: =OFFSET(InputPriceData!G$15,CalculationsAndCharts!$A147+$A$11,IF($C$7,8,0),1,1) -> 29084200 | D147: =OFFSET(InputPriceData!C$15,CalculationsAndCharts!$A147+$A$11,IF($C$7,8,0),1,1) -> 1265.49 | E147: =OFFSET(InputPriceData!D$15,CalculationsAndCharts!$A147+$A$11,IF($C$7,8,0),1,1) -> 1271.74 | F147: =OFFSET(InputPriceData!E$15,CalculationsAndCharts!$A147+$A$11,IF($C$7,8,0),1,1) -> 1265.05 | G147: =OFFSET(InputPriceData!F$15,CalculationsAndCharts!$A147+$A$11,IF($C$7,8,0),1,1) -> 1265.59 | H147: 1271.74 | I147: 1225.47 | J147: 86.7084504 | K147: 85.8560455 | L147: 1271.74 | M147: 1151.3 | N147: 94.89372302 | O147: 94.74950217 | P147: 20 | Q147: 50 | R147: 80 | S147: 1174.9065 | AP147: 29084200
A148: 116 | B148: =OFFSET(InputPriceData!B$15,CalculationsAndCharts!$A148+$A$11,0,1,1) -> 2015-04-10 | C148: =OFFSET(InputPriceData!G$15,CalculationsAndCharts!$A148+$A$11,IF($C$7,8,0),1,1) -> 5362000 | D148: =OFFSET(InputPriceData!C$15,CalculationsAndCharts!$A148+$A$11,IF($C$7,8,0),1,1) -> 1263.73 | E148: =OFFSET(InputPriceData!D$15,CalculationsAndCharts!$A148+$A$11,IF($C$7,8,0),1,1) -> 1266 | F148: =OFFSET(InputPriceData!E$15,CalculationsAndCharts!$A148+$A$11,IF($C$7,8,0),1,1) -> 1262.32 | G148: =OFFSET(InputPriceData!F$15,CalculationsAndCharts!$A148+$A$11,IF($C$7,8,0),1,1) -> 1264.77 | H148: 1268.16 | I148: 1225.47 | J148: 92.05903022 | K148: 86.03107675 | L148: 1268.16 | M148: 1151.3 | N148: 97.09909293 | O148: 94.89702778 | P148: 20 | Q148: 50 | R148: 80 | S148: 1174.49195 | AP148: 5362000
A149: 117 | B149: =OFFSET(InputPriceData!B$15,CalculationsAndCharts!$A149+$A$11,0,1,1) -> 2015-04-09 | C149: =OFFSET(InputPriceData!G$15,CalculationsAndCharts!$A149+$A$11,IF($C$7,8,0),1,1) -> 31723600 | D149: =OFFSET(InputPriceData!C$15,CalculationsAndCharts!$A149+$A$11,IF($C$7,8,0),1,1) -> 1262.54 | E149: =OFFSET(InputPriceData!D$15,CalculationsAndCharts!$A149+$A$11,IF($C$7,8,0),1,1) -> 1265.78 | F149: =OFFSET(InputPriceData!E$15,CalculationsAndCharts!$A149+$A$11,IF($C$7,8,0),1,1) -> 1248.17 | G149: =OFFSET(InputPriceData!F$15,CalculationsAndCharts!$A149+$A$11,IF($C$7,8,0),1,1) -> 1259.11 | H149: 1268.16 | I149: 1225.47 | J149: 78.80065589 | K149: 77.12188647 | L149: 1268.16 | M149: 1151.3 | N149: 92.25569057 | O149: 91.64242113 | P149: 20 | Q149: 50 | R149: 80 | S149: 1174.0343 | AQ149: 31723600
A150: 118 | B150: =OFFSET(InputPriceData!B$15,CalculationsAndCharts!$A150+$A$11,0,1,1) -> 2015-04-08 | C150: =OFFSET(InputPriceData!G$15,CalculationsAndCharts!$A150+$A$11,IF($C$7,8,0),1,1) -> 32653300 | D150: =OFFSET(InputPriceData!C$15,CalculationsAndCharts!$A150+$A$11,IF($C$7,8,0),1,1) -> 1254.39 | E150: =OFFSET(InputPriceData!D$15,CalculationsAndCharts!$A150+$A$11,IF($C$7,8,0),1,1) -> 1264.13 | F150: =OFFSET(InputPriceData!E$15,CalculationsAndCharts!$A150+$A$11,IF($C$7,8,0),1,1) -> 1254.36 | G150: =OFFSET(InputPriceData!F$15,CalculationsAndCharts!$A150+$A$11,IF($C$7,8,0),1,1) -> 1262.71 | H150: 1268.16 | I150: 1225.47 | J150: 87.23354416 | K150: 78.23846334 | L150: 1268.16 | M150: 1151.3 | N150: 95.33629985 | O150: 92.05031662 | P150: 20 | Q150: 50 | R150: 80 | S150: 1173.6635 | AP150: 32653300
A151: 119 | B151: =OFFSET(InputPriceData!B$15,CalculationsAndCharts!$A151+$A$11,0,1,1) -> 2015-04-07 | C151: =OFFSET(InputPriceData!G$15,CalculationsAndCharts!$A151+$A$11,IF($C$7,8,0),1,1) -> 30655100 | D151: =OFFSET(InputPriceData!C$15,CalculationsAndCharts!$A151+$A$11,IF($C$7,8,0),1,1) -> 1260.3 | E151: =OFFSET(InputPriceData!D$15,CalculationsAndCharts!$A151+$A$11,IF($C$7,8,0),1,1) -> 1263.23 | F151: =OFFSET(InputPriceData!E$15,CalculationsAndCharts!$A151+$A$11,IF($C$7,8,0),1,1) -> 1253.29 | G151: =OFFSET(InputPriceData!F$15,CalculationsAndCharts!$A151+$A$11,IF($C$7,8,0),1,1) -> 1253.36 | H151: 1268.16 | I151: 1225.47 | J151: 65.33145936 | K151: 72.73366128 | L151: 1268.16 | M151: 1151.3 | N151: 87.33527298 | O151: 90.03936334 | P151: 20 | Q151: 50 | R151: 80 | S151: 1173.2921 | AQ151: 30655100
A152: 120 | B152: =OFFSET(InputPriceData!B$15,CalculationsAndCharts!$A152+$A$11,0,1,1) -> 2015-04-06 | C152: =OFFSET(InputPriceData!G$15,CalculationsAndCharts!$A152+$A$11,IF($C$7,8,0),1,1) -> 33029700 | D152: =OFFSET(InputPriceData!C$15,CalculationsAndCharts!$A152+$A$11,IF($C$7,8,0),1,1) -> 1250.24 | E152: =OFFSET(InputPriceData!D$15,CalculationsAndCharts!$A152+$A$11,IF($C$7,8,0),1,1) -> 1262.76 | F152: =OFFSET(InputPriceData!E$15,CalculationsAndCharts!$A152+$A$11,IF($C$7,8,0),1,1) -> 1249.35 | G152: =OFFSET(InputPriceData!F$15,CalculationsAndCharts!$A152+$A$11,IF($C$7,8,0),1,1) -> 1260.54 | H152: 1268.16 | I152: 1225.47 | J152: 82.15038651 | K152: 72.90181796 | L152: 1268.16 | M152: 1151.3 | N152: 93.47937703 | O152: 89.5687147 | P152: 20 | Q152: 50 | R152: 80 | S152: 1172.94545 | AP152: 33029700
A153: 121 | B153: =OFFSET(InputPriceData!B$15,CalculationsAndCharts!$A153+$A$11,0,1,1) -> 2015-04-02 | C153: =OFFSET(InputPriceData!G$15,CalculationsAndCharts!$A153+$A$11,IF($C$7,8,0),1,1) -> 30959600 | D153: =OFFSET(InputPriceData!C$15,CalculationsAndCharts!$A153+$A$11,IF($C$7,8,0),1,1) -> 1252.18 | E153: =OFFSET(InputPriceData!D$15,CalculationsAndCharts!$A153+$A$11,IF($C$7,8,0),1,1) -> 1259.97 | F153: =OFFSET(InputPriceData!E$15,CalculationsAndCharts!$A153+$A$11,IF($C$7,8,0),1,1) -> 1251.83 | G153: =OFFSET(InputPriceData!F$15,CalculationsAndCharts!$A153+$A$11,IF($C$7,8,0),1,1) -> 1255.66 | H153: 1268.16 | I153: 1225.47 | J153: 70.71913797 | K153: 68.19748351 | L153: 1268.16 | M153: 1151.3 | N153: 89.30344001 | O153: 87.35238747 | P153: 20 | Q153: 50 | R153: 80 | S153: 1172.5584 | AP153: 30959600
A154: 122 | B154: =OFFSET(InputPriceData!B$15,CalculationsAndCharts!$A154+$A$11,0,1,1) -> 2015-04-01 | C154: =OFFSET(InputPriceData!G$15,CalculationsAndCharts!$A154+$A$11,IF($C$7,8,0),1,1) -> 35432700 | D154: =OFFSET(InputPriceData!C$15,CalculationsAndCharts!$A154+$A$11,IF($C$7,8,0),1,1) -> 1250.99 | E154: =OFFSET(InputPriceData!D$15,CalculationsAndCharts!$A154+$A$11,IF($C$7,8,0),1,1) -> 1251.89 | F154: =OFFSET(InputPriceData!E$15,CalculationsAndCharts!$A154+$A$11,IF($C$7,8,0),1,1) -> 1239.6 | G154: =OFFSET(InputPriceData!F$15,CalculationsAndCharts!$A154+$A$11,IF($C$7,8,0),1,1) -> 1251.71 | H154: 1268.16 | I154: 1220.01 | J154: 65.83592939 | K154: 72.39236661 | L154: 1268.16 | M154: 1151.3 | N154: 85.92332706 | O154: 88.19488796 | P154: 20 | Q154: 50 | R154: 80 | S154: 1172.1632 | AP154: 35432700
A155: 123 | B155: =OFFSET(InputPriceData!B$15,CalculationsAndCharts!$A155+$A$11,0,1,1) -> 2015-03-31 | C155: =OFFSET(InputPriceData!G$15,CalculationsAndCharts!$A155+$A$11,IF($C$7,8,0),1,1) -> 33765500 | D155: =OFFSET(InputPriceData!C$15,CalculationsAndCharts!$A155+$A$11,IF($C$7,8,0),1,1) -> 1252.64 | E155: =OFFSET(InputPriceData!D$15,CalculationsAndCharts!$A155+$A$11,IF($C$7,8,0),1,1) -> 1255.3 | F155: =OFFSET(InputPriceData!E$15,CalculationsAndCharts!$A155+$A$11,IF($C$7,8,0),1,1) -> 1248.91 | G155: =OFFSET(InputPriceData!F$15,CalculationsAndCharts!$A155+$A$11,IF($C$7,8,0),1,1) -> 1252.77 | H155: 1268.16 | I155: 1220.01 | J155: 68.03738318 | K155: 68.87305735 | L155: 1268.16 | M155: 1151.3 | N155: 86.83039534 | O155: 85.9660498 | P155: 20 | Q155: 50 | R155: 80 | S155: 1171.73875 | AP155: 33765500
A156: 124 | B156: =OFFSET(InputPriceData!B$15,CalculationsAndCharts!$A156+$A$11,0,1,1) -> 2015-03-30 | C156: =OFFSET(InputPriceData!G$15,CalculationsAndCharts!$A156+$A$11,IF($C$7,8,0),1,1) -> 29176900 | D156: =OFFSET(InputPriceData!C$15,CalculationsAndCharts!$A156+$A$11,IF($C$7,8,0),1,1) -> 1246.69 | E156: =OFFSET(InputPriceData!D$15,CalculationsAndCharts!$A156+$A$11,IF($C$7,8,0),1,1) -> 1258.24 | F156: =OFFSET(InputPriceData!E$15,CalculationsAndCharts!$A156+$A$11,IF($C$7,8,0),1,1) -> 1246.69 | G156: =OFFSET(InputPriceData!F$15,CalculationsAndCharts!$A156+$A$11,IF($C$7,8,0),1,1) -> 1257.8 | H156: 1268.16 | I156: 1206.11 | J156: 83.30378727 | K156: 60.09669621 | L156: 1268.16 | M156: 1141.34 | N156: 91.83094149 | O156: 81.33484307 | P156: 20 | Q156: 50 | R156: 80 | S156: 1171.2883 | AP156: 29176900
A157: 125 | B157: =OFFSET(InputPriceData!B$15,CalculationsAndCharts!$A157+$A$11,0,1,1) -> 2015-03-27 | C157: =OFFSET(InputPriceData!G$15,CalculationsAndCharts!$A157+$A$11,IF($C$7,8,0),1,1) -> 30085500 | D157: =OFFSET(InputPriceData!C$15,CalculationsAndCharts!$A157+$A$11,IF($C$7,8,0),1,1) -> 1231.67 | E157: =OFFSET(InputPriceData!D$15,CalculationsAndCharts!$A157+$A$11,IF($C$7,8,0),1,1) -> 1240.76 | F157: =OFFSET(InputPriceData!E$15,CalculationsAndCharts!$A157+$A$11,IF($C$7,8,0),1,1) -> 1229.38 | G157: =OFFSET(InputPriceData!F$15,CalculationsAndCharts!$A157+$A$11,IF($C$7,8,0),1,1) -> 1240.41 | H157: 1268.16 | I157: 1206.11 | J157: 55.27800161 | K157: 47.23072791 | L157: 1268.16 | M157: 1134.51 | N157: 79.23681257 | O157: 75.50068587 | P157: 20 | Q157: 50 | R157: 80 | S157: 1170.7963 | AP157: 30085500
A158: 126 | B158: =OFFSET(InputPriceData!B$15,CalculationsAndCharts!$A158+$A$11,0,1,1) -> 2015-03-26 | C158: =OFFSET(InputPriceData!G$15,CalculationsAndCharts!$A158+$A$11,IF($C$7,8,0),1,1) -> 35106700 | D158: =OFFSET(InputPriceData!C$15,CalculationsAndCharts!$A158+$A$11,IF($C$7,8,0),1,1) -> 1228.8 | E158: =OFFSET(InputPriceData!D$15,CalculationsAndCharts!$A158+$A$11,IF($C$7,8,0),1,1) -> 1237.36 | F158: =OFFSET(InputPriceData!E$15,CalculationsAndCharts!$A158+$A$11,IF($C$7,8,0),1,1) -> 1225.47 | G158: =OFFSET(InputPriceData!F$15,CalculationsAndCharts!$A158+$A$11,IF($C$7,8,0),1,1) -> 1231.99 | H158: 1268.16 | I158: 1206.11 | J158: 41.70829976 | K158: 59.61321515 | L158: 1268.16 | M158: 1134.51 | N158: 72.93677516 | O158: 81.24953236 | P158: 20 | Q158: 50 | R158: 80 | S158: 1170.4278 | AP158: 35106700
A159: 127 | B159: =OFFSET(InputPriceData!B$15,CalculationsAndCharts!$A159+$A$11,0,1,1) -> 2015-03-25 | C159: =OFFSET(InputPriceData!G$15,CalculationsAndCharts!$A159+$A$11,IF($C$7,8,0),1,1) -> 35211400 | D159: =OFFSET(InputPriceData!C$15,CalculationsAndCharts!$A159+$A$11,IF($C$7,8,0),1,1) -> 1265.58 | E159: =OFFSET(InputPriceData!D$15,CalculationsAndCharts!$A159+$A$11,IF($C$7,8,0),1,1) -> 1265.85 | F159: =OFFSET(InputPriceData!E$15,CalculationsAndCharts!$A159+$A$11,IF($C$7,8,0),1,1) -> 1233.55 | G159: =OFFSET(InputPriceData!F$15,CalculationsAndCharts!$A159+$A$11,IF($C$7,8,0),1,1) -> 1233.85 | H159: 1268.16 | I159: 1206.11 | J159: 44.70588235 | K159: 77.19043782 | L159: 1268.16 | M159: 1134.51 | N159: 74.32846988 | O159: 89.41015089 | P159: 20 | Q159: 50 | R159: 80 | S159: 1170.1314 | AQ159: 35211400
A160: 128 | B160: =OFFSET(InputPriceData!B$15,CalculationsAndCharts!$A160+$A$11,0,1,1) -> 2015-03-24 | C160: =OFFSET(InputPriceData!G$15,CalculationsAndCharts!$A160+$A$11,IF($C$7,8,0),1,1) -> 31898200 | D160: =OFFSET(InputPriceData!C$15,CalculationsAndCharts!$A160+$A$11,IF($C$7,8,0),1,1) -> 1264.06 | E160: =OFFSET(InputPriceData!D$15,CalculationsAndCharts!$A160+$A$11,IF($C$7,8,0),1,1) -> 1268.08 | F160: =OFFSET(InputPriceData!E$15,CalculationsAndCharts!$A160+$A$11,IF($C$7,8,0),1,1) -> 1262.41 | G160: =OFFSET(InputPriceData!F$15,CalculationsAndCharts!$A160+$A$11,IF($C$7,8,0),1,1) -> 1263.46 | H160: 1268.16 | I160: 1206.11 | J160: 92.42546334 | K160: 95.15816557 | L160: 1268.16 | M160: 1134.51 | N160: 96.48335204 | O160: 97.75382949 | P160: 20 | Q160: 50 | R160: 80 | S160: 1169.84155 | AQ160: 31898200
A161: 129 | B161: =OFFSET(InputPriceData!B$15,CalculationsAndCharts!$A161+$A$11,0,1,1) -> 2015-03-23 | C161: =OFFSET(InputPriceData!G$15,CalculationsAndCharts!$A161+$A$11,IF($C$7,8,0),1,1) -> 32679600 | D161: =OFFSET(InputPriceData!C$15,CalculationsAndCharts!$A161+$A$11,IF($C$7,8,0),1,1) -> 1264.17 | E161: =OFFSET(InputPriceData!D$15,CalculationsAndCharts!$A161+$A$11,IF($C$7,8,0),1,1) -> 1268.16 | F161: =OFFSET(InputPriceData!E$15,CalculationsAndCharts!$A161+$A$11,IF($C$7,8,0),1,1) -> 1262.95 | G161: =OFFSET(InputPriceData!F$15,CalculationsAndCharts!$A161+$A$11,IF($C$7,8,0),1,1) -> 1264.71 | H161: 1268.16 | I161: 1206.11 | J161: 94.43996777 | K161: 97.13160235 | L161: 1268.16 | M161: 1134.51 | N161: 97.41863075 | O161: 98.70046709 | P161: 20 | Q161: 50 | R161: 80 | S161: 1169.3503 | AP161: 32679600
A162: 130 | B162: =OFFSET(InputPriceData!B$15,CalculationsAndCharts!$A162+$A$11,0,1,1) -> 2015-03-20 | C162: =OFFSET(InputPriceData!G$15,CalculationsAndCharts!$A162+$A$11,IF($C$7,8,0),1,1) -> 55541200 | D162: =OFFSET(InputPriceData!C$15,CalculationsAndCharts!$A162+$A$11,IF($C$7,8,0),1,1) -> 1259.71 | E162: =OFFSET(InputPriceData!D$15,CalculationsAndCharts!$A162+$A$11,IF($C$7,8,0),1,1) -> 1267.22 | F162: =OFFSET(InputPriceData!E$15,CalculationsAndCharts!$A162+$A$11,IF($C$7,8,0),1,1) -> 1259.71 | G162: =OFFSET(InputPriceData!F$15,CalculationsAndCharts!$A162+$A$11,IF($C$7,8,0),1,1) -> 1266.37 | H162: =MAX(OFFSET($E162,0,0,$B$18,1)) -> 1267.22 | I162: =MIN(OFFSET($F162,0,0,$B$18,1)) -> 1206.11 | J162: =($G162-I162)/(H162-I162)*100 -> 98.60906562 | K162: =AVERAGE(OFFSET(J162,0,0,$B$19,1)) -> 96.60447436 | L162: =MAX(OFFSET($E162,0,0,$B$20,1)) -> 1267.22 | M162: =MIN(OFFSET($F162,0,0,$B$20,1)) -> 1134.51 | N162: =($G162-M162)/(L162-M162)*100 -> 99.35950569 | O162: =AVERAGE(OFFSET(N162,0,0,$B$21,1)) -> 98.5870851 | P162: =$P$31 -> 20 | Q162: =$Q$31 -> 50 | R162: =$R$31 -> 80 | S162: =AVERAGE(OFFSET(G162,0,0,$C$18,1)) -> 1168.79645 | AP162: 55541200
A163: 131 | B163: =OFFSET(InputPriceData!B$15,CalculationsAndCharts!$A163+$A$11,0,1,1) -> 2015-03-19 | C163: =OFFSET(InputPriceData!G$15,CalculationsAndCharts!$A163+$A$11,IF($C$7,8,0),1,1) -> 33052200 | D163: =OFFSET(InputPriceData!C$15,CalculationsAndCharts!$A163+$A$11,IF($C$7,8,0),1,1) -> 1249.26 | E163: =OFFSET(InputPriceData!D$15,CalculationsAndCharts!$A163+$A$11,IF($C$7,8,0),1,1) -> 1254.89 | F163: =OFFSET(InputPriceData!E$15,CalculationsAndCharts!$A163+$A$11,IF($C$7,8,0),1,1) -> 1248.48 | G163: =OFFSET(InputPriceData!F$15,CalculationsAndCharts!$A163+$A$11,IF($C$7,8,0),1,1) -> 1254.86 | H163: 1255.68 | I163: 1206.11 | J163: 98.34577365 | K163: 96.08298572 | L163: 1255.68 | M163: 1134.51 | N163: 99.32326483 | O163: 98.46363534 | P163: 20 | Q163: 50 | R163: 80 | S163: 1168.1207 | AP163: 33052200
A164: 132 | B164: =OFFSET(InputPriceData!B$15,CalculationsAndCharts!$A164+$A$11,0,1,1) -> 2015-03-18 | C164: =OFFSET(InputPriceData!G$15,CalculationsAndCharts!$A164+$A$11,IF($C$7,8,0),1,1) -> 41282100 | D164: =OFFSET(InputPriceData!C$15,CalculationsAndCharts!$A164+$A$11,IF($C$7,8,0),1,1) -> 1239.84 | E164: =OFFSET(InputPriceData!D$15,CalculationsAndCharts!$A164+$A$11,IF($C$7,8,0),1,1) -> 1255.68 | F164: =OFFSET(InputPriceData!E$15,CalculationsAndCharts!$A164+$A$11,IF($C$7,8,0),1,1) -> 1235.49 | G164: =OFFSET(InputPriceData!F$15,CalculationsAndCharts!$A164+$A$11,IF($C$7,8,0),1,1) -> 1252.14 | H164: 1255.68 | I164: 1206.11 | J164: 92.85858382 | K164: 93.45510021 | L164: 1255.68 | M164: 1134.51 | N164: 97.07848477 | O164: 97.60179107 | P164: 20 | Q164: 50 | R164: 80 | S164: 1167.47715 | AP164: 41282100
A165: 133 | B165: =OFFSET(InputPriceData!B$15,CalculationsAndCharts!$A165+$A$11,0,1,1) -> 2015-03-17 | C165: =OFFSET(InputPriceData!G$15,CalculationsAndCharts!$A165+$A$11,IF($C$7,8,0),1,1) -> 32218400 | D165: =OFFSET(InputPriceData!C$15,CalculationsAndCharts!$A165+$A$11,IF($C$7,8,0),1,1) -> 1235.9 | E165: =OFFSET(InputPriceData!D$15,CalculationsAndCharts!$A165+$A$11,IF($C$7,8,0),1,1) -> 1243.33 | F165: =OFFSET(InputPriceData!E$15,CalculationsAndCharts!$A165+$A$11,IF($C$7,8,0),1,1) -> 1234.66 | G165: =OFFSET(InputPriceData!F$15,CalculationsAndCharts!$A165+$A$11,IF($C$7,8,0),1,1) -> 1242.23 | H165: 1243.33 | I165: 1206.11 | J165: 97.04459968 | K165: 85.81407845 | L165: 1243.33 | M165: 1134.51 | N165: 98.98915641 | O165: 95.14795074 | P165: 20 | Q165: 50 | R165: 80 | S165: 1166.86095 | AP165: 32218400
A166: 134 | B166: =OFFSET(InputPriceData!B$15,CalculationsAndCharts!$A166+$A$11,0,1,1) -> 2015-03-16 | C166: =OFFSET(InputPriceData!G$15,CalculationsAndCharts!$A166+$A$11,IF($C$7,8,0),1,1) -> 32956000 | D166: =OFFSET(InputPriceData!C$15,CalculationsAndCharts!$A166+$A$11,IF($C$7,8,0),1,1) -> 1237.08 | E166: =OFFSET(InputPriceData!D$15,CalculationsAndCharts!$A166+$A$11,IF($C$7,8,0),1,1) -> 1241.11 | F166: =OFFSET(InputPriceData!E$15,CalculationsAndCharts!$A166+$A$11,IF($C$7,8,0),1,1) -> 1235.7 | G166: =OFFSET(InputPriceData!F$15,CalculationsAndCharts!$A166+$A$11,IF($C$7,8,0),1,1) -> 1239.78 | H166: 1243.33 | I166: 1206.11 | J166: 90.46211714 | K166: 80.80780942 | L166: 1243.33 | M166: 1134.51 | N166: 96.73773203 | O166: 93.43564296 | P166: 20 | Q166: 50 | R166: 80 | S166: 1166.3223 | AP166: 32956000
A167: 135 | B167: =OFFSET(InputPriceData!B$15,CalculationsAndCharts!$A167+$A$11,0,1,1) -> 2015-03-13 | C167: =OFFSET(InputPriceData!G$15,CalculationsAndCharts!$A167+$A$11,IF($C$7,8,0),1,1) -> 34985600 | D167: =OFFSET(InputPriceData!C$15,CalculationsAndCharts!$A167+$A$11,IF($C$7,8,0),1,1) -> 1235.59 | E167: =OFFSET(InputPriceData!D$15,CalculationsAndCharts!$A167+$A$11,IF($C$7,8,0),1,1) -> 1236.78 | F167: =OFFSET(InputPriceData!E$15,CalculationsAndCharts!$A167+$A$11,IF($C$7,8,0),1,1) -> 1220.01 | G167: =OFFSET(InputPriceData!F$15,CalculationsAndCharts!$A167+$A$11,IF($C$7,8,0),1,1) -> 1232.14 | H167: 1243.33 | I167: 1206.11 | J167: 69.93551854 | K167: 59.31398889 | L167: 1243.33 | M167: 1134.51 | N167: 89.71696379 | O167: 86.08405318 | P167: 20 | Q167: 50 | R167: 80 | S167: 1165.82375 | AQ167: 34985600
A168: 136 | B168: =OFFSET(InputPriceData!B$15,CalculationsAndCharts!$A168+$A$11,0,1,1) -> 2015-03-12 | C168: =OFFSET(InputPriceData!G$15,CalculationsAndCharts!$A168+$A$11,IF($C$7,8,0),1,1) -> 34058600 | D168: =OFFSET(InputPriceData!C$15,CalculationsAndCharts!$A168+$A$11,IF($C$7,8,0),1,1) -> 1221.46 | E168: =OFFSET(InputPriceData!D$15,CalculationsAndCharts!$A168+$A$11,IF($C$7,8,0),1,1) -> 1236.68 | F168: =OFFSET(InputPriceData!E$15,CalculationsAndCharts!$A168+$A$11,IF($C$7,8,0),1,1) -> 1221.26 | G168: =OFFSET(InputPriceData!F$15,CalculationsAndCharts!$A168+$A$11,IF($C$7,8,0),1,1) -> 1236.64 | H168: 1243.33 | I168: 1206.11 | J168: 82.02579258 | K168: 37.93856296 | L168: 1243.33 | M168: 1134.51 | N168: 93.85223305 | O168: 78.83354775 | P168: 20 | Q168: 50 | R168: 80 | S168: 1165.34645 | AP168: 34058600
A169: 137 | B169: =OFFSET(InputPriceData!B$15,CalculationsAndCharts!$A169+$A$11,0,1,1) -> 2015-03-11 | C169: =OFFSET(InputPriceData!G$15,CalculationsAndCharts!$A169+$A$11,IF($C$7,8,0),1,1) -> 34065700 | D169: =OFFSET(InputPriceData!C$15,CalculationsAndCharts!$A169+$A$11,IF($C$7,8,0),1,1) -> 1209.99 | E169: =OFFSET(InputPriceData!D$15,CalculationsAndCharts!$A169+$A$11,IF($C$7,8,0),1,1) -> 1216.5 | F169: =OFFSET(InputPriceData!E$15,CalculationsAndCharts!$A169+$A$11,IF($C$7,8,0),1,1) -> 1206.11 | G169: =OFFSET(InputPriceData!F$15,CalculationsAndCharts!$A169+$A$11,IF($C$7,8,0),1,1) -> 1215.78 | H169: 1243.33 | I169: 1206.11 | J169: 25.98065556 | K169: 19.6584789 | L169: 1243.33 | M169: 1134.51 | N169: 74.68296269 | O169: 74.83612081 | P169: 20 | Q169: 50 | R169: 80 | S169: 1164.87425 | AP169: 34065700
A170: 138 | B170: =OFFSET(InputPriceData!B$15,CalculationsAndCharts!$A170+$A$11,0,1,1) -> 2015-03-10 | C170: =OFFSET(InputPriceData!G$15,CalculationsAndCharts!$A170+$A$11,IF($C$7,8,0),1,1) -> 36689000 | D170: =OFFSET(InputPriceData!C$15,CalculationsAndCharts!$A170+$A$11,IF($C$7,8,0),1,1) -> 1213.93 | E170: =OFFSET(InputPriceData!D$15,CalculationsAndCharts!$A170+$A$11,IF($C$7,8,0),1,1) -> 1213.94 | F170: =OFFSET(InputPriceData!E$15,CalculationsAndCharts!$A170+$A$11,IF($C$7,8,0),1,1) -> 1206.32 | G170: =OFFSET(InputPriceData!F$15,CalculationsAndCharts!$A170+$A$11,IF($C$7,8,0),1,1) -> 1208.47 | H170: 1243.33 | I170: 1206.32 | J170: 5.809240746 | K170: 12.59668654 | L170: 1243.33 | M170: 1134.51 | N170: 67.96544753 | O170: 75.36911107 | P170: 20 | Q170: 50 | R170: 80 | S170: 1164.4263 | AQ170: 36689000
A171: 139 | B171: =OFFSET(InputPriceData!B$15,CalculationsAndCharts!$A171+$A$11,0,1,1) -> 2015-03-09 | C171: =OFFSET(InputPriceData!G$15,CalculationsAndCharts!$A171+$A$11,IF($C$7,8,0),1,1) -> 33490900 | D171: =OFFSET(InputPriceData!C$15,CalculationsAndCharts!$A171+$A$11,IF($C$7,8,0),1,1) -> 1220.48 | E171: =OFFSET(InputPriceData!D$15,CalculationsAndCharts!$A171+$A$11,IF($C$7,8,0),1,1) -> 1225.83 | F171: =OFFSET(InputPriceData!E$15,CalculationsAndCharts!$A171+$A$11,IF($C$7,8,0),1,1) -> 1218.76 | G171: =OFFSET(InputPriceData!F$15,CalculationsAndCharts!$A171+$A$11,IF($C$7,8,0),1,1) -> 1223.59 | H171: 1243.33 | I171: 1216.22 | J171: 27.18554039 | K171: 33.40675184 | L171: 1243.33 | M171: 1134.51 | N171: 81.85995221 | O171: 83.28432273 | P171: 20 | Q171: 50 | R171: 80 | S171: 1163.9533 | AP171: 33490900
A172: 140 | B172: =OFFSET(InputPriceData!B$15,CalculationsAndCharts!$A172+$A$11,0,1,1) -> 2015-03-06 | C172: =OFFSET(InputPriceData!G$15,CalculationsAndCharts!$A172+$A$11,IF($C$7,8,0),1,1) -> 38535700 | D172: =OFFSET(InputPriceData!C$15,CalculationsAndCharts!$A172+$A$11,IF($C$7,8,0),1,1) -> 1227.88 | E172: =OFFSET(InputPriceData!D$15,CalculationsAndCharts!$A172+$A$11,IF($C$7,8,0),1,1) -> 1231.09 | F172: =OFFSET(InputPriceData!E$15,CalculationsAndCharts!$A172+$A$11,IF($C$7,8,0),1,1) -> 1216.22 | G172: =OFFSET(InputPriceData!F$15,CalculationsAndCharts!$A172+$A$11,IF($C$7,8,0),1,1) -> 1217.52 | H172: 1243.33 | I172: 1216.22 | J172: 4.795278495 | K172: 46.19655439 | L172: 1243.33 | M172: 1134.51 | N172: 76.28193347 | O172: 85.47142069 | P172: 20 | Q172: 50 | R172: 80 | S172: 1163.3535 | AQ172: 38535700
A173: 141 | B173: =OFFSET(InputPriceData!B$15,CalculationsAndCharts!$A173+$A$11,0,1,1) -> 2015-03-05 | C173: =OFFSET(InputPriceData!G$15,CalculationsAndCharts!$A173+$A$11,IF($C$7,8,0),1,1) -> 31030300 | D173: =OFFSET(InputPriceData!C$15,CalculationsAndCharts!$A173+$A$11,IF($C$7,8,0),1,1) -> 1232.89 | E173: =OFFSET(InputPriceData!D$15,CalculationsAndCharts!$A173+$A$11,IF($C$7,8,0),1,1) -> 1236.05 | F173: =OFFSET(InputPriceData!E$15,CalculationsAndCharts!$A173+$A$11,IF($C$7,8,0),1,1) -> 1228.85 | G173: =OFFSET(InputPriceData!F$15,CalculationsAndCharts!$A173+$A$11,IF($C$7,8,0),1,1) -> 1234.31 | H173: 1243.33 | I173: 1214.93 | J173: 68.23943662 | K173: 71.98626558 | L173: 1243.33 | M173: 1134.51 | N173: 91.71108252 | O173: 90.75231269 | P173: 20 | Q173: 50 | R173: 80 | S173: 1162.7554 | AP173: 31030300
A174: 142 | B174: =OFFSET(InputPriceData!B$15,CalculationsAndCharts!$A174+$A$11,0,1,1) -> 2015-03-04 | C174: =OFFSET(InputPriceData!G$15,CalculationsAndCharts!$A174+$A$11,IF($C$7,8,0),1,1) -> 34211100 | D174: =OFFSET(InputPriceData!C$15,CalculationsAndCharts!$A174+$A$11,IF($C$7,8,0),1,1) -> 1232.15 | E174: =OFFSET(InputPriceData!D$15,CalculationsAndCharts!$A174+$A$11,IF($C$7,8,0),1,1) -> 1232.62 | F174: =OFFSET(InputPriceData!E$15,CalculationsAndCharts!$A174+$A$11,IF($C$7,8,0),1,1) -> 1224.63 | G174: =OFFSET(InputPriceData!F$15,CalculationsAndCharts!$A174+$A$11,IF($C$7,8,0),1,1) -> 1230.73 | H174: 1243.33 | I174: 1206.75 | J174: 65.55494806 | K174: 82.12708411 | L174: 1243.33 | M174: 1134.51 | N174: 88.42124609 | O174: 93.29780065 | P174: 20 | Q174: 50 | R174: 80 | S174: 1162.156 | AQ174: 34211100
A175: 143 | B175: =OFFSET(InputPriceData!B$15,CalculationsAndCharts!$A175+$A$11,0,1,1) -> 2015-03-03 | C175: =OFFSET(InputPriceData!G$15,CalculationsAndCharts!$A175+$A$11,IF($C$7,8,0),1,1) -> 32623000 | D175: =OFFSET(InputPriceData!C$15,CalculationsAndCharts!$A175+$A$11,IF($C$7,8,0),1,1) -> 1238.79 | E175: =OFFSET(InputPriceData!D$15,CalculationsAndCharts!$A175+$A$11,IF($C$7,8,0),1,1) -> 1238.94 | F175: =OFFSET(InputPriceData!E$15,CalculationsAndCharts!$A175+$A$11,IF($C$7,8,0),1,1) -> 1230.74 | G175: =OFFSET(InputPriceData!F$15,CalculationsAndCharts!$A175+$A$11,IF($C$7,8,0),1,1) -> 1234.76 | H175: 1243.33 | I175: 1195.28 | J175: 82.16441207 | K175: 89.35775594 | L175: 1243.33 | M175: 1134.51 | N175: 92.12460945 | O175: 95.16042827 | P175: 20 | Q175: 50 | R175: 80 | S175: 1161.5169 | AQ175: 32623000
A176: 144 | B176: =OFFSET(InputPriceData!B$15,CalculationsAndCharts!$A176+$A$11,0,1,1) -> 2015-03-02 | C176: =OFFSET(InputPriceData!G$15,CalculationsAndCharts!$A176+$A$11,IF($C$7,8,0),1,1) -> 34094900 | D176: =OFFSET(InputPriceData!C$15,CalculationsAndCharts!$A176+$A$11,IF($C$7,8,0),1,1) -> 1233.39 | E176: =OFFSET(InputPriceData!D$15,CalculationsAndCharts!$A176+$A$11,IF($C$7,8,0),1,1) -> 1243.33 | F176: =OFFSET(InputPriceData!E$15,CalculationsAndCharts!$A176+$A$11,IF($C$7,8,0),1,1) -> 1232.67 | G176: =OFFSET(InputPriceData!F$15,CalculationsAndCharts!$A176+$A$11,IF($C$7,8,0),1,1) -> 1242.62 | H176: 1243.33 | I176: 1190.27 | J176: 98.6618922 | K176: 95.22804555 | L176: 1243.33 | M176: 1134.51 | N176: 99.34754641 | O176: 97.7505411 | P176: 20 | Q176: 50 | R176: 80 | S176: 1160.82305 | AP176: 34094900
A177: 145 | B177: =OFFSET(InputPriceData!B$15,CalculationsAndCharts!$A177+$A$11,0,1,1) -> 2015-02-27 | C177: =OFFSET(InputPriceData!G$15,CalculationsAndCharts!$A177+$A$11,IF($C$7,8,0),1,1) -> 35473800 | D177: =OFFSET(InputPriceData!C$15,CalculationsAndCharts!$A177+$A$11,IF($C$7,8,0),1,1) -> 1238.14 | E177: =OFFSET(InputPriceData!D$15,CalculationsAndCharts!$A177+$A$11,IF($C$7,8,0),1,1) -> 1239.67 | F177: =OFFSET(InputPriceData!E$15,CalculationsAndCharts!$A177+$A$11,IF($C$7,8,0),1,1) -> 1233.26 | G177: =OFFSET(InputPriceData!F$15,CalculationsAndCharts!$A177+$A$11,IF($C$7,8,0),1,1) -> 1233.37 | H177: 1239.67 | I177: 1190.27 | J177: 87.24696356 | K177: 94.40110716 | L177: 1239.67 | M177: 1134.51 | N177: 94.00912895 | O177: 97.38842875 | P177: 20 | Q177: 50 | R177: 80 | S177: 1160.12565 | AQ177: 35473800
A178: 146 | B178: =OFFSET(InputPriceData!B$15,CalculationsAndCharts!$A178+$A$11,0,1,1) -> 2015-02-26 | C178: =OFFSET(InputPriceData!G$15,CalculationsAndCharts!$A178+$A$11,IF($C$7,8,0),1,1) -> 34086900 | D178: =OFFSET(InputPriceData!C$15,CalculationsAndCharts!$A178+$A$11,IF($C$7,8,0),1,1) -> 1234.67 | E178: =OFFSET(InputPriceData!D$15,CalculationsAndCharts!$A178+$A$11,IF($C$7,8,0),1,1) -> 1239.22 | F178: =OFFSET(InputPriceData!E$15,CalculationsAndCharts!$A178+$A$11,IF($C$7,8,0),1,1) -> 1231.7 | G178: =OFFSET(InputPriceData!F$15,CalculationsAndCharts!$A178+$A$11,IF($C$7,8,0),1,1) -> 1239.11 | H178: 1239.22 | I178: 1190.27 | J178: 99.7752809 | K178: 97.07294731 | L178: 1239.22 | M178: 1134.51 | N178: 99.89494795 | O178: 98.65768392 | P178: 20 | Q178: 50 | R178: 80 | S178: 1159.5646 | AP178: 34086900
A179: 147 | B179: =OFFSET(InputPriceData!B$15,CalculationsAndCharts!$A179+$A$11,0,1,1) -> 2015-02-25 | C179: =OFFSET(InputPriceData!G$15,CalculationsAndCharts!$A179+$A$11,IF($C$7,8,0),1,1) -> 33123400 | D179: =OFFSET(InputPriceData!C$15,CalculationsAndCharts!$A179+$A$11,IF($C$7,8,0),1,1) -> 1233.24 | E179: =OFFSET(InputPriceData!D$15,CalculationsAndCharts!$A179+$A$11,IF($C$7,8,0),1,1) -> 1236.88 | F179: =OFFSET(InputPriceData!E$15,CalculationsAndCharts!$A179+$A$11,IF($C$7,8,0),1,1) -> 1230.95 | G179: =OFFSET(InputPriceData!F$15,CalculationsAndCharts!$A179+$A$11,IF($C$7,8,0),1,1) -> 1235.1 | H179: 1236.88 | I179: 1190.27 | J179: 96.18107702 | K179: 97.09000562 | L179: 1236.88 | M179: 1134.51 | N179: 98.26120934 | O179: 98.66190361 | P179: 20 | Q179: 50 | R179: 80 | S179: 1159.0373 | AP179: 33123400
A180: 148 | B180: =OFFSET(InputPriceData!B$15,CalculationsAndCharts!$A180+$A$11,0,1,1) -> 2015-02-24 | C180: =OFFSET(InputPriceData!G$15,CalculationsAndCharts!$A180+$A$11,IF($C$7,8,0),1,1) -> 31998400 | D180: =OFFSET(InputPriceData!C$15,CalculationsAndCharts!$A180+$A$11,IF($C$7,8,0),1,1) -> 1232.24 | E180: =OFFSET(InputPriceData!D$15,CalculationsAndCharts!$A180+$A$11,IF($C$7,8,0),1,1) -> 1236.2 | F180: =OFFSET(InputPriceData!E$15,CalculationsAndCharts!$A180+$A$11,IF($C$7,8,0),1,1) -> 1230.07 | G180: =OFFSET(InputPriceData!F$15,CalculationsAndCharts!$A180+$A$11,IF($C$7,8,0),1,1) -> 1233.98 | H180: 1236.2 | I180: 1189.34 | J180: 95.26248399 | K180: 98.30751683 | L180: 1236.2 | M180: 1134.51 | N180: 97.81689448 | O180: 99.19701499 | P180: 20 | Q180: 50 | R180: 80 | S180: 1158.3979 | AP180: 31998400
A181: 149 | B181: =OFFSET(InputPriceData!B$15,CalculationsAndCharts!$A181+$A$11,0,1,1) -> 2015-02-23 | C181: =OFFSET(InputPriceData!G$15,CalculationsAndCharts!$A181+$A$11,IF($C$7,8,0),1,1) -> 30936800 | D181: =OFFSET(InputPriceData!C$15,CalculationsAndCharts!$A181+$A$11,IF($C$7,8,0),1,1) -> 1230.22 | E181: =OFFSET(InputPriceData!D$15,CalculationsAndCharts!$A181+$A$11,IF($C$7,8,0),1,1) -> 1231.84 | F181: =OFFSET(InputPriceData!E$15,CalculationsAndCharts!$A181+$A$11,IF($C$7,8,0),1,1) -> 1222.64 | G181: =OFFSET(InputPriceData!F$15,CalculationsAndCharts!$A181+$A$11,IF($C$7,8,0),1,1) -> 1231.83 | H181: 1231.92 | I181: 1180.06 | J181: 99.82645584 | K181: 98.761238 | L181: 1231.92 | M181: 1134.51 | N181: 99.90760702 | O181: 99.02531759 | P181: 20 | Q181: 50 | R181: 80 | S181: 1157.71515 | AP181: 30936800
A182: 150 | B182: =OFFSET(InputPriceData!B$15,CalculationsAndCharts!$A182+$A$11,0,1,1) -> 2015-02-20 | C182: =OFFSET(InputPriceData!G$15,CalculationsAndCharts!$A182+$A$11,IF($C$7,8,0),1,1) -> 32816000 | D182: =OFFSET(InputPriceData!C$15,CalculationsAndCharts!$A182+$A$11,IF($C$7,8,0),1,1) -> 1228.12 | E182: =OFFSET(InputPriceData!D$15,CalculationsAndCharts!$A182+$A$11,IF($C$7,8,0),1,1) -> 1231.92 | F182: =OFFSET(InputPriceData!E$15,CalculationsAndCharts!$A182+$A$11,IF($C$7,8,0),1,1) -> 1218.29 | G182: =OFFSET(InputPriceData!F$15,CalculationsAndCharts!$A182+$A$11,IF($C$7,8,0),1,1) -> 1231.79 | H182: 1231.92 | I182: 1153.79 | J182: 99.83361065 | K182: 98.80560715 | L182: 1231.92 | M182: 1134.51 | N182: 99.86654348 | O182: 99.04541663 | P182: 20 | Q182: 50 | R182: 80 | S182: 1157.09875 | AP182: 32816000
A183: 151 | B183: =OFFSET(InputPriceData!B$15,CalculationsAndCharts!$A183+$A$11,0,1,1) -> 2015-02-19 | C183: =OFFSET(InputPriceData!G$15,CalculationsAndCharts!$A183+$A$11,IF($C$7,8,0),1,1) -> 32471000 | D183: =OFFSET(InputPriceData!C$15,CalculationsAndCharts!$A183+$A$11,IF($C$7,8,0),1,1) -> 1225.09 | E183: =OFFSET(InputPriceData!D$15,CalculationsAndCharts!$A183+$A$11,IF($C$7,8,0),1,1) -> 1230.5 | F183: =OFFSET(InputPriceData!E$15,CalculationsAndCharts!$A183+$A$11,IF($C$7,8,0),1,1) -> 1222.85 | G183: =OFFSET(InputPriceData!F$15,CalculationsAndCharts!$A183+$A$11,IF($C$7,8,0),1,1) -> 1227.91 | H183: 1230.5 | I183: 1153.79 | J183: 96.6236475 | K183: 97.87546823 | L183: 1230.5 | M183: 1134.51 | N183: 97.30180227 | O183: 98.30935467 | P183: 20 | Q183: 50 | R183: 80 | S183: 1156.47985 | AP183: 32471000
A184: 152 | B184: =OFFSET(InputPriceData!B$15,CalculationsAndCharts!$A184+$A$11,0,1,1) -> 2015-02-18 | C184: =OFFSET(InputPriceData!G$15,CalculationsAndCharts!$A184+$A$11,IF($C$7,8,0),1,1) -> 33700200 | D184: =OFFSET(InputPriceData!C$15,CalculationsAndCharts!$A184+$A$11,IF($C$7,8,0),1,1) -> 1222.56 | E184: =OFFSET(InputPriceData!D$15,CalculationsAndCharts!$A184+$A$11,IF($C$7,8,0),1,1) -> 1227.98 | F184: =OFFSET(InputPriceData!E$15,CalculationsAndCharts!$A184+$A$11,IF($C$7,8,0),1,1) -> 1219.84 | G184: =OFFSET(InputPriceData!F$15,CalculationsAndCharts!$A184+$A$11,IF($C$7,8,0),1,1) -> 1227.95 | H184: 1227.98 | I184: 1153.79 | J184: 99.95956328 | K184: 98.71023524 | L184: 1227.98 | M184: 1134.51 | N184: 99.96790414 | O184: 98.98087839 | P184: 20 | Q184: 50 | R184: 80 | S184: 1155.9718 | AP184: 33700200
A185: 153 | B185: =OFFSET(InputPriceData!B$15,CalculationsAndCharts!$A185+$A$11,0,1,1) -> 2015-02-17 | C185: =OFFSET(InputPriceData!G$15,CalculationsAndCharts!$A185+$A$11,IF($C$7,8,0),1,1) -> 33617500 | D185: =OFFSET(InputPriceData!C$15,CalculationsAndCharts!$A185+$A$11,IF($C$7,8,0),1,1) -> 1223.1 | E185: =OFFSET(InputPriceData!D$15,CalculationsAndCharts!$A185+$A$11,IF($C$7,8,0),1,1) -> 1227.18 | F185: =OFFSET(InputPriceData!E$15,CalculationsAndCharts!$A185+$A$11,IF($C$7,8,0),1,1) -> 1221.04 | G185: =OFFSET(InputPriceData!F$15,CalculationsAndCharts!$A185+$A$11,IF($C$7,8,0),1,1) -> 1225.01 | H185: 1227.18 | I185: 1153.79 | J185: 97.0431939 | K185: 98.72371414 | L185: 1227.18 | M185: 1134.51 | N185: 97.65835761 | O185: 97.00913903 | P185: 20 | Q185: 50 | R185: 80 | S185: 1155.47605 | AP185: 33617500
A186: 154 | B186: =OFFSET(InputPriceData!B$15,CalculationsAndCharts!$A186+$A$11,0,1,1) -> 2015-02-13 | C186: =OFFSET(InputPriceData!G$15,CalculationsAndCharts!$A186+$A$11,IF($C$7,8,0),1,1) -> 35274500 | D186: =OFFSET(InputPriceData!C$15,CalculationsAndCharts!$A186+$A$11,IF($C$7,8,0),1,1) -> 1218.05 | E186: =OFFSET(InputPriceData!D$15,CalculationsAndCharts!$A186+$A$11,IF($C$7,8,0),1,1) -> 1223.74 | F186: =OFFSET(InputPriceData!E$15,CalculationsAndCharts!$A186+$A$11,IF($C$7,8,0),1,1) -> 1214.93 | G186: =OFFSET(InputPriceData!F$15,CalculationsAndCharts!$A186+$A$11,IF($C$7,8,0),1,1) -> 1223.13 | H186: 1223.74 | I186: 1153.79 | J186: 99.12794853 | K186: 92.50861581 | L186: 1223.74 | M186: 1134.51 | N186: 99.31637342 | O186: 90.16286031 | P186: 20 | Q186: 50 | R186: 80 | S186: 1154.98085 | AP186: 35274500
A187: 155 | B187: =OFFSET(InputPriceData!B$15,CalculationsAndCharts!$A187+$A$11,0,1,1) -> 2015-02-12 | C187: =OFFSET(InputPriceData!G$15,CalculationsAndCharts!$A187+$A$11,IF($C$7,8,0),1,1) -> 37883500 | D187: =OFFSET(InputPriceData!C$15,CalculationsAndCharts!$A187+$A$11,IF($C$7,8,0),1,1) -> 1207.6 | E187: =OFFSET(InputPriceData!D$15,CalculationsAndCharts!$A187+$A$11,IF($C$7,8,0),1,1) -> 1216.27 | F187: =OFFSET(InputPriceData!E$15,CalculationsAndCharts!$A187+$A$11,IF($C$7,8,0),1,1) -> 1206.75 | G187: =OFFSET(InputPriceData!F$15,CalculationsAndCharts!$A187+$A$11,IF($C$7,8,0),1,1) -> 1216.27 | H187: 1216.27 | I187: 1153.79 | J187: 100 | K187: 86.49047932 | L187: 1221.44 | M187: 1134.51 | N187: 94.05268607 | O187: 83.38893362 | P187: 20 | Q187: 50 | R187: 80 | S187: 1154.4995 | AP187: 37883500
A188: 156 | B188: =OFFSET(InputPriceData!B$15,CalculationsAndCharts!$A188+$A$11,0,1,1) -> 2015-02-11 | C188: =OFFSET(InputPriceData!G$15,CalculationsAndCharts!$A188+$A$11,IF($C$7,8,0),1,1) -> 35968600 | D188: =OFFSET(InputPriceData!C$15,CalculationsAndCharts!$A188+$A$11,IF($C$7,8,0),1,1) -> 1201.25 | E188: =OFFSET(InputPriceData!D$15,CalculationsAndCharts!$A188+$A$11,IF($C$7,8,0),1,1) -> 1204.44 | F188: =OFFSET(InputPriceData!E$15,CalculationsAndCharts!$A188+$A$11,IF($C$7,8,0),1,1) -> 1195.28 | G188: =OFFSET(InputPriceData!F$15,CalculationsAndCharts!$A188+$A$11,IF($C$7,8,0),1,1) -> 1201.55 | H188: 1214.71 | I188: 1153.79 | J188: 78.39789888 | K188: 76.15999125 | L188: 1221.44 | M188: 1134.51 | N188: 77.11952145 | O188: 75.55120979 | P188: 20 | Q188: 50 | R188: 80 | S188: 1154.0223 | AP188: 35968600
A189: 157 | B189: =OFFSET(InputPriceData!B$15,CalculationsAndCharts!$A189+$A$11,0,1,1) -> 2015-02-10 | C189: =OFFSET(InputPriceData!G$15,CalculationsAndCharts!$A189+$A$11,IF($C$7,8,0),1,1) -> 36698500 | D189: =OFFSET(InputPriceData!C$15,CalculationsAndCharts!$A189+$A$11,IF($C$7,8,0),1,1) -> 1202.61 | E189: =OFFSET(InputPriceData!D$15,CalculationsAndCharts!$A189+$A$11,IF($C$7,8,0),1,1) -> 1205.12 | F189: =OFFSET(InputPriceData!E$15,CalculationsAndCharts!$A189+$A$11,IF($C$7,8,0),1,1) -> 1190.27 | G189: =OFFSET(InputPriceData!F$15,CalculationsAndCharts!$A189+$A$11,IF($C$7,8,0),1,1) -> 1203.18 | H189: 1214.71 | I189: 1153.79 | J189: 81.07353907 | K189: 78.29940906 | L189: 1221.44 | M189: 1134.51 | N189: 78.99459335 | O189: 77.85669065 | P189: 20 | Q189: 50 | R189: 80 | S189: 1153.59985 | AP189: 36698500
A190: 158 | B190: =OFFSET(InputPriceData!B$15,CalculationsAndCharts!$A190+$A$11,0,1,1) -> 2015-02-09 | C190: =OFFSET(InputPriceData!G$15,CalculationsAndCharts!$A190+$A$11,IF($C$7,8,0),1,1) -> 35495400 | D190: =OFFSET(InputPriceData!C$15,CalculationsAndCharts!$A190+$A$11,IF($C$7,8,0),1,1) -> 1202.26 | E190: =OFFSET(InputPriceData!D$15,CalculationsAndCharts!$A190+$A$11,IF($C$7,8,0),1,1) -> 1208.28 | F190: =OFFSET(InputPriceData!E$15,CalculationsAndCharts!$A190+$A$11,IF($C$7,8,0),1,1) -> 1195.38 | G190: =OFFSET(InputPriceData!F$15,CalculationsAndCharts!$A190+$A$11,IF($C$7,8,0),1,1) -> 1195.83 | H190: 1214.71 | I190: 1153.79 | J190: 69.00853578 | K190: 83.9313238 | L190: 1221.44 | M190: 1134.51 | N190: 70.53951455 | O190: 81.24376134 | P190: 20 | Q190: 50 | R190: 80 | S190: 1153.1991 | AQ190: 35495400
A191: 159 | B191: =OFFSET(InputPriceData!B$15,CalculationsAndCharts!$A191+$A$11,0,1,1) -> 2015-02-06 | C191: =OFFSET(InputPriceData!G$15,CalculationsAndCharts!$A191+$A$11,IF($C$7,8,0),1,1) -> 42329700 | D191: =OFFSET(InputPriceData!C$15,CalculationsAndCharts!$A191+$A$11,IF($C$7,8,0),1,1) -> 1209.74 | E191: =OFFSET(InputPriceData!D$15,CalculationsAndCharts!$A191+$A$11,IF($C$7,8,0),1,1) -> 1214.71 | F191: =OFFSET(InputPriceData!E$15,CalculationsAndCharts!$A191+$A$11,IF($C$7,8,0),1,1) -> 1202.16 | G191: =OFFSET(InputPriceData!F$15,CalculationsAndCharts!$A191+$A$11,IF($C$7,8,0),1,1) -> 1205.46 | H191: 1214.71 | I191: 1153.79 | J191: 84.81615233 | K191: 87.72062912 | L191: 1221.44 | M191: 1121.34 | N191: 84.03596404 | O191: 82.54530999 | P191: 20 | Q191: 50 | R191: 80 | S191: 1152.9417 | AQ191: 42329700
A192: 160 | B192: =OFFSET(InputPriceData!B$15,CalculationsAndCharts!$A192+$A$11,0,1,1) -> 2015-02-05 | C192: =OFFSET(InputPriceData!G$15,CalculationsAndCharts!$A192+$A$11,IF($C$7,8,0),1,1) -> 38219900 | D192: =OFFSET(InputPriceData!C$15,CalculationsAndCharts!$A192+$A$11,IF($C$7,8,0),1,1) -> 1195.5 | E192: =OFFSET(InputPriceData!D$15,CalculationsAndCharts!$A192+$A$11,IF($C$7,8,0),1,1) -> 1209.9 | F192: =OFFSET(InputPriceData!E$15,CalculationsAndCharts!$A192+$A$11,IF($C$7,8,0),1,1) -> 1195.41 | G192: =OFFSET(InputPriceData!F$15,CalculationsAndCharts!$A192+$A$11,IF($C$7,8,0),1,1) -> 1208.71 | H192: 1209.9 | I192: 1151.3 | J192: 97.96928328 | K192: 89.94517425 | L192: 1221.44 | M192: 1104.05 | N192: 89.15580543 | O192: 80.92398558 | P192: 20 | Q192: 50 | R192: 80 | S192: 1152.6498 | AP192: 38219900
A193: 161 | B193: =OFFSET(InputPriceData!B$15,CalculationsAndCharts!$A193+$A$11,0,1,1) -> 2015-02-04 | C193: =OFFSET(InputPriceData!G$15,CalculationsAndCharts!$A193+$A$11,IF($C$7,8,0),1,1) -> 41419200 | D193: =OFFSET(InputPriceData!C$15,CalculationsAndCharts!$A193+$A$11,IF($C$7,8,0),1,1) -> 1191.56 | E193: =OFFSET(InputPriceData!D$15,CalculationsAndCharts!$A193+$A$11,IF($C$7,8,0),1,1) -> 1198.95 | F193: =OFFSET(InputPriceData!E$15,CalculationsAndCharts!$A193+$A$11,IF($C$7,8,0),1,1) -> 1189.34 | G193: =OFFSET(InputPriceData!F$15,CalculationsAndCharts!$A193+$A$11,IF($C$7,8,0),1,1) -> 1191.44 | H193: 1201.24 | I193: 1151.3 | J193: 80.37645174 | K193: 73.44813777 | L193: 1221.44 | M193: 1104.05 | N193: 74.44416049 | O193: 72.31028259 | P193: 20 | Q193: 50 | R193: 80 | S193: 1152.3843 | AQ193: 41419200
A194: 162 | B194: =OFFSET(InputPriceData!B$15,CalculationsAndCharts!$A194+$A$11,0,1,1) -> 2015-02-03 | C194: =OFFSET(InputPriceData!G$15,CalculationsAndCharts!$A194+$A$11,IF($C$7,8,0),1,1) -> 46159000 | D194: =OFFSET(InputPriceData!C$15,CalculationsAndCharts!$A194+$A$11,IF($C$7,8,0),1,1) -> 1180.08 | E194: =OFFSET(InputPriceData!D$15,CalculationsAndCharts!$A194+$A$11,IF($C$7,8,0),1,1) -> 1197.39 | F194: =OFFSET(InputPriceData!E$15,CalculationsAndCharts!$A194+$A$11,IF($C$7,8,0),1,1) -> 1180.06 | G194: =OFFSET(InputPriceData!F$15,CalculationsAndCharts!$A194+$A$11,IF($C$7,8,0),1,1) -> 1196.99 | H194: 1201.24 | I194: 1151.3 | J194: 91.48978775 | K194: 56.06060606 | L194: 1221.44 | M194: 1104.05 | N194: 79.1719908 | O194: 65.90610556 | P194: 20 | Q194: 50 | R194: 80 | S194: 1152.13865 | AP194: 46159000
A195: 163 | B195: =OFFSET(InputPriceData!B$15,CalculationsAndCharts!$A195+$A$11,0,1,1) -> 2015-02-02 | C195: =OFFSET(InputPriceData!G$15,CalculationsAndCharts!$A195+$A$11,IF($C$7,8,0),1,1) -> 40083300 | D195: =OFFSET(InputPriceData!C$15,CalculationsAndCharts!$A195+$A$11,IF($C$7,8,0),1,1) -> 1168.58 | E195: =OFFSET(InputPriceData!D$15,CalculationsAndCharts!$A195+$A$11,IF($C$7,8,0),1,1) -> 1175.56 | F195: =OFFSET(InputPriceData!E$15,CalculationsAndCharts!$A195+$A$11,IF($C$7,8,0),1,1) -> 1153.79 | G195: =OFFSET(InputPriceData!F$15,CalculationsAndCharts!$A195+$A$11,IF($C$7,8,0),1,1) -> 1175.51 | H195: 1201.24 | I195: 1151.3 | J195: 48.47817381 | K195: 51.51515152 | L195: 1221.44 | M195: 1096.24 | N195: 63.31469649 | O195: 65.55900336 | P195: 20 | Q195: 50 | R195: 80 | S195: 1151.8432 | AP195: 40083300
A196: 164 | B196: =OFFSET(InputPriceData!B$15,CalculationsAndCharts!$A196+$A$11,0,1,1) -> 2015-01-30 | C196: =OFFSET(InputPriceData!G$15,CalculationsAndCharts!$A196+$A$11,IF($C$7,8,0),1,1) -> 45386500 | D196: =OFFSET(InputPriceData!C$15,CalculationsAndCharts!$A196+$A$11,IF($C$7,8,0),1,1) -> 1183.34 | E196: =OFFSET(InputPriceData!D$15,CalculationsAndCharts!$A196+$A$11,IF($C$7,8,0),1,1) -> 1186.04 | F196: =OFFSET(InputPriceData!E$15,CalculationsAndCharts!$A196+$A$11,IF($C$7,8,0),1,1) -> 1164.9 | G196: =OFFSET(InputPriceData!F$15,CalculationsAndCharts!$A196+$A$11,IF($C$7,8,0),1,1) -> 1165.39 | H196: 1201.24 | I196: 1151.3 | J196: 28.21385663 | K196: 51.25483914 | L196: 1221.44 | M196: 1096.24 | N196: 55.23162939 | O196: 66.98570287 | P196: 20 | Q196: 50 | R196: 80 | S196: 1151.6245 | AQ196: 45386500
A197: 165 | B197: =OFFSET(InputPriceData!B$15,CalculationsAndCharts!$A197+$A$11,0,1,1) -> 2015-01-29 | C197: =OFFSET(InputPriceData!G$15,CalculationsAndCharts!$A197+$A$11,IF($C$7,8,0),1,1) -> 41271400 | D197: =OFFSET(InputPriceData!C$15,CalculationsAndCharts!$A197+$A$11,IF($C$7,8,0),1,1) -> 1177.15 | E197: =OFFSET(InputPriceData!D$15,CalculationsAndCharts!$A197+$A$11,IF($C$7,8,0),1,1) -> 1190.19 | F197: =OFFSET(InputPriceData!E$15,CalculationsAndCharts!$A197+$A$11,IF($C$7,8,0),1,1) -> 1170.14 | G197: =OFFSET(InputPriceData!F$15,CalculationsAndCharts!$A197+$A$11,IF($C$7,8,0),1,1) -> 1190.18 | H197: 1201.24 | I197: 1151.3 | J197: 77.85342411 | K197: 71.08430872 | L197: 1221.44 | M197: 1078.5 | N197: 78.1306842 | O197: 76.41921336 | P197: 20 | Q197: 50 | R197: 80 | S197: 1151.395 | AP197: 41271400
A198: 166 | B198: =OFFSET(InputPriceData!B$15,CalculationsAndCharts!$A198+$A$11,0,1,1) -> 2015-01-28 | C198: =OFFSET(InputPriceData!G$15,CalculationsAndCharts!$A198+$A$11,IF($C$7,8,0),1,1) -> 40675300 | D198: =OFFSET(InputPriceData!C$15,CalculationsAndCharts!$A198+$A$11,IF($C$7,8,0),1,1) -> 1200.68 | E198: =OFFSET(InputPriceData!D$15,CalculationsAndCharts!$A198+$A$11,IF($C$7,8,0),1,1) -> 1201.24 | F198: =OFFSET(InputPriceData!E$15,CalculationsAndCharts!$A198+$A$11,IF($C$7,8,0),1,1) -> 1172.73 | G198: =OFFSET(InputPriceData!F$15,CalculationsAndCharts!$A198+$A$11,IF($C$7,8,0),1,1) -> 1175.12 | H198: 1201.24 | I198: 1151.3 | J198: 47.69723668 | K198: 78.46650069 | L198: 1221.44 | M198: 1078.5 | N198: 67.59479502 | O198: 79.89619865 | P198: 20 | Q198: 50 | R198: 80 | S198: 1151.02085 | AQ198: 40675300
A199: 167 | B199: =OFFSET(InputPriceData!B$15,CalculationsAndCharts!$A199+$A$11,0,1,1) -> 2015-01-27 | C199: =OFFSET(InputPriceData!G$15,CalculationsAndCharts!$A199+$A$11,IF($C$7,8,0),1,1) -> 33298100 | D199: =OFFSET(InputPriceData!C$15,CalculationsAndCharts!$A199+$A$11,IF($C$7,8,0),1,1) -> 1190.34 | E199: =OFFSET(InputPriceData!D$15,CalculationsAndCharts!$A199+$A$11,IF($C$7,8,0),1,1) -> 1199.77 | F199: =OFFSET(InputPriceData!E$15,CalculationsAndCharts!$A199+$A$11,IF($C$7,8,0),1,1) -> 1186.16 | G199: =OFFSET(InputPriceData!F$15,CalculationsAndCharts!$A199+$A$11,IF($C$7,8,0),1,1) -> 1194.66 | H199: 1200.74 | I199: 1151.3 | J199: 87.70226537 | K199: 88.0516423 | L199: 1221.44 | M199: 1058.82 | N199: 83.53216087 | O199: 84.70983248 | P199: 20 | Q199: 50 | R199: 80 | S199: 1150.70245 | AP199: 33298100
A200: 168 | B200: =OFFSET(InputPriceData!B$15,CalculationsAndCharts!$A200+$A$11,0,1,1) -> 2015-01-26 | C200: =OFFSET(InputPriceData!G$15,CalculationsAndCharts!$A200+$A$11,IF($C$7,8,0),1,1) -> 34657600 | D200: =OFFSET(InputPriceData!C$15,CalculationsAndCharts!$A200+$A$11,IF($C$7,8,0),1,1) -> 1188.93 | E200: =OFFSET(InputPriceData!D$15,CalculationsAndCharts!$A200+$A$11,IF($C$7,8,0),1,1) -> 1200.74 | F200: =OFFSET(InputPriceData!E$15,CalculationsAndCharts!$A200+$A$11,IF($C$7,8,0),1,1) -> 1181.77 | G200: =OFFSET(InputPriceData!F$15,CalculationsAndCharts!$A200+$A$11,IF($C$7,8,0),1,1) -> 1200.74 | H200: 1200.74 | I200: 1151.3 | J200: 100 | K200: 79.9937056 | L200: 1221.44 | M200: 1040.47 | N200: 88.56164005 | O200: 84.47624837 | P200: 20 | Q200: 50 | R200: 80 | S200: 1150.36745 | AP200: 34657600
A201: 169 | B201: =OFFSET(InputPriceData!B$15,CalculationsAndCharts!$A201+$A$11,0,1,1) -> 2015-01-23 | C201: =OFFSET(InputPriceData!G$15,CalculationsAndCharts!$A201+$A$11,IF($C$7,8,0),1,1) -> 35735600 | D201: =OFFSET(InputPriceData!C$15,CalculationsAndCharts!$A201+$A$11,IF($C$7,8,0),1,1) -> 1190.26 | E201: =OFFSET(InputPriceData!D$15,CalculationsAndCharts!$A201+$A$11,IF($C$7,8,0),1,1) -> 1194.15 | F201: =OFFSET(InputPriceData!E$15,CalculationsAndCharts!$A201+$A$11,IF($C$7,8,0),1,1) -> 1185.5 | G201: =OFFSET(InputPriceData!F$15,CalculationsAndCharts!$A201+$A$11,IF($C$7,8,0),1,1) -> 1188.93 | H201: 1200.52 | I201: 1151.3 | J201: 76.45266152 | K201: 53.76521021 | L201: 1221.44 | M201: 1040.47 | N201: 82.03569652 | O201: 78.12344588 | P201: 20 | Q201: 50 | R201: 80 | S201: 1150.16355 | AQ201: 35735600
A202: 170 | B202: =OFFSET(InputPriceData!B$15,CalculationsAndCharts!$A202+$A$11,0,1,1) -> 2015-01-22 | C202: =OFFSET(InputPriceData!G$15,CalculationsAndCharts!$A202+$A$11,IF($C$7,8,0),1,1) -> 41760500 | D202: =OFFSET(InputPriceData!C$15,CalculationsAndCharts!$A202+$A$11,IF($C$7,8,0),1,1) -> 1172.5 | E202: =OFFSET(InputPriceData!D$15,CalculationsAndCharts!$A202+$A$11,IF($C$7,8,0),1,1) -> 1190.37 | F202: =OFFSET(InputPriceData!E$15,CalculationsAndCharts!$A202+$A$11,IF($C$7,8,0),1,1) -> 1161.3 | G202: =OFFSET(InputPriceData!F$15,CalculationsAndCharts!$A202+$A$11,IF($C$7,8,0),1,1) -> 1190.37 | H202: 1212.8 | I202: 1151.3 | J202: 63.52845528 | K202: 37.28678763 | L202: 1221.44 | M202: 1040.47 | N202: 82.83140852 | O202: 74.68272826 | P202: 20 | Q202: 50 | R202: 80 | S202: 1149.9401 | AP202: 41760500
A203: 171 | B203: =OFFSET(InputPriceData!B$15,CalculationsAndCharts!$A203+$A$11,0,1,1) -> 2015-01-21 | C203: =OFFSET(InputPriceData!G$15,CalculationsAndCharts!$A203+$A$11,IF($C$7,8,0),1,1) -> 37300700 | D203: =OFFSET(InputPriceData!C$15,CalculationsAndCharts!$A203+$A$11,IF($C$7,8,0),1,1) -> 1167.52 | E203: =OFFSET(InputPriceData!D$15,CalculationsAndCharts!$A203+$A$11,IF($C$7,8,0),1,1) -> 1174.95 | F203: =OFFSET(InputPriceData!E$15,CalculationsAndCharts!$A203+$A$11,IF($C$7,8,0),1,1) -> 1162.31 | G203: =OFFSET(InputPriceData!F$15,CalculationsAndCharts!$A203+$A$11,IF($C$7,8,0),1,1) -> 1166.25 | H203: 1221.44 | I203: 1151.3 | J203: 21.31451383 | K203: 28.15796977 | L203: 1221.44 | M203: 1040.47 | N203: 69.50323258 | O203: 72.1556059 | P203: 20 | Q203: 50 | R203: 80 | S203: 1149.66715 | AQ203: 37300700
A204: 172 | B204: =OFFSET(InputPriceData!B$15,CalculationsAndCharts!$A204+$A$11,0,1,1) -> 2015-01-20 | C204: =OFFSET(InputPriceData!G$15,CalculationsAndCharts!$A204+$A$11,IF($C$7,8,0),1,1) -> 39443400 | D204: =OFFSET(InputPriceData!C$15,CalculationsAndCharts!$A204+$A$11,IF($C$7,8,0),1,1) -> 1179.08 | E204: =OFFSET(InputPriceData!D$15,CalculationsAndCharts!$A204+$A$11,IF($C$7,8,0),1,1) -> 1179.14 | F204: =OFFSET(InputPriceData!E$15,CalculationsAndCharts!$A204+$A$11,IF($C$7,8,0),1,1) -> 1161.33 | G204: =OFFSET(InputPriceData!F$15,CalculationsAndCharts!$A204+$A$11,IF($C$7,8,0),1,1) -> 1170.25 | H204: 1221.44 | I204: 1151.3 | J204: 27.01739378 | K204: 21.69491118 | L204: 1221.44 | M204: 1040.47 | N204: 71.71354368 | O204: 70.03002339 | P204: 20 | Q204: 50 | R204: 80 | S204: 1149.6028 | AQ204: 39443400
A205: 173 | B205: =OFFSET(InputPriceData!B$15,CalculationsAndCharts!$A205+$A$11,0,1,1) -> 2015-01-16 | C205: =OFFSET(InputPriceData!G$15,CalculationsAndCharts!$A205+$A$11,IF($C$7,8,0),1,1) -> 40564100 | D205: =OFFSET(InputPriceData!C$15,CalculationsAndCharts!$A205+$A$11,IF($C$7,8,0),1,1) -> 1151.34 | E205: =OFFSET(InputPriceData!D$15,CalculationsAndCharts!$A205+$A$11,IF($C$7,8,0),1,1) -> 1177.19 | F205: =OFFSET(InputPriceData!E$15,CalculationsAndCharts!$A205+$A$11,IF($C$7,8,0),1,1) -> 1151.3 | G205: =OFFSET(InputPriceData!F$15,CalculationsAndCharts!$A205+$A$11,IF($C$7,8,0),1,1) -> 1176.65 | H205: 1221.44 | I205: 1151.3 | J205: 36.14200171 | K205: 24.2803341 | L205: 1221.44 | M205: 1040.47 | N205: 75.25004144 | O205: 71.28437494 | P205: 20 | Q205: 50 | R205: 80 | S205: 1149.65715 | AP205: 40564100
A206: 174 | B206: =OFFSET(InputPriceData!B$15,CalculationsAndCharts!$A206+$A$11,0,1,1) -> 2015-01-15 | C206: =OFFSET(InputPriceData!G$15,CalculationsAndCharts!$A206+$A$11,IF($C$7,8,0),1,1) -> 42767200 | D206: =OFFSET(InputPriceData!C$15,CalculationsAndCharts!$A206+$A$11,IF($C$7,8,0),1,1) -> 1179.72 | E206: =OFFSET(InputPriceData!D$15,CalculationsAndCharts!$A206+$A$11,IF($C$7,8,0),1,1) -> 1180.87 | F206: =OFFSET(InputPriceData!E$15,CalculationsAndCharts!$A206+$A$11,IF($C$7,8,0),1,1) -> 1154.64 | G206: =OFFSET(InputPriceData!F$15,CalculationsAndCharts!$A206+$A$11,IF($C$7,8,0),1,1) -> 1154.71 | H206: 1221.44 | I206: 1153.4 | J206: 1.925338036 | K206: 25.57809132 | L206: 1221.44 | M206: 1040.47 | N206: 63.12648505 | O206: 72.01930338 | P206: 20 | Q206: 50 | R206: 80 | S206: 1149.73795 | AQ206: 42767200
A207: 175 | B207: =OFFSET(InputPriceData!B$15,CalculationsAndCharts!$A207+$A$11,0,1,1) -> 2015-01-14 | C207: =OFFSET(InputPriceData!G$15,CalculationsAndCharts!$A207+$A$11,IF($C$7,8,0),1,1) -> 43786800 | D207: =OFFSET(InputPriceData!C$15,CalculationsAndCharts!$A207+$A$11,IF($C$7,8,0),1,1) -> 1169.75 | E207: =OFFSET(InputPriceData!D$15,CalculationsAndCharts!$A207+$A$11,IF($C$7,8,0),1,1) -> 1177.98 | F207: =OFFSET(InputPriceData!E$15,CalculationsAndCharts!$A207+$A$11,IF($C$7,8,0),1,1) -> 1165.06 | G207: =OFFSET(InputPriceData!F$15,CalculationsAndCharts!$A207+$A$11,IF($C$7,8,0),1,1) -> 1177.06 | H207: 1221.44 | I207: 1153.4 | J207: 34.77366255 | K207: 38.01195375 | L207: 1221.44 | M207: 1040.47 | N207: 75.47659833 | O207: 76.69411136 | P207: 20 | Q207: 50 | R207: 80 | S207: 1149.9079 | AP207: 43786800
... 825 more rows

Sheet Follow
A1: Stocks and Indexes I wish to follow
A3: To ease following a stock, enter a Yahoo Finance acceptable symbol in column "A" anywhere below cell "A9".
A4: Thereafter you may doubleclick the cell containing a symbol of interest to initiate data retrieval and charting for that symbol.
A7: Symbol
A8: To | B8: Description | C8: Last Trade as of most recent check
A9: Follow | C9: Date | D9: Time | E9: Open | F9: High | G9: Low | H9: Close | I9: Volume | J9: Change
A10: A | B10: Agilent Technolog (A) -NYSE (Daily) | C10: 2015-02-02 | D10: 16:03:00 | E10: 37.9 | F10: 38.76 | G10: 37.71 | H10: 38.69 | I10: 2508493 | J10: 0.92
A11: AA | B11: Alcoa Corporation (AA) -NYSE (Weekly) | C11: 2018-06-19 | D11: 16:04:00 | E11: 44.630001 | F11: 44.630001 | G11: 43.349998 | H11: 44.470001 | I11: 3190085 | J11: -1.309998
A12: AAL | B12: American Airlines Group Inc. (AAL) -NasdaqGS (Daily) | C12: 2017-12-07 | D12: 16:00:00 | E12: 49.529999 | F12: 50.920502 | G12: 49.299999 | H12: 50.880001 | I12: 3046954 | J12: 1.27
A13: ADM | B13: Archer-Daniels-Midland Company (ADM) -NYSE (Weekly) | C13: 2018-07-13 | D13: 16:00:00 | E13: 47.5 | F13: 47.84 | G13: 47.169998 | H13: 47.57 | I13: 2402809 | J13: 0
A14: AMC | B14: AMC Entertainment Holdings, Inc. (AMC) -NYSE (Weekly) | C14: 2018-07-13 | D14: 16:02:00 | E14: 17.049999 | F14: 17.15 | G14: 16.525 | H14: 17.049999 | I14: 1442776 | J14: 0
A15: BSX | B15: Boston Scientific Corporation C (BSX) -NYQ (Daily) | C15: 2015-03-13 | D15: 16:01:00 | E15: 16.84 | F15: 16.91 | G15: 16.44 | H15: 16.61 | I15: 7262460 | J15: -0.28
A16: CASY | B16: Casey's General Stores, Inc. (CASY) -NasdaqGS (Daily) | C16: 2018-07-13 | D16: 16:00:00 | E16: 108.260002 | F16: 109.959999 | G16: 108.260002 | H16: 109.169998 | I16: 300900 | J16: 0.239998
A17: CAT | B17: Caterpillar Inc. (CAT) -NYSE (Daily) | C17: 2018-04-16 | D17: 13:16:00 | E17: 151.740005 | F17: 153.401596 | G17: 150.279999 | H17: 153.050003 | I17: 1789751 | J17: 2.820007
A18: CSCO | B18: Cisco Systems, In (CSCO) -NasdaqNM (Daily) | C18: 2015-02-19 | D18: 16:00:00 | E18: 29.32 | F18: 29.39 | G18: 29.13 | H18: 29.31 | I18: 21469012 | J18: -0.18
A19: CVS | B19: CVS Health Corpor (CVS) -NYSE (Daily) | C19: 2015-02-02 | D19: 16:01:00 | E19: 98.34 | F19: 99.22 | G19: 97.06 | H19: 99.11 | I19: 4416094 | J19: 0.95
A20: DIS | B20: Walt Disney Compa (DIS) -NYSE (Daily) | C20: 2015-02-26 | D20: 16:00:00 | E20: 105.5 | F20: 105.71 | G20: 104.14 | H20: 104.56 | I20: 5044969 | J20: -1.01
A21: F | B21: Ford Motor Company (F) -NYSE (Daily) | C21: 2018-04-16 | D21: 13:20:00 | E21: 11.36 | F21: 11.4375 | G21: 11.27 | H21: 11.425 | I21: 13144677 | J21: 0.145
A22: FAS | B22: Direxion Daily Financial Bull 3X ETF (FAS) -NYSEArca (Daily) | C22: 2017-10-13 | D22: 16:00:00 | E22: 58.099998 | F22: 58.939999 | G22: 57.43 | H22: 58.450001 | I22: 1709300 | J22: 0.07
A23: FB | B23: Facebook, Inc. (FB) -NasdaqGS (Daily) | C23: 2018-07-13 | D23: 16:00:00 | E23: 207.809998 | F23: 208.429993 | G23: 206.449997 | H23: 207.320007 | I23: 11486800 | J23: 0.400009
A24: GSK | B24: GlaxoSmithKline P (GSK) -NYSE (Daily) | C24: 2015-02-02 | D24: 16:01:00 | E24: 44.11 | F24: 44.12 | G24: 43.71 | H24: 43.96 | I24: 3654466 | J24: -0.04
A25: GDX | B25: VanEck Vectors Gold Miners ETF (GDX) -PCX (Daily) | C25: 2017-02-10 | D25: 20:00:00 | E25: 24.67 | F25: 25.36 | G25: 24.6 | H25: 25.29 | I25: 65396107 | J25: 0.38
A26: HSY | B26: The Hershey Compa (HSY) -NYSE (Daily) | C26: 2015-02-19 | D26: 16:02:00 | E26: 106.97 | F26: 107.31 | G26: 105.42 | H26: 105.95 | I26: 1448321 | J26: -1
A27: HTLD | B27: Heartland Express, Inc. (HTLD) -NasdaqGS (Daily) | C27: 2018-04-16 | D27: 13:57:00 | E27: 18.17 | F27: 18.620001 | G27: 18.129999 | H27: 18.540001 | I27: 202134 | J27: 0.540001
A28: IBM | B28: International Business Machines Corporation (IBM) -NYSE (Weekly) | C28: 2018-07-13 | D28: 16:01:00 | E28: 146.449997 | F28: 146.979904 | G28: 145.800003 | H28: 145.899994 | I28: 3067638 | J28: 0
A29: INTC | B29: Intel Corporation (INTC) -NasdaqGS (Weekly) | C29: 2018-06-19 | D29: 16:00:00 | E29: 52.139999 | F29: 52.950001 | G29: 51.880001 | H29: 52.93 | I29: 24852220 | J29: -0.290001
A30: JAH | B30: Jarden Corporation Common Stock (JAH) -NYQ (Daily) | C30: 2016-01-08 | D30: 16:02:00 | E30: 53.82 | F30: 53.88 | G30: 52.65 | H30: 52.73 | I30: 4519480 | J30: -0.81
A31: JNJ | B31: Johnson & Johnson Common Stock (JNJ) -NYQ (Daily) | C31: 2016-01-08 | D31: 11:37:00 | E31: 99.88 | F31: 99.94 | G31: 98.87 | H31: 98.88 | I31: 2448879 | J31: -0.34
A32: KO | B32: The Coca-Cola Company (KO) -NYSE (Daily) | C32: 2018-04-16 | D32: 11:45:00 | E32: 44.650002 | F32: 44.790001 | G32: 44.400002 | H32: 44.605 | I32: 3134784 | J32: 0.095002
A33: LHO | B33: LaSalle Hotel Properties (LHO) -NYSE (Daily) | C33: 2018-07-13 | E33: 35.009998 | F33: 35.07 | G33: 34.82 | H33: 34.880001 | I33: 168400 | J33: -0.09
A34: LINE | B34: Linn Energy, LLC (LINE) -NasdaqNM (Daily) | C34: 2015-02-02 | D34: 16:00:00 | E34: 10.4 | F34: 10.78 | G34: 10.25 | H34: 10.77 | I34: 3766537 | J34: 0.51
A35: LO | B35: Lorillard, Inc Co (LO) -NYSE (Daily) | C35: 2015-02-02 | D35: 16:03:00 | E35: 65.71 | F35: 66.29 | G35: 65.43 | H35: 66.29 | I35: 1563618 | J35: 0.68
A36: MCD | B36: McDonald's Corporation (MCD) -NYSE (Daily) | C36: 2018-04-16 | D36: 14:57:00 | E36: 161.300003 | F36: 162.429993 | G36: 160.860001 | H36: 161.699997 | I36: 2261078 | J36: -0.029999
A37: MDT | B37: Medtronic plc. Or (MDT) -NYSE (Daily) | C37: 2015-02-19 | D37: 16:01:00 | E37: 78.59 | F37: 78.59 | G37: 77.85 | H37: 78.13 | I37: 6900528 | J37: -0.37
A38: MGM | B38: MGM Resorts Inter (MGM) -NYSE (Daily) | C38: 2015-02-02 | D38: 16:00:00 | E38: 19.44 | F38: 19.75 | G38: 19.12 | H38: 19.74 | I38: 7570281 | J38: 0.26
A39: MO | B39: Altria Group, Inc (MO) -NYSE (Daily) | C39: 2015-02-02 | D39: 16:01:00 | E39: 53.25 | F39: 53.84 | G39: 52.98 | H39: 53.8 | I39: 9183582 | J39: 0.7
A40: MSFT | B40: Microsoft Corporation (MSFT) -NasdaqGS (Daily) | C40: 2018-04-13 | D40: 16:00:00 | E40: 94.050003 | F40: 94.18 | G40: 92.440002 | H40: 93.080002 | I40: 23318600 | J40: -0.5
A41: NFLX | B41: Netflix, Inc. (NFLX) -NasdaqGS (Weekly) | C41: 2018-06-19 | D41: 14:59:00 | E41: 389.5 | F41: 404.390015 | G41: 388.5 | H41: 404.100006 | I41: 13053145 | J41: 13.700012
A42: NUGT | B42: Direxion Daily Gold Miners Inde (NUGT) -PCX (Daily) | C42: 2016-04-13 | D42: 14:18:00 | E42: 81.48 | F42: 84.97 | G42: 79.59 | H42: 80.5352 | I42: 4380827 | J42: -5.6148
A43: NVS | B43: Novartis AG (NVS) -NYSE (Daily) | C43: 2018-04-13 | D43: 16:02:00 | E43: 81.150002 | F43: 81.269997 | G43: 80.699997 | H43: 81.040001 | I43: 1037000 | J43: -0.400001
A44: NVDA | B44: NVIDIA Corporation (NVDA) -NasdaqGS (Daily) | C44: 2018-07-13 | D44: 16:00:00 | E44: 251.979996 | F44: 251.979996 | G44: 247.619995 | H44: 249.320007 | I44: 6174700 | J44: -1.909989
A45: PRU | B45: Prudential Financ (PRU) -NYSE (Daily) | C45: 2015-02-23 | D45: 12:22:00 | E45: 80.25 | F45: 80.4499 | G45: 79.8 | H45: 80.12 | I45: 1604052 | J45: -0.69
A46: PSEC | B46: Prospect Capital Corporation (PSEC) -NasdaqGS (Daily) | C46: 2018-04-13 | D46: 16:00:00 | E46: 6.48 | F46: 6.5 | G46: 6.42 | H46: 6.45 | I46: 1289100 | J46: -0.03
A47: RAI | B47: Reynolds American (RAI) -NYSE (Daily) | C47: 2015-02-02 | D47: 16:03:00 | E47: 68.12 | F47: 69.06 | G47: 67.4346 | H47: 69.05 | I47: 1822013 | J47: 1.1
A48: RPM | B48: RPM International Inc. (RPM) -NYSE (Daily) | C48: 2018-04-13 | D48: 16:02:00 | E48: 49.52 | F48: 49.52 | G48: 48.970001 | H48: 49.240002 | I48: 908200 | J48: 0.010002 | K48: Owns the Rust-Oleum brand
A49: RSP | B49: Guggenheim S&P 500 Equal Weight (RSP) -PCX (Daily) | C49: 2016-01-08 | D49: 11:33:00 | E49: 73.24 | F49: 73.47 | G49: 72.41 | H49: 72.41 | I49: 754279 | J49: -0.48
A50: SONC | B50: Sonic Corp. (SONC) -NasdaqGS (Daily) | C50: 2018-04-13 | D50: 16:00:00 | E50: 26.440001 | F50: 26.709999 | G50: 26.040001 | H50: 26.23 | I50: 701900 | J50: -0.03
A51: SPR | B51: Spirit Aerosystems Holdings, In (SPR) -NYQ (Daily) | C51: 2017-02-08 | D51: 16:02:00 | E51: 56.31 | F51: 56.53 | G51: 55.13 | H51: 56.41 | I51: 849196 | J51: 0.06
A52: SWKS | B52: Skyworks Solution (SWKS) -NasdaqNM (Daily) | C52: 2015-02-02 | D52: 16:00:00 | E52: 83.07 | F52: 83.73 | G52: 80.15 | H52: 82.02 | I52: 4119001 | J52: -1.03
A53: TOL | B53: Toll Brothers, Inc. (TOL) -NYSE (Daily) | C53: 2018-04-13 | D53: 16:03:00 | E53: 42.560001 | F53: 42.799999 | G53: 42.040001 | H53: 42.349998 | I53: 1490800 | J53: 0.09
A54: UNP | B54: Union Pacific Cor (UNP) -NYSE (Daily) | C54: 2015-02-02 | D54: 16:10:00 | E54: 118.13 | F54: 119.06 | G54: 116.7 | H54: 119.01 | I54: 3259594 | J54: 1.8
A55: VZ | B55: Verizon Communica (VZ) -NYSE (Daily) | C55: 2015-02-23 | D55: 12:22:00 | E55: 48.94 | F55: 49 | G55: 48.54 | H55: 48.825 | I55: 4204644 | J55: -0.145
A56: WBA | B56: (WBA) -NasdaqNM (Daily) | C56: 2015-02-02 | D56: 16:00:00 | E56: 73.06 | F56: 74.98 | G56: 73 | H56: 74.89 | I56: 4247395 | J56: 1.14
A57: WMT | B57: Walmart Inc. (WMT) -NYSE (Daily) | C57: 2018-07-13 | D57: 16:00:00 | E57: 86.519997 | F57: 87.989998 | G57: 86.5 | H57: 87.699997 | I57: 6388600 | J57: 1.18
A59: ^NDX | B59: NASDAQ-100 (^NDX) -NIM (Daily) | C59: 2015-08-10 | D59: 17:15:00 | E59: 4558.68 | F59: 4583.63 | G59: 4554.63 | H59: 4573.11 | I59: 0 | J59: 53.03
A60: ^FTSE | B60: FTSE 100 (^FTSE) -FTSE (Daily) | C60: 2018-02-14 | D60: 15:51:00 | E60: 7168.009766 | F60: 7243.149902 | G60: 7145.72998 | H60: 7222.319824 | I60: 0 | J60: 54.319824
A61: ^DJI | B61: Dow Jones Industrial Average (^DJI) -DJI (Daily) | C61: 2018-02-14 | D61: 13:58:00 | E61: 24535.82031 | F61: 24835.44922 | G61: 24490.35938 | H61: 24816.16016 | I61: 254641020 | J61: 175.710937
A62: SPY | B62: SPDR S&P 500 ETF (SPY) -NYSEArca (Daily) | C62: 2018-05-14 | D62: 15:01:00 | E62: 273.339996 | F62: 274.079987 | G62: 272.369995 | H62: 272.950012 | I62: 30754165 | J62: 0.100006
A63: ^GSPC | B63: S&P 500 (^GSPC) -SNP (Daily) | C63: 2018-07-13 | D63: 16:51:00 | E63: 2796.929932 | F63: 2804.530029 | G63: 2791.689941 | H63: 2801.310059 | I63: 2614000000 | J63: 3.02002
A64: IWM | B64: iShares Russell 2000 ETF (IWM) -NYSEArca (Daily) | C64: 2018-04-13 | D64: 16:00:00 | E64: 155.289993 | F64: 155.330002 | G64: 153.509995 | H64: 153.949997 | I64: 19710100 | J64: -0.809998
A65: QQQ | B65: PowerShares QQQ ETF (QQQ) -NasdaqGM (Daily) | C65: 2018-04-13 | D65: 16:00:00 | E65: 163.020004 | F65: 163.259995 | G65: 160.669998 | H65: 161.369995 | I65: 44450700 | J65: -0.840012
A66: ^RUT | B66: Russell 2000 (^RUT) -Chicago Options (Daily) | C66: 2018-07-13 | D66: 16:30:00 | E66: 1690.290039 | F66: 1697.400024 | G66: 1686.880005 | H66: 1687.079956 | I66: 26140000 | J66: -3.200073
A67: ^VIX | B67: VOLATILITY S&P 500 (^VIX) -WCB (Daily) | C67: 2015-12-04 | D67: 16:14:00 | E67: 17.43 | F67: 17.65 | G67: 14.69 | H67: 14.81 | I67: 0 | J67: -3.3
A68: ^NYA | B68: NYSE COMPOSITE (DJ) (^NYA) -NYSE (Daily) | C68: 2018-07-13 | D68: 16:15:00 | E68: 12744.79981 | F68: 12783.24023 | G68: 12727.75977 | H68: 12769.5 | I68: 2614000000 | J68: 8.040039
A70: ACAD | B70: ACADIA Pharmaceut (ACAD) -NasdaqNM (Daily) | C70: 2014-07-21 | D70: 16:00:00 | E70: 20.13 | F70: 20.55 | G70: 19.8101 | H70: 20.31 | I70: 691016
A71: CLDX | B71: Celldex Therapeut (CLDX) -NasdaqNM (Daily) | C71: 2015-02-02 | D71: 16:00:00 | E71: 21.47 | F71: 21.69 | G71: 20.11 | H71: 21.02 | I71: 1570418 | J71: -0.4
A72: ICPT | B72: Intercept Pharmac (ICPT) -NasdaqNM (Daily) | C72: 2014-07-21 | D72: 16:00:00 | E72: 215.97 | F72: 218.43 | G72: 213.05 | H72: 218.14 | I72: 191276
A73: INO | B73: Inovio Pharmaceut (INO) -AMEX (Daily) | C73: 2014-07-21 | D73: 16:00:00 | E73: 10.3 | F73: 11.08 | G73: 10.1 | H73: 11.01 | I73: 1800796
A74: JCP | B74: J. C. Penney Company, Inc. (JCP) -NYSE (Daily) | C74: 2017-12-07 | D74: 16:01:00 | E74: 3.34 | F74: 3.4 | G74: 3.25 | H74: 3.27 | I74: 14485464 | J74: -0.07
A75: LCI | B75: Lannett Co Inc Co (LCI) -NYSE (Daily) | C75: 2014-07-21 | D75: 16:02:00 | E75: 38.09 | F75: 38.803 | G75: 36.5101 | H75: 37.76 | I75: 611367
A76: NPSP | B76: NPS Pharmaceutica (NPSP) -NasdaqNM (Daily) | C76: 2014-07-21 | D76: 15:59:00 | E76: 28.75 | F76: 29.43 | G76: 28.31 | H76: 29.29 | I76: 1126758
A77: PBYI | B77: Puma Biotechnolog (PBYI) -NYSE (Daily) | C77: 2014-07-21 | D77: 16:02:00 | E77: 58.27 | F77: 59.46 | G77: 57.39 | H77: 58.98 | I77: 348030
